{"text_format":"1","workbook":"xlsx","n_sheets":9,"sheets":["DI","custom-coscho","Internal","eSPAR","eDESIND","pRCF","Main","pRCF ","eDESIND "],"not_rendered":{"charts":0,"images":4,"macros":1,"external_links":0,"defined_names":2,"comments":4,"pivot_tables":0},"unopened":[],"bounds":{"document_bytes":16777216,"sheet_cells":100000,"rows_first":2000,"rows_last":500,"rows_between":2000,"halvings":0,"cell_chars":16384,"cell_head_chars":4096},"cells_cut":0,"cells_raw":0,"read":"whole","date_system":"1900"}

{"sheet":"DI","index":0,"n_rows":293,"n_cols":2,"rows_kept":293,"cut":false,"hidden":false,"merged":[[225,0,225,1],[0,0,0,1],[1,0,1,1],[2,0,2,1],[86,0,86,1],[156,0,156,1]]}
["Descriptive Indicators"]
["2 (A) : LIFE SKILLS (Grading on Five point scale A, B, C, D, E)"]
["DI Codes For Class 10th"]
["CODE","Thinking Skills"]
[901,"Student demonstrates the ability to Be original, flexible and imaginative "]
[902,"Student demonstrates the ability to Raise questions, identify and analyze  problems"]
[903,"Demonstrates the ability to Implement a well-thought decision and take responsibility"]
[904,"Student demonstrates the ability to Generate new ideas with fluency"]
[905,"Student demonstrates the ability to Elaborate/build on new ideas. "]
[906,"Knows his/her strengths and weaknesses"]
[907,"Demonstrates internal/External locus of control"]
[908,"Knows her/his way of dealing with people, events, and things"]
[909,"Collects relevant information from reliable sources"]
[910,"Evaluates each alternative for advantageous and adverse consequences of each alternative solution"]
[911,"Chooses the best alternative (takes decision); Shows originality and innovation"]
[912,"Demonstrates fluency in ideas – get lots of new ideas"]
[913,"Open to modification and flexibility in Open to modification and flexibility in thinking"]
[914,"Demonstrates divergent (out-of-the-box) thinking"]
[915]
["CODE","Social Skills: "]
[916,"Demonstrates the ability to Identify, verbalize and respond effectively to others' emotions in an empathetic manner"]
[917,"Student demonstrates the ability to Get along well with others"]
[918,"Student demonstrates the ability to Take criticism positively"]
[919,"Student demonstrates the ability to Listen actively"]
[920,"Demonstrates the ability to Communicate using appropriate words, intonation and body language"]
[921,"Takes criticism well"]
[922,"Seeks feedback from teachers and peers for self-improvement"]
[923,"Actively listens and pays attention to others"]
[924,"Helps classmates in case of difficulties in academic and personal issues"]
[925,"Sees and appreciates others’ point of view."]
[926,"Draws attention of others when speaking in the class, school assembly and other occasions"]
[927,"Explains and articulates a concept differently so that others can understand in simple language"]
[928,"Sensitive to the needs of differently abled students"]
[929,"Demonstrates Leadership Skills, like responsibillity, initiative etc."]
[930,"Demonstrates awareness of norms and social conducts and follows them"]
[]
["CODE","Emotional Skills : "]
[931,"Students demonstrates the ability to Identify one's own strengths and weaknesses"]
[932,"Demonstrates the ability to Be comfortable with  one's own self and overcome weaknesses for positive self-concept"]
[933,"Students demonstrates the ability to Identify causes and effects of stress on oneself"]
[934,"Students demonstrates the ability to Develop and use multi-faceted strategies to deal with stress"]
[935,"Demonstrates the ability to Ability to express and respond to emotions with an awareness of the consequences."]
[936,"Is optimistic"]
[937,"Bearer, optimistic"]
[938,"Believes in self–self confidance and thinks “I can”"]
[939,"Manages Scholastics, Co-Scholastics and personal challenges"]
[940,"If unsuccessful, gracefully takes the task again"]
[941,"Seeks help of teachers and classmates in difficult situations"]
[942,"Does not get into unhealthy habits when under stress"]
[943,"Maintains decency under stressful interpersonal situations"]
[944,"Expresses feelings and reactions frankly in the class"]
[945,"Supports and empathises with others"]
[]
["CODE","Work Education"]
[946,"Student exhibits  a collaborative approach to the process of learning."]
[947,"Student is Innovative in ideas"]
[948,"Student Plans and adheres to time lines"]
[949,"Student is Involved and motivated Demonstrates a positive attitude"]
[950,"Student is helpful and guides and facilitates others"]
[951,"Innovative &creative approach"]
[952,"Exhibits asthetic sensibilities "]
[953,"Planning and time management"]
[954,"Demonstrates a positive attitude"]
[955,"Motivated and participation"]
[956,"Is helpful, guides and facilitates others"]
[957,"Demonstrates an understanding of correlation with real life situations"]
[958,"Has a step-by-step approach to solving a problem"]
[959,"Has clear understanding of output to be generated"]
[960,"Is able to apply the theoretical knowledge into practical usage"]
[]
["CODE","Visual & Performing Arts"]
[961,"Student demonstrates An innovative and creative approach"]
[962,"Student demonstrates Observation skills"]
[963,"Student demonstrates Interpretation and originality"]
[964,"Student demonstrates Correlation with real life"]
[965,"Student demonstrates Awareness and appreciation of works of artists "]
[966,"Shows willingness to experiment with different art modes/ mediums"]
[967,"Sketches or paints"]
[968,"Generates computer animation"]
[969,"Demonstrates proportion in size and clarity"]
[970,"Understands the importance of colour, balance and brightness"]
[971,"Shows aesthetic sensibilities"]
[972,"Awareness and appreciation of works of artists"]
[973,"Participates actively in aesthetic activities at various levels"]
[974,"Experiments with art forms"]
[975,"Displays artistic temperament in all of his/her actions in school and outside"]
["2 (D) : ATTITUDES & VALUES (Grading on Five point scale A, B, C, D, E)"]
["CODE","ATTITUDES Towards teachers "]
[976,"Shows respect and courtesy at all times inside and outside the classroom"]
[977,"Demonstrates attitudes that are positive and conducive to learning"]
[978,"Takes suggestions and criticism in the right spirit"]
[979,"Respects teachers’ instructions and follows class teacher"]
[980,"Accepts norms and rules of the school"]
[981,"Communicates his/her thoughts with teachers"]
[982,"Confides his/her problems with teachers"]
[983,"Shows honesty and sincerity towards teachers"]
[984,"Feels free to ask questions"]
[985,"Helpful to teachers"]
[986]
[987]
[988]
[989]
[990]
[]
["CODE","ATTITUDES Towards School Mates"]
[991,"Healthy rapport with peers"]
[992,"Effective interaction with peer"]
[993,"Receptive of ideas"]
[994,"Inspires others"]
[995,"Is friendly with most of the classmates"]
[996,"Expresses ideas and opinions freely in a group"]
[997,"Is receptive to ideas and opinion of others"]
[998,"Treats classmates as equals, without any sense of superiority or inferiority"]
[999,"Sensitive and supportive towards peers and differently-abled school-mates"]
[1000,"Treats peers from different social, religious and economic background without any discrimination"]
[1001,"Respects opposite gender and is comfortable in their company"]
[1002,"Does not bully others"]
[1003,"Deals tactfully with the peers having aggressive behaviour."]
[1004,"Shares credit and praise with team members and peers"]
[1005]
[]
[]
["CODE","ATTITUDES Towards SCHOOL PROGRAMMES & ENVIRONMENT"]
[1006,"Attaches a lot of importance to school activities and programmes"]
[1007,"Participates in school activities relating to improvement of environment"]
[1008,"Enthusiastically participates in school programmes"]
[1009,"Shoulders responsibility happily"]
[1010,"Confronts any one who criticises school and school programmes"]
[1011,"Insists on parents to participate/witness school programmes"]
[1012,"Participates in community activities relating to environment"]
[1013,"Takes care of school property"]
[1014,"Sensitive and concerned about environmental degradation"]
[1015,"Takes initiative in planning activities for the betterment of environment"]
[1016,"Punctuality and regularity in school programme"]
[1017,"Participation and volunteer ship in school programme"]
[1018,"Responsible and effective delivery of job"]
[1019,"Leadership skill"]
[1020,"Inspire others"]
[]
["CODE","ATTITUDES Towards  VALUE SYSTEMS"]
[1021,"Attends hoisting of National Flag with respect and decorum"]
[1022,"Integrity/respect diversity(culture, opinion, belief, ability)"]
[1023,"Understands the meaning of tri colour and the Ashok Chakra"]
[1024,"Takes interest in the national freedom struggle"]
[1025,"Responsible and positive attitude towards members of socity"]
[1026,"Displays pride in being an Indian citizen"]
[1027,"Courteous (display spirit) to everyone."]
[1028,"Reads biographies of freedom fighters"]
[1029,"Respects Indian diversity"]
[1030,"Maintains peace and love"]
[1031,"Shows a proactive and responsible behaviour during crisis"]
[1032,"Renders social work enthusiastically"]
[1033,"Respects opposite gender"]
[1034,"Kind and helpful towards classmates and people of community"]
[1035,"Reads and discusses about the Indian culture and heritage"]
[]
["PART 3 : (A) CO-SCHOLASTIC ACTIVITIES (Grading on Five point scale A, B, C, D, E)"]
["CODE","LITERARY & CREATIVE SKILLS"]
[1036,"Participation in literary and creative activity"]
[1037,"Appreciation ability of literary and creative skill"]
[1038,"Express ideas/opinions creativity"]
[1039,"Exhibition of collaborative skill"]
[1040,"Composes poems or lyrics"]
[1041,"Writes short stories"]
[1042,"Participates actively in literary and creative activities at school"]
[1043,"Plans and organizes literary events like debates, recitation, book clubs etc."]
[1044,"Reads books and shows a high degree of awareness in the field of literature"]
[1045,"Appreciates well written or spoken pieces representing various genre’s"]
[1046,"Expresses ideas and opinions creatively in different forms"]
[1047,"Displays originality of ideas and opinions"]
[1048,"Is able to inspire others and involve a large part of the school"]
[1049,"Writes literary criticisms"]
[1050]
[]
["CODE","SCIENTIFIC SKILLS"]
[1051,"Participation in scientific activities at various level"]
[1052,"Display scientific temperamental and implementation in day to day life."]
[1053,"Keen observation/taking initiative and inspire other for scientific activities"]
[1054,"Aware and well informed about scientific skill."]
[1055,"Verifies existing knowledge before accepting"]
[1056,"Does not get carried away by rumours and media reports"]
[1057,"Tries to find new and more effective solutions to problems"]
[1058,"Conducts experiments with efficiency and effectiveness"]
[1059,"Takes keen interest in scientific activities in laboratory and field-based experiment at school, inter-school, state, national and international level"]
[1060,"Takes the initiative to plan, organize and evaluate various science-related events"]
[1061,"Shows a high degree of curiosity and reads science related literature"]
[1062,"Is a keen observer and is able to make decisions"]
[1063,"Displays good experimental skills and a practical knowledge of every day phenomena"]
[1064,"Makes use of technology in making projects and models"]
[1065]
[]
["CODE","INFORMATION AND COMMUNICATION TECHNOLOGY (ICT)"]
[1066,"Is efficient in handling IT equipments and gadgets"]
[1067,"Has a step by step approach to solving a problem"]
[1068,"Is able to apply theoretical knowledge into practical usage"]
[1069,"Plants and adheres to activity and project time lines"]
[1070,"Takes initiative in organizing and participating in technology related events"]
[1071,"Takes keen interest in computer related activities"]
[1072,"Is helpful, guides and facilitates others."]
[1073,"Is a keen observer and is able to make decisions"]
[1074,"Is innovative in ideas"]
[1075,"Adheres to ethical norms of using technology"]
[1076]
[1077]
[1078]
[1079]
[1080]
[]
["CODE","ORGANIZATIONAL AND LEADERSHIP SKILLS (CLUBS)"]
[1081,"Helps and organizes events in that capacity"]
[1082,"Demonstrates ability to work in teams"]
[1083,"Can organize work groups in short time"]
[1084,"Actively participates in School Clubs"]
[1085,"Represents class, school, inter-school and at various other levels"]
[1086,"Exhibits collaboration and co-ordination skills while executing the tasks"]
[1087,"Displays originality of ideas and the ability to see them through"]
[1088,"Delivers assigned jobs with responsibility"]
[1089,"Is a keen observer and is able to take decisions"]
[1090]
[1091]
[1092]
[1093]
[1094]
[1095]
[]
["PART 3 : (B) HEALTH AND PHYSICAL EDUCATION (Grading on Five point scale A, B, C, D, E)"]
["CODE","Yoga"]
[1096,"Shows keenness and interest"]
[1097,"Is able to relax completely during exercises"]
[1098,"Sits  comfortably in the correct steady, straight posture"]
[1099,"Is able to remain undisturbed for a while"]
[1100,"Demonstrates physical fitness and agility"]
[1101,"Displays courage and determination"]
[1102,"Demonstrates flexibility of the body"]
[1103,"Organizes and provides leadership in this area"]
[1104,"Takes initiative and interest in Yoga"]
[1105]
[1106]
[1107]
[1108]
[1109]
[1110]
[]
["CODE","SPORTS / INDIGENOUS SPORTS"]
[1111,"Innate talent in an identified sports/activity participation"]
[1112,"Adaptive power according to situation "]
[1113,"Good hand eye coordination"]
[1114,"Ability to evaluate and react appropriately to strategic situations"]
[1115,"Demonstration sportsmanship"]
[1116,"Take initiative and inspires  other"]
[1117,"Responsible and effective delivery of job"]
[1118,"Displays an innate talent in an identified sport"]
[1119,"Ability to produce strength in the shortest possible time"]
[1120,"Is agile and is able to change direction quickly during the game/match and is flexible."]
[1121,"Displays durability: (The ability to withstand physical exercise over a long period of time."]
[1122,"Shows good hand-eye coordination: the ability to react quickly to sensory perception."]
[1123,"Demonstrates sportsmanship"]
[1124,"Displays a healthy team spirit"]
[1125,"Punctuality and regularity for practice etc."]
[]
["CODE","FIRST AID"]
[1126]
[1127]
[1128]
[1129]
[1130]
[1131]
[1132]
[1133]
[1134]
[1135]
[1136]
[1137]
[1138]
[1139]
[1140]
[]
["CODE","GARDENING/ SHRAMDAAN"]
[1141]
[1142]
[1143]
[1144]
[1145]
[1146]
[1147]
[1148]
[1149]
[1150]
[1151]
[1152]
[1153]
[1154]
[1155]

{"sheet":"custom-coscho","index":1,"n_rows":86,"n_cols":7,"rows_kept":86,"cut":false,"hidden":false,"merged":[[2,2,2,3]]}
[]
[]
[null,null,"Manage Co-Scholastic 3 A & B"]
[]
["Roll No.","Name","3 (a) 1","3 (a) 2","3 (b) 1","3 (b) 2"]
[null,null,"Select from List"]
[{"$f":"eSPAR!A6","v":1},{"$f":"eSPAR!B6","v":0},"Literary & Creative Skill","Scientific Skill","Sports/ Indigenous Sports","Yoga","Literary & Creative Skill"]
[{"$f":"eSPAR!A7","v":0},{"$f":"eSPAR!B7","v":0},"Literary & Creative Skill","Scientific Skill","Sports/ Indigenous Sports","Yoga","Scientific Skill"]
[{"$f":"eSPAR!A8","v":0},{"$f":"eSPAR!B8","v":0},"Literary & Creative Skill","Scientific Skill","Sports/ Indigenous Sports","Yoga","Information & Communication Technology (ICT)"]
[{"$f":"eSPAR!A9","v":0},{"$f":"eSPAR!B9","v":0},"Literary & Creative Skill","Scientific Skill","Sports/ Indigenous Sports","Yoga","Organisational & Leadership Skill (Clubs)"]
[{"$f":"eSPAR!A10","v":0},{"$f":"eSPAR!B10","v":0},"Literary & Creative Skill","Scientific Skill","Sports/ Indigenous Sports","Yoga"]
[{"$f":"eSPAR!A11","v":0},{"$f":"eSPAR!B11","v":0},"Literary & Creative Skill","Scientific Skill","Sports/ Indigenous Sports","Yoga"]
[{"$f":"eSPAR!A12","v":0},{"$f":"eSPAR!B12","v":0},"Literary & Creative Skill","Scientific Skill","Sports/ Indigenous Sports","Yoga","Sports/ Indigenous Sports"]
[{"$f":"eSPAR!A13","v":0},{"$f":"eSPAR!B13","v":0},"Literary & Creative Skill","Scientific Skill","Sports/ Indigenous Sports","Yoga","Yoga"]
[{"$f":"eSPAR!A14","v":0},{"$f":"eSPAR!B14","v":0},"Literary & Creative Skill","Scientific Skill","Sports/ Indigenous Sports","Yoga","First Aid"]
[{"$f":"eSPAR!A15","v":0},{"$f":"eSPAR!B15","v":0},"Literary & Creative Skill","Scientific Skill","Sports/ Indigenous Sports","Yoga","Gardening/ Shramdaan"]
[{"$f":"eSPAR!A16","v":0},{"$f":"eSPAR!B16","v":0},"Literary & Creative Skill","Scientific Skill","Sports/ Indigenous Sports","Yoga"]
[{"$f":"eSPAR!A17","v":0},{"$f":"eSPAR!B17","v":0},"Literary & Creative Skill","Scientific Skill","Sports/ Indigenous Sports","Yoga"]
[{"$f":"eSPAR!A18","v":0},{"$f":"eSPAR!B18","v":0},"Literary & Creative Skill","Scientific Skill","Sports/ Indigenous Sports","Yoga"]
[{"$f":"eSPAR!A19","v":0},{"$f":"eSPAR!B19","v":0},"Literary & Creative Skill","Scientific Skill","Sports/ Indigenous Sports","Yoga"]
[{"$f":"eSPAR!A20","v":0},{"$f":"eSPAR!B20","v":0},"Literary & Creative Skill","Scientific Skill","Sports/ Indigenous Sports","Yoga"]
[{"$f":"eSPAR!A21","v":0},{"$f":"eSPAR!B21","v":0},"Literary & Creative Skill","Scientific Skill","Sports/ Indigenous Sports","Yoga"]
[{"$f":"eSPAR!A22","v":0},{"$f":"eSPAR!B22","v":0},"Literary & Creative Skill","Scientific Skill","Sports/ Indigenous Sports","Yoga"]
[{"$f":"eSPAR!A23","v":0},{"$f":"eSPAR!B23","v":0},"Literary & Creative Skill","Scientific Skill","Sports/ Indigenous Sports","Yoga"]
[{"$f":"eSPAR!A24","v":0},{"$f":"eSPAR!B24","v":0},"Literary & Creative Skill","Scientific Skill","Sports/ Indigenous Sports","Yoga"]
[{"$f":"eSPAR!A25","v":0},{"$f":"eSPAR!B25","v":0},"Literary & Creative Skill","Scientific Skill","Sports/ Indigenous Sports","Yoga"]
[{"$f":"eSPAR!A26","v":0},{"$f":"eSPAR!B26","v":0},"Literary & Creative Skill","Scientific Skill","Sports/ Indigenous Sports","Yoga"]
[{"$f":"eSPAR!A27","v":0},{"$f":"eSPAR!B27","v":0},"Literary & Creative Skill","Scientific Skill","Sports/ Indigenous Sports","Yoga"]
[{"$f":"eSPAR!A28","v":0},{"$f":"eSPAR!B28","v":0},"Literary & Creative Skill","Scientific Skill","Sports/ Indigenous Sports","Yoga"]
[{"$f":"eSPAR!A29","v":0},{"$f":"eSPAR!B29","v":0},"Literary & Creative Skill","Scientific Skill","Sports/ Indigenous Sports","Yoga"]
[{"$f":"eSPAR!A30","v":0},{"$f":"eSPAR!B30","v":0},"Literary & Creative Skill","Scientific Skill","Sports/ Indigenous Sports","Yoga"]
[{"$f":"eSPAR!A31","v":0},{"$f":"eSPAR!B31","v":0},"Literary & Creative Skill","Scientific Skill","Sports/ Indigenous Sports","Yoga"]
[{"$f":"eSPAR!A32","v":0},{"$f":"eSPAR!B32","v":0},"Literary & Creative Skill","Scientific Skill","Sports/ Indigenous Sports","Yoga"]
[{"$f":"eSPAR!A33","v":0},{"$f":"eSPAR!B33","v":0},"Literary & Creative Skill","Scientific Skill","Sports/ Indigenous Sports","Yoga"]
[{"$f":"eSPAR!A34","v":0},{"$f":"eSPAR!B34","v":0},"Literary & Creative Skill","Scientific Skill","Sports/ Indigenous Sports","Yoga"]
[{"$f":"eSPAR!A35","v":0},{"$f":"eSPAR!B35","v":0},"Literary & Creative Skill","Scientific Skill","Sports/ Indigenous Sports","Yoga"]
[{"$f":"eSPAR!A36","v":0},{"$f":"eSPAR!B36","v":0},"Literary & Creative Skill","Scientific Skill","Sports/ Indigenous Sports","Yoga"]
[{"$f":"eSPAR!A37","v":0},{"$f":"eSPAR!B37","v":0},"Literary & Creative Skill","Scientific Skill","Sports/ Indigenous Sports","Yoga"]
[{"$f":"eSPAR!A38","v":0},{"$f":"eSPAR!B38","v":0},"Literary & Creative Skill","Scientific Skill","Sports/ Indigenous Sports","Yoga"]
[{"$f":"eSPAR!A39","v":0},{"$f":"eSPAR!B39","v":0},"Literary & Creative Skill","Scientific Skill","Sports/ Indigenous Sports","Yoga"]
[{"$f":"eSPAR!A40","v":0},{"$f":"eSPAR!B40","v":0},"Literary & Creative Skill","Scientific Skill","Sports/ Indigenous Sports","Yoga"]
[{"$f":"eSPAR!A41","v":0},{"$f":"eSPAR!B41","v":0},"Literary & Creative Skill","Scientific Skill","Sports/ Indigenous Sports","Yoga"]
[{"$f":"eSPAR!A42","v":0},{"$f":"eSPAR!B42","v":0},"Literary & Creative Skill","Scientific Skill","Sports/ Indigenous Sports","Yoga"]
[{"$f":"eSPAR!A43","v":0},{"$f":"eSPAR!B43","v":0},"Literary & Creative Skill","Scientific Skill","Sports/ Indigenous Sports","Yoga"]
[{"$f":"eSPAR!A44","v":0},{"$f":"eSPAR!B44","v":0},"Literary & Creative Skill","Scientific Skill","Sports/ Indigenous Sports","Yoga"]
[{"$f":"eSPAR!A45","v":0},{"$f":"eSPAR!B45","v":0},"Literary & Creative Skill","Scientific Skill","Sports/ Indigenous Sports","Yoga"]
[{"$f":"eSPAR!A46","v":0},{"$f":"eSPAR!B46","v":0},"Literary & Creative Skill","Scientific Skill","Sports/ Indigenous Sports","Yoga"]
[{"$f":"eSPAR!A47","v":0},{"$f":"eSPAR!B47","v":0},"Literary & Creative Skill","Scientific Skill","Sports/ Indigenous Sports","Yoga"]
[{"$f":"eSPAR!A48","v":0},{"$f":"eSPAR!B48","v":0},"Literary & Creative Skill","Scientific Skill","Sports/ Indigenous Sports","Yoga"]
[{"$f":"eSPAR!A49","v":0},{"$f":"eSPAR!B49","v":0},"Literary & Creative Skill","Scientific Skill","Sports/ Indigenous Sports","Yoga"]
[{"$f":"eSPAR!A50","v":0},{"$f":"eSPAR!B50","v":0},"Literary & Creative Skill","Scientific Skill","Sports/ Indigenous Sports","Yoga"]
[{"$f":"eSPAR!A51","v":0},{"$f":"eSPAR!B51","v":0},"Literary & Creative Skill","Scientific Skill","Sports/ Indigenous Sports","Yoga"]
[{"$f":"eSPAR!A52","v":0},{"$f":"eSPAR!B52","v":0},"Literary & Creative Skill","Scientific Skill","Sports/ Indigenous Sports","Yoga"]
[{"$f":"eSPAR!A53","v":0},{"$f":"eSPAR!B53","v":0},"Literary & Creative Skill","Scientific Skill","Sports/ Indigenous Sports","Yoga"]
[{"$f":"eSPAR!A54","v":0},{"$f":"eSPAR!B54","v":0},"Literary & Creative Skill","Scientific Skill","Sports/ Indigenous Sports","Yoga"]
[{"$f":"eSPAR!A55","v":0},{"$f":"eSPAR!B55","v":0},"Literary & Creative Skill","Scientific Skill","Sports/ Indigenous Sports","Yoga"]
[{"$f":"eSPAR!A56","v":0},{"$f":"eSPAR!B56","v":0},"Literary & Creative Skill","Scientific Skill","Sports/ Indigenous Sports","Yoga"]
[{"$f":"eSPAR!A57","v":0},{"$f":"eSPAR!B57","v":0},"Literary & Creative Skill","Scientific Skill","Sports/ Indigenous Sports","Yoga"]
[{"$f":"eSPAR!A58","v":0},{"$f":"eSPAR!B58","v":0},"Literary & Creative Skill","Scientific Skill","Sports/ Indigenous Sports","Yoga"]
[{"$f":"eSPAR!A59","v":0},{"$f":"eSPAR!B59","v":0},"Literary & Creative Skill","Scientific Skill","Sports/ Indigenous Sports","Yoga"]
[{"$f":"eSPAR!A60","v":0},{"$f":"eSPAR!B60","v":0},"Literary & Creative Skill","Scientific Skill","Sports/ Indigenous Sports","Yoga"]
[{"$f":"eSPAR!A61","v":0},{"$f":"eSPAR!B61","v":0},"Literary & Creative Skill","Scientific Skill","Sports/ Indigenous Sports","Yoga"]
[{"$f":"eSPAR!A62","v":0},{"$f":"eSPAR!B62","v":0},"Literary & Creative Skill","Scientific Skill","Sports/ Indigenous Sports","Yoga"]
[{"$f":"eSPAR!A63","v":0},{"$f":"eSPAR!B63","v":0},"Literary & Creative Skill","Scientific Skill","Sports/ Indigenous Sports","Yoga"]
[{"$f":"eSPAR!A64","v":0},{"$f":"eSPAR!B64","v":0},"Literary & Creative Skill","Scientific Skill","Sports/ Indigenous Sports","Yoga"]
[{"$f":"eSPAR!A65","v":0},{"$f":"eSPAR!B65","v":0},"Literary & Creative Skill","Scientific Skill","Sports/ Indigenous Sports","Yoga"]
[{"$f":"eSPAR!A66","v":0},{"$f":"eSPAR!B66","v":0},"Literary & Creative Skill","Scientific Skill","Sports/ Indigenous Sports","Yoga"]
[{"$f":"eSPAR!A67","v":0},{"$f":"eSPAR!B67","v":0},"Literary & Creative Skill","Scientific Skill","Sports/ Indigenous Sports","Yoga"]
[{"$f":"eSPAR!A68","v":0},{"$f":"eSPAR!B68","v":0},"Literary & Creative Skill","Scientific Skill","Sports/ Indigenous Sports","Yoga"]
[{"$f":"eSPAR!A69","v":0},{"$f":"eSPAR!B69","v":0},"Literary & Creative Skill","Scientific Skill","Sports/ Indigenous Sports","Yoga"]
[{"$f":"eSPAR!A70","v":0},{"$f":"eSPAR!B70","v":0},"Literary & Creative Skill","Scientific Skill","Sports/ Indigenous Sports","Yoga"]
[{"$f":"eSPAR!A71","v":0},{"$f":"eSPAR!B71","v":0},"Literary & Creative Skill","Scientific Skill","Sports/ Indigenous Sports","Yoga"]
[{"$f":"eSPAR!A72","v":0},{"$f":"eSPAR!B72","v":0},"Literary & Creative Skill","Scientific Skill","Sports/ Indigenous Sports","Yoga"]
[{"$f":"eSPAR!A73","v":0},{"$f":"eSPAR!B73","v":0},"Literary & Creative Skill","Scientific Skill","Sports/ Indigenous Sports","Yoga"]
[{"$f":"eSPAR!A74","v":0},{"$f":"eSPAR!B74","v":0},"Literary & Creative Skill","Scientific Skill","Sports/ Indigenous Sports","Yoga"]
[{"$f":"eSPAR!A75","v":0},{"$f":"eSPAR!B75","v":0},"Literary & Creative Skill","Scientific Skill","Sports/ Indigenous Sports","Yoga"]
[{"$f":"eSPAR!A76","v":0},{"$f":"eSPAR!B76","v":0},"Literary & Creative Skill","Scientific Skill","Sports/ Indigenous Sports","Yoga"]
[{"$f":"eSPAR!A77","v":0},{"$f":"eSPAR!B77","v":0},"Literary & Creative Skill","Scientific Skill","Sports/ Indigenous Sports","Yoga"]
[{"$f":"eSPAR!A78","v":0},{"$f":"eSPAR!B78","v":0},"Literary & Creative Skill","Scientific Skill","Sports/ Indigenous Sports","Yoga"]
[{"$f":"eSPAR!A79","v":0},{"$f":"eSPAR!B79","v":0},"Literary & Creative Skill","Scientific Skill","Sports/ Indigenous Sports","Yoga"]
[{"$f":"eSPAR!A80","v":0},{"$f":"eSPAR!B80","v":0},"Literary & Creative Skill","Scientific Skill","Sports/ Indigenous Sports","Yoga"]
[{"$f":"eSPAR!A81","v":0},{"$f":"eSPAR!B81","v":0},"Literary & Creative Skill","Scientific Skill","Sports/ Indigenous Sports","Yoga"]
[{"$f":"eSPAR!A82","v":0},{"$f":"eSPAR!B82","v":0},"Literary & Creative Skill","Scientific Skill","Sports/ Indigenous Sports","Yoga"]
[{"$f":"eSPAR!A83","v":0},{"$f":"eSPAR!B83","v":0},"Literary & Creative Skill","Scientific Skill","Sports/ Indigenous Sports","Yoga"]
[{"$f":"eSPAR!A84","v":0},{"$f":"eSPAR!B84","v":0},"Literary & Creative Skill","Scientific Skill","Sports/ Indigenous Sports","Yoga"]
[{"$f":"eSPAR!A85","v":0},{"$f":"eSPAR!B85","v":0},"Literary & Creative Skill","Scientific Skill","Sports/ Indigenous Sports","Yoga"]

{"sheet":"Internal","index":2,"n_rows":30,"n_cols":6,"rows_kept":30,"cut":false,"hidden":false,"merged":[[33,1,33,6],[1,1,1,6],[28,1,28,6],[29,1,29,6],[30,1,30,6],[2,1,2,2],[2,4,2,5],[24,2,24,6],[25,2,25,6],[26,2,26,6],[32,1,32,6]]}
[]
[null,"School Information"]
[null,"SCHOLASTIC",null,"GP","CO-SCHOLASTIC"]
[null,0,"E2","-",0,"F"]
[null,21,"E1","-",0.65,"D"]
[null,33,"D",4,0.69,"D+"]
[null,41,"C2",5,0.7,"C"]
[null,51,"C1",6,0.83,"C+"]
[null,61,"B2",7,0.85,"B"]
[null,71,"B1",8,0.92,"B+"]
[null,81,"A2",9,0.95,"A"]
[null,91,"A1",10,0.98,"A+"]
[]
[]
[null,0,"E2",null,"A",5]
[null,2.1,"E1",null,"B",4]
[null,3.3,"D",null,"C",3]
[null,4.0999999999999996,"C2",null,"D",2]
[null,5.0999999999999996,"C1",null,"E",1]
[null,6.1,"B2"]
[null,7.1,"B1"]
[null,8.1,"A2"]
[null,9.1,"A1"]
[]
[null,"School Name","ABC Public School"]
[null,"Aff. No.",120120]
[null,"Address","School Address1, City ABC, Delhi"]
[]
[null,"Email : schoolname@gmail.com"]
[null,"Tel. No. 011-2222222"]

{"sheet":"eSPAR","index":3,"n_rows":6,"n_cols":7,"rows_kept":6,"cut":false,"hidden":false,"merged":[[1,0,1,6]]}
[]
["ENTER Students Particulars"]
[]
[]
["Adm. No.","Name","Section","Board Roll Number","Date of Birth","Mother's Name","Father's Name"]
[1]

{"sheet":"eDESIND","index":4,"n_rows":86,"n_cols":28,"rows_kept":86,"cut":false,"hidden":false,"merged":[[4,16,4,17],[4,18,4,19],[4,20,4,21],[0,0,0,11],[1,0,1,11],[2,0,2,1],[2,2,2,7],[2,8,2,11],[4,22,4,23],[2,12,2,19],[2,20,3,23],[2,24,3,27],[3,0,5,0],[3,1,5,1],[3,2,4,3],[3,4,4,5],[3,6,4,7],[3,8,4,9],[3,10,4,11],[3,12,3,19],[4,24,4,25],[4,26,4,27],[4,12,4,13],[4,14,4,15]]}
["Enter DI Code & Grade"]
[]
[null,null,"2 (A) : LIFE SKILLS (Grading on Five point scale A, B, C, D, E)",null,null,null,null,null,"2 (B) & 2 C",null,null,null,"2 (D) : ATTITUDES & VALUES (Grading on Five point scale A, B, C, D, E)",null,null,null,null,null,null,null,"PART 3 : (A) CO-SCHOLASTIC ACTIVITIES (Grading on Five point scale A, B, C, D, E)",null,null,null,"PART 3 : (B) HEALTH AND PHYSICAL EDUCATION (Grading on Five point scale A, B, C, D, E)"]
["Roll No.","Name","THINKING SKILLS",null,"SOCIAL SKILLS",null,"EMOTIONAL SKILLS",null,"2- B) WORK EDUCATION",null,"2 -C) VISUAL AND PERFORMING ARTS",null,"ATTITUDES TOWARDS"]
[null,null,null,null,null,null,null,null,null,null,null,null,"Teachers",null,"SCHOOL-MATES",null,"SCHOOL PROGRAMMES & ENVIRONMENT",null,"VALUE SYSTEMS",null,"3 (a) 1",null,"3 (a) 2",null,"3 (b) 1",null,"3 (b) 2"]
[null,null,"Grade","Enter DI Code","Grade","Enter DI Code","Grade","Enter DI Code","Grade","Enter DI Code","Grade","Enter DI Code","Grade","Enter DI Code","Grade","Enter DI Code","Grade","Enter DI Code","Grade","Enter DI Code","Grade","Enter DI Code","Grade","Enter DI Code","Grade","Enter DI Code","Grade","Enter DI Code"]
[{"$f":"eSPAR!A6","v":1},{"$f":"eSPAR!B6","v":0},"A",901]
[{"$f":"eSPAR!A7","v":0},{"$f":"eSPAR!B7","v":0}]
[{"$f":"eSPAR!A8","v":0},{"$f":"eSPAR!B8","v":0}]
[{"$f":"eSPAR!A9","v":0},{"$f":"eSPAR!B9","v":0}]
[{"$f":"eSPAR!A10","v":0},{"$f":"eSPAR!B10","v":0}]
[{"$f":"eSPAR!A11","v":0},{"$f":"eSPAR!B11","v":0}]
[{"$f":"eSPAR!A12","v":0},{"$f":"eSPAR!B12","v":0}]
[{"$f":"eSPAR!A13","v":0},{"$f":"eSPAR!B13","v":0}]
[{"$f":"eSPAR!A14","v":0},{"$f":"eSPAR!B14","v":0}]
[{"$f":"eSPAR!A15","v":0},{"$f":"eSPAR!B15","v":0}]
[{"$f":"eSPAR!A16","v":0},{"$f":"eSPAR!B16","v":0}]
[{"$f":"eSPAR!A17","v":0},{"$f":"eSPAR!B17","v":0}]
[{"$f":"eSPAR!A18","v":0},{"$f":"eSPAR!B18","v":0}]
[{"$f":"eSPAR!A19","v":0},{"$f":"eSPAR!B19","v":0}]
[{"$f":"eSPAR!A20","v":0},{"$f":"eSPAR!B20","v":0}]
[{"$f":"eSPAR!A21","v":0},{"$f":"eSPAR!B21","v":0}]
[{"$f":"eSPAR!A22","v":0},{"$f":"eSPAR!B22","v":0}]
[{"$f":"eSPAR!A23","v":0},{"$f":"eSPAR!B23","v":0}]
[{"$f":"eSPAR!A24","v":0},{"$f":"eSPAR!B24","v":0}]
[{"$f":"eSPAR!A25","v":0},{"$f":"eSPAR!B25","v":0}]
[{"$f":"eSPAR!A26","v":0},{"$f":"eSPAR!B26","v":0}]
[{"$f":"eSPAR!A27","v":0},{"$f":"eSPAR!B27","v":0}]
[{"$f":"eSPAR!A28","v":0},{"$f":"eSPAR!B28","v":0}]
[{"$f":"eSPAR!A29","v":0},{"$f":"eSPAR!B29","v":0}]
[{"$f":"eSPAR!A30","v":0},{"$f":"eSPAR!B30","v":0}]
[{"$f":"eSPAR!A31","v":0},{"$f":"eSPAR!B31","v":0}]
[{"$f":"eSPAR!A32","v":0},{"$f":"eSPAR!B32","v":0}]
[{"$f":"eSPAR!A33","v":0},{"$f":"eSPAR!B33","v":0}]
[{"$f":"eSPAR!A34","v":0},{"$f":"eSPAR!B34","v":0}]
[{"$f":"eSPAR!A35","v":0},{"$f":"eSPAR!B35","v":0}]
[{"$f":"eSPAR!A36","v":0},{"$f":"eSPAR!B36","v":0}]
[{"$f":"eSPAR!A37","v":0},{"$f":"eSPAR!B37","v":0}]
[{"$f":"eSPAR!A38","v":0},{"$f":"eSPAR!B38","v":0}]
[{"$f":"eSPAR!A39","v":0},{"$f":"eSPAR!B39","v":0}]
[{"$f":"eSPAR!A40","v":0},{"$f":"eSPAR!B40","v":0}]
[{"$f":"eSPAR!A41","v":0},{"$f":"eSPAR!B41","v":0}]
[{"$f":"eSPAR!A42","v":0},{"$f":"eSPAR!B42","v":0}]
[{"$f":"eSPAR!A43","v":0},{"$f":"eSPAR!B43","v":0}]
[{"$f":"eSPAR!A44","v":0},{"$f":"eSPAR!B44","v":0}]
[{"$f":"eSPAR!A45","v":0},{"$f":"eSPAR!B45","v":0}]
[{"$f":"eSPAR!A46","v":0},{"$f":"eSPAR!B46","v":0}]
[{"$f":"eSPAR!A47","v":0},{"$f":"eSPAR!B47","v":0}]
[{"$f":"eSPAR!A48","v":0},{"$f":"eSPAR!B48","v":0}]
[{"$f":"eSPAR!A49","v":0},{"$f":"eSPAR!B49","v":0}]
[{"$f":"eSPAR!A50","v":0},{"$f":"eSPAR!B50","v":0}]
[{"$f":"eSPAR!A51","v":0},{"$f":"eSPAR!B51","v":0}]
[{"$f":"eSPAR!A52","v":0},{"$f":"eSPAR!B52","v":0}]
[{"$f":"eSPAR!A53","v":0},{"$f":"eSPAR!B53","v":0}]
[{"$f":"eSPAR!A54","v":0},{"$f":"eSPAR!B54","v":0}]
[{"$f":"eSPAR!A55","v":0},{"$f":"eSPAR!B55","v":0}]
[{"$f":"eSPAR!A56","v":0},{"$f":"eSPAR!B56","v":0}]
[{"$f":"eSPAR!A57","v":0},{"$f":"eSPAR!B57","v":0}]
[{"$f":"eSPAR!A58","v":0},{"$f":"eSPAR!B58","v":0}]
[{"$f":"eSPAR!A59","v":0},{"$f":"eSPAR!B59","v":0}]
[{"$f":"eSPAR!A60","v":0},{"$f":"eSPAR!B60","v":0}]
[{"$f":"eSPAR!A61","v":0},{"$f":"eSPAR!B61","v":0}]
[{"$f":"eSPAR!A62","v":0},{"$f":"eSPAR!B62","v":0}]
[{"$f":"eSPAR!A63","v":0},{"$f":"eSPAR!B63","v":0}]
[{"$f":"eSPAR!A64","v":0},{"$f":"eSPAR!B64","v":0}]
[{"$f":"eSPAR!A65","v":0},{"$f":"eSPAR!B65","v":0}]
[{"$f":"eSPAR!A66","v":0},{"$f":"eSPAR!B66","v":0}]
[{"$f":"eSPAR!A67","v":0},{"$f":"eSPAR!B67","v":0}]
[{"$f":"eSPAR!A68","v":0},{"$f":"eSPAR!B68","v":0}]
[{"$f":"eSPAR!A69","v":0},{"$f":"eSPAR!B69","v":0}]
[{"$f":"eSPAR!A70","v":0},{"$f":"eSPAR!B70","v":0}]
[{"$f":"eSPAR!A71","v":0},{"$f":"eSPAR!B71","v":0}]
[{"$f":"eSPAR!A72","v":0},{"$f":"eSPAR!B72","v":0}]
[{"$f":"eSPAR!A73","v":0},{"$f":"eSPAR!B73","v":0}]
[{"$f":"eSPAR!A74","v":0},{"$f":"eSPAR!B74","v":0}]
[{"$f":"eSPAR!A75","v":0},{"$f":"eSPAR!B75","v":0}]
[{"$f":"eSPAR!A76","v":0},{"$f":"eSPAR!B76","v":0}]
[{"$f":"eSPAR!A77","v":0},{"$f":"eSPAR!B77","v":0}]
[{"$f":"eSPAR!A78","v":0},{"$f":"eSPAR!B78","v":0}]
[{"$f":"eSPAR!A79","v":0},{"$f":"eSPAR!B79","v":0}]
[{"$f":"eSPAR!A80","v":0},{"$f":"eSPAR!B80","v":0}]
[{"$f":"eSPAR!A81","v":0},{"$f":"eSPAR!B81","v":0}]
[{"$f":"eSPAR!A82","v":0},{"$f":"eSPAR!B82","v":0}]
[{"$f":"eSPAR!A83","v":0},{"$f":"eSPAR!B83","v":0}]
[{"$f":"eSPAR!A84","v":0},{"$f":"eSPAR!B84","v":0}]
[{"$f":"eSPAR!A85","v":0},{"$f":"eSPAR!B85","v":0}]

{"sheet":"pRCF","index":5,"n_rows":41,"n_cols":7,"rows_kept":41,"cut":false,"hidden":false,"merged":[[42,0,42,1],[42,4,42,6],[33,1,33,4],[41,4,41,6],[41,0,41,2],[35,0,35,6],[36,1,36,4],[37,1,37,4],[38,1,38,4],[34,1,34,4],[32,1,32,4],[14,0,14,6],[27,1,27,4],[28,1,28,4],[29,1,29,4],[30,1,30,4],[19,0,19,6],[25,0,25,6],[15,1,15,4],[20,1,20,4],[26,1,26,4],[23,1,23,4],[24,1,24,4],[16,1,16,4],[17,1,17,4],[18,1,18,4],[21,1,21,4],[31,0,31,6],[0,0,0,6],[2,0,2,6],[8,4,8,5],[3,0,3,6],[13,0,13,6],[1,0,1,6],[5,0,5,6],[6,0,6,6],[22,0,22,6]]}
[{"$f":"'pRCF '!A1:G1","v":"ABC Public School"}]
[{"$f":"'pRCF '!A2:G2","v":"Affiliated to CBSE, Affiliation No.  120120"}]
[{"$f":"'pRCF '!A3:G3","v":"School Address1, City ABC, Delhi"}]
[{"$f":"'pRCF '!A4:G4","v":"Tel. No. 011-2222222, Email : schoolname@gmail.com"}]
[]
["Co-Scholastic Grade Certificate Class X 2017"]
[]
["Name of the Student",{"$f":"'pRCF '!B8","v":0}]
["Admission No.",1,null,"Section",{"$f":"'pRCF '!E9","v":0}]
["Roll No. (Alloted by CBSE)",{"$f":"'pRCF '!B10","v":0}]
["Date of Birth",{"$f":"'pRCF '!B11","v":0}]
["Mother's Name",{"$f":"'pRCF '!B12","v":0}]
["Father's Name",{"$f":"'pRCF '!B13","v":0}]
[]
["2 (A) : Life Skills"]
["Life Skills","Descriptive Indicator",null,null,null,"Grade","Grade Point"]
["Thinking Skills",{"$f":"'pRCF '!B17","v":"Student demonstrates the ability to Be original, flexible and imaginative "},null,null,null,{"$f":"'pRCF '!F17","v":"A"},{"$f":"'pRCF '!G17","v":5}]
["Social Skills",{"$f":"'pRCF '!B18","v":{"$error":"#N/A"}},null,null,null,{"$f":"'pRCF '!F18","v":0},{"$f":"'pRCF '!G18","v":{"$error":"#N/A"}}]
["Emotional Skills",{"$f":"'pRCF '!B19","v":{"$error":"#N/A"}},null,null,null,{"$f":"'pRCF '!F19","v":0},{"$f":"'pRCF '!G19","v":{"$error":"#N/A"}}]
["2 (B)"]
["Work Education","Descriptive Indicator",null,null,null,"Grade","Grade Point"]
["Work Education",{"$f":"'pRCF '!B22","v":{"$error":"#N/A"}},null,null,null,{"$f":"'pRCF '!F22","v":0},{"$f":"'pRCF '!G22","v":{"$error":"#N/A"}}]
["2 (C)"]
[null,"Descriptive Indicator",null,null,null,"Grade","Grade Point"]
["Visual and Performing Arts",{"$f":"'pRCF '!B25","v":{"$error":"#N/A"}},null,null,null,{"$f":"'pRCF '!F25","v":0},{"$f":"'pRCF '!G25","v":{"$error":"#N/A"}}]
["2 (D) Attitudes and Values"]
["Attitude towards","Descriptive Indicator",null,null,null,"Grade","Grade Point"]
["Teachers",{"$f":"'pRCF '!B28","v":{"$error":"#N/A"}},null,null,null,{"$f":"'pRCF '!F28","v":0},{"$f":"'pRCF '!G28","v":{"$error":"#N/A"}}]
["Schoolmates",{"$f":"'pRCF '!B29","v":{"$error":"#N/A"}},null,null,null,{"$f":"'pRCF '!F29","v":0},{"$f":"'pRCF '!G29","v":{"$error":"#N/A"}}]
["School Programmes & Environment",{"$f":"'pRCF '!B30","v":{"$error":"#N/A"}},null,null,null,{"$f":"'pRCF '!F30","v":0},{"$f":"'pRCF '!G30","v":{"$error":"#N/A"}}]
["Value Systems",{"$f":"'pRCF '!B31","v":{"$error":"#N/A"}},null,null,null,{"$f":"'pRCF '!F31","v":0},{"$f":"'pRCF '!G31","v":{"$error":"#N/A"}}]
["3 (A) Co-Curricular Activities"]
["Activity","Descriptive Indicator",null,null,null,"Grade","Grade Point"]
[{"$f":"'pRCF '!A34","v":"Literary & Creative Skill"},{"$f":"'pRCF '!B34","v":{"$error":"#N/A"}},null,null,null,{"$f":"'pRCF '!F34","v":0},{"$f":"'pRCF '!G34","v":{"$error":"#N/A"}}]
[{"$f":"'pRCF '!A35","v":"Scientific Skill"},{"$f":"'pRCF '!B35","v":{"$error":"#N/A"}},null,null,null,{"$f":"'pRCF '!F35","v":0},{"$f":"'pRCF '!G35","v":{"$error":"#N/A"}}]
["3 (B) Physical and Health Education:"]
["Activity","Descriptive Indicator",null,null,null,"Grade","Grade Point"]
[{"$f":"'pRCF '!A38","v":"Sports/ Indigenous Sports"},{"$f":"'pRCF '!B38","v":{"$error":"#N/A"}},null,null,null,{"$f":"'pRCF '!F38","v":0},{"$f":"'pRCF '!G38","v":{"$error":"#N/A"}}]
[{"$f":"'pRCF '!A39","v":"Yoga"},{"$f":"'pRCF '!B39","v":{"$error":"#N/A"}},null,null,null,{"$f":"'pRCF '!F39","v":0},{"$f":"'pRCF '!G39","v":{"$error":"#N/A"}}]
[]
[null,null,null,null,null,null,{"$f":"'pRCF '!G41","v":{"$error":"#N/A"}}]

{"sheet":"Main","index":6,"n_rows":16,"n_cols":6,"rows_kept":16,"cut":false,"hidden":false,"merged":[[7,5,7,8],[11,5,12,8],[15,2,15,8],[14,2,14,8],[0,2,0,8],[12,2,12,3],[4,2,4,3],[11,2,11,3],[1,2,1,8],[2,2,2,8],[5,2,5,3],[4,5,4,8],[7,2,7,3],[6,2,6,3],[8,2,8,3],[9,2,9,3],[10,2,10,3],[9,5,10,8]]}
[null,null,{"$f":"Internal!C25","v":"ABC Public School"}]
[null,null,{"$f":"Internal!C27","v":"School Address1, City ABC, Delhi"}]
[null,null,"Co-Scholastic Grade Certificate Class X (2017)"]
[]
[null,null,"Commands",null,null,"How to Use This Utility?"]
[null,null,"Enter Student Particulars"]
[null,null,"DI Code List"]
[null,null,"Enter DI Codes & Grade"]
[null,null,"Customise Co-Scholastic Areas"]
[null,null,"Print Co-Scholastic Certificate",null,null,"For Step-By-Step Tutorial or Help, kindly visit the page below -"]
[]
[null,null,null,null,null,"http://parashosting.com/CBSE-Co-Scholastic-Grade-Certificate-Class-X-2017.html"]
[null,null,"Update School Info"]
[]
[null,null,"Utility Developed by : Paras Hosting,    Visit us at : www.ParasHosting.com"]
[null,null,"Help Line No. 097293 71551    Email : response@parasHosting.com"]

{"sheet":"pRCF ","index":7,"n_rows":41,"n_cols":7,"rows_kept":41,"cut":false,"hidden":true,"merged":[[17,1,17,4],[0,0,0,6],[1,0,1,6],[2,0,2,6],[3,0,3,6],[5,0,5,6],[6,0,6,6],[8,4,8,5],[13,0,13,6],[14,0,14,6],[15,1,15,4],[16,1,16,4],[29,1,29,4],[18,1,18,4],[19,0,19,6],[20,1,20,4],[21,1,21,4],[22,0,22,6],[23,1,23,4],[24,1,24,4],[25,0,25,6],[26,1,26,4],[27,1,27,4],[28,1,28,4],[42,0,42,1],[42,4,42,6],[30,1,30,4],[31,0,31,6],[32,1,32,4],[33,1,33,4],[34,1,34,4],[35,0,35,6],[36,1,36,4],[37,1,37,4],[38,1,38,4],[41,0,41,2],[41,4,41,6]]}
[{"$f":"Internal!C25","v":"ABC Public School"}]
[{"$f":"\"Affiliated to CBSE, \"&\"Affiliation No.\"&\"  \" & Internal!C26","v":"Affiliated to CBSE, Affiliation No.  120120"}]
[{"$f":"Internal!C27","v":"School Address1, City ABC, Delhi"}]
[{"$f":"Internal!B30 & \",\" & \" \"& Internal!B29","v":"Tel. No. 011-2222222, Email : schoolname@gmail.com"}]
[]
["Co-Scholastic Grade Certificate Class X 2017"]
[]
["Name of the Student",{"$f":"VLOOKUP(B9,eSPAR!A6:G85,2,FALSE)","v":0}]
["Admission No.",{"$f":"pRCF!B9","v":1},null,"Section",{"$f":"VLOOKUP(B9,eSPAR!A6:G85,3,FALSE)","v":0}]
["Roll No. (Alloted by CBSE)",{"$f":"VLOOKUP(B9,eSPAR!A6:G85,4,FALSE)","v":0}]
["Date of Birth",{"$f":"VLOOKUP(B9,eSPAR!A6:G85,5,FALSE)","v":0}]
["Mother's Name",{"$f":"VLOOKUP(B9,eSPAR!A6:G85,6,FALSE)","v":0}]
["Father's Name",{"$f":"VLOOKUP(B9,eSPAR!A6:G85,7,FALSE)","v":0}]
[]
["2 (A) : Life Skills"]
["Life Skills","Descriptive Indicator",null,null,null,"Grade","Grade Point"]
["Thinking Skills",{"$f":"VLOOKUP(B9,'eDESIND '!A7:N86,3,FALSE)","v":"Student demonstrates the ability to Be original, flexible and imaginative "},null,null,null,{"$f":"VLOOKUP(B9,eDESIND!A7:AB86,3,FALSE)","v":"A"},{"$f":"VLOOKUP(F17,Internal!$E$15:'Internal'!$F$19,2)","v":5}]
["Social Skills",{"$f":"VLOOKUP(B9,'eDESIND '!A7:N86,4,FALSE)","v":{"$error":"#N/A"}},null,null,null,{"$f":"VLOOKUP(B9,eDESIND!A7:AB86,5,FALSE)","v":0},{"$f":"VLOOKUP(F18,Internal!$E$15:'Internal'!$F$19,2)","v":{"$error":"#N/A"}}]
["Emotional Skills",{"$f":"VLOOKUP(B9,'eDESIND '!A7:N86,5,FALSE)","v":{"$error":"#N/A"}},null,null,null,{"$f":"VLOOKUP(B9,eDESIND!A7:AB86,7,FALSE)","v":0},{"$f":"VLOOKUP(F19,Internal!$E$15:'Internal'!$F$19,2)","v":{"$error":"#N/A"}}]
["2 (B)"]
["Work Education","Descriptive Indicator",null,null,null,"Grade","Grade Point"]
["Work Education",{"$f":"VLOOKUP(B9,'eDESIND '!A7:N86,6,FALSE)","v":{"$error":"#N/A"}},null,null,null,{"$f":"VLOOKUP(B9,eDESIND!A7:AB86,9,FALSE)","v":0},{"$f":"VLOOKUP(F22,Internal!$E$15:'Internal'!$F$19,2)","v":{"$error":"#N/A"}}]
["2 (C)"]
[null,"Descriptive Indicator",null,null,null,"Grade","Grade Point"]
["Visual and Performing Arts",{"$f":"VLOOKUP(B9,'eDESIND '!A7:N86,7,FALSE)","v":{"$error":"#N/A"}},null,null,null,{"$f":"VLOOKUP(B9,eDESIND!A7:AB86,11,FALSE)","v":0},{"$f":"VLOOKUP(F25,Internal!$E$15:'Internal'!$F$19,2)","v":{"$error":"#N/A"}}]
["2 (D) Attitudes and Values"]
["Attitude towards","Descriptive Indicator",null,null,null,"Grade","Grade Point"]
["Teachers",{"$f":"VLOOKUP(B9,'eDESIND '!A7:N86,8,FALSE)","v":{"$error":"#N/A"}},null,null,null,{"$f":"VLOOKUP(B9,eDESIND!A7:AB86,13,FALSE)","v":0},{"$f":"VLOOKUP(F28,Internal!$E$15:'Internal'!$F$19,2)","v":{"$error":"#N/A"}}]
["Schoolmates",{"$f":"VLOOKUP(B9,'eDESIND '!A7:N86,9,FALSE)","v":{"$error":"#N/A"}},null,null,null,{"$f":"VLOOKUP(B9,eDESIND!A7:AB86,15,FALSE)","v":0},{"$f":"VLOOKUP(F29,Internal!$E$15:'Internal'!$F$19,2)","v":{"$error":"#N/A"}}]
["School Programmes & Environment",{"$f":"VLOOKUP(B9,'eDESIND '!A7:N86,10,FALSE)","v":{"$error":"#N/A"}},null,null,null,{"$f":"VLOOKUP(B9,eDESIND!A7:AB86,17,FALSE)","v":0},{"$f":"VLOOKUP(F30,Internal!$E$15:'Internal'!$F$19,2)","v":{"$error":"#N/A"}}]
["Value Systems",{"$f":"VLOOKUP(B9,'eDESIND '!A7:N86,11,FALSE)","v":{"$error":"#N/A"}},null,null,null,{"$f":"VLOOKUP(B9,eDESIND!A7:AB86,19,FALSE)","v":0},{"$f":"VLOOKUP(F31,Internal!$E$15:'Internal'!$F$19,2)","v":{"$error":"#N/A"}}]
["3 (A) Co-Curricular Activities"]
["Activity","Descriptive Indicator",null,null,null,"Grade","Grade Point"]
[{"$f":"VLOOKUP(B9,'custom-coscho'!A7:F86,3,FALSE)","v":"Literary & Creative Skill"},{"$f":"VLOOKUP(B9,'eDESIND '!A7:N86,12,FALSE)","v":{"$error":"#N/A"}},null,null,null,{"$f":"VLOOKUP(B9,eDESIND!A7:AB86,21,FALSE)","v":0},{"$f":"VLOOKUP(F34,Internal!$E$15:'Internal'!$F$19,2)","v":{"$error":"#N/A"}}]
[{"$f":"VLOOKUP(B9,'custom-coscho'!A7:F86,4,FALSE)","v":"Scientific Skill"},{"$f":"VLOOKUP(B9,'eDESIND '!A7:N86,13,FALSE)","v":{"$error":"#N/A"}},null,null,null,{"$f":"VLOOKUP(B9,eDESIND!A7:AB86,23,FALSE)","v":0},{"$f":"VLOOKUP(F35,Internal!$E$15:'Internal'!$F$19,2)","v":{"$error":"#N/A"}}]
["3 (B) Physical and Health Education:"]
["Activity","Descriptive Indicator",null,null,null,"Grade","Grade Point"]
[{"$f":"VLOOKUP(B9,'custom-coscho'!A7:F86,5,FALSE)","v":"Sports/ Indigenous Sports"},{"$f":"VLOOKUP(B9,'eDESIND '!A7:N86,14,FALSE)","v":{"$error":"#N/A"}},null,null,null,{"$f":"VLOOKUP(B9,eDESIND!A7:AB86,25,FALSE)","v":0},{"$f":"VLOOKUP(F38,Internal!$E$15:'Internal'!$F$19,2)","v":{"$error":"#N/A"}}]
[{"$f":"VLOOKUP(B9,'custom-coscho'!A7:F86,6,FALSE)","v":"Yoga"},{"$f":"VLOOKUP(B9,'eDESIND '!A7:O86,15,FALSE)","v":{"$error":"#N/A"}},null,null,null,{"$f":"VLOOKUP(B9,eDESIND!A7:AB86,27,FALSE)","v":0},{"$f":"VLOOKUP(F39,Internal!$E$15:'Internal'!$F$19,2)","v":{"$error":"#N/A"}}]
[]
[null,null,null,null,null,null,{"$f":"\"Total= \"&SUM(G17:G19,G22,G25,G28:G31,G34:G35,G38:G39)","v":{"$error":"#N/A"}}]

{"sheet":"eDESIND ","index":8,"n_rows":86,"n_cols":19,"rows_kept":86,"cut":false,"hidden":true,"merged":[[2,13,3,13],[2,0,2,1],[3,0,5,0],[3,1,5,1],[1,0,1,5],[3,7,3,9],[3,3,4,3],[3,2,4,2],[3,4,4,4],[3,5,4,5],[3,6,4,6],[0,0,0,5],[2,2,2,4],[2,7,2,10],[2,5,2,6],[2,11,3,11]]}
[]
[]
[]
["Roll No.","Name",null,null,null,null,null,null,null,null,null,null,null,null,null,null,null,"Utility Developed by : Paras Hosting,    Visit us at : www.ParasHosting.com",{"$f":"IF(R4=Main!C15,\"OK\",\"XX\")","v":"OK"}]
[null,null,null,null,null,null,null,null,null,null,null,null,null,null,null,null,null,"Help Line No. 097293 71551    Email : response@parasHosting.com",{"$f":"IF(R5=Main!C16,\"OK\",\"XX\")","v":"OK"}]
[null,null,"DI","DI","DI","DI","DI","DI","DI","DI","DI","DI","DI","DI","DI"]
[{"$f":"eSPAR!A6","v":1},{"$f":"eSPAR!B6","v":0},{"$f":"IF($R$7=\"Invalid\",\"Internal Error, Contact Support\",VLOOKUP(eDESIND!D7,DI!$A$5:$B$400,2,FALSE))","v":"Student demonstrates the ability to Be original, flexible and imaginative "},{"$f":"IF($R$7=\"Invalid\",\"Internal Error, Contact Support\",VLOOKUP(eDESIND!F7,DI!$A$5:$B$400,2,FALSE))","v":{"$error":"#N/A"}},{"$f":"IF($R$7=\"Invalid\",\"Internal Error, Contact Support\",VLOOKUP(eDESIND!H7,DI!$A$5:$B$400,2,FALSE))","v":{"$error":"#N/A"}},{"$f":"IF($R$7=\"Invalid\",\"Internal Error, Contact Support\",VLOOKUP(eDESIND!J7,DI!$A$5:$B$400,2,FALSE))","v":{"$error":"#N/A"}},{"$f":"IF($R$7=\"Invalid\",\"Internal Error, Contact Support\",VLOOKUP(eDESIND!L7,DI!$A$5:$B$400,2,FALSE))","v":{"$error":"#N/A"}},{"$f":"IF($R$7=\"Invalid\",\"Internal Error, Contact Support\",VLOOKUP(eDESIND!N7,DI!$A$5:$B$400,2,FALSE))","v":{"$error":"#N/A"}},{"$f":"IF($R$7=\"Invalid\",\"Internal Error, Contact Support\",VLOOKUP(eDESIND!P7,DI!$A$5:$B$400,2,FALSE))","v":{"$error":"#N/A"}},{"$f":"IF($R$7=\"Invalid\",\"Internal Error, Contact Support\",VLOOKUP(eDESIND!R7,DI!$A$5:$B$400,2,FALSE))","v":{"$error":"#N/A"}},{"$f":"IF($R$7=\"Invalid\",\"Internal Error, Contact Support\",VLOOKUP(eDESIND!T7,DI!$A$5:$B$400,2,FALSE))","v":{"$error":"#N/A"}},{"$f":"IF($R$7=\"Invalid\",\"Internal Error, Contact Support\",VLOOKUP(eDESIND!V7,DI!$A$5:$B$400,2,FALSE))","v":{"$error":"#N/A"}},{"$f":"IF($R$7=\"Invalid\",\"Internal Error, Contact Support\",VLOOKUP(eDESIND!X7,DI!$A$5:$B$400,2,FALSE))","v":{"$error":"#N/A"}},{"$f":"IF($R$7=\"Invalid\",\"Internal Error, Contact Support\",VLOOKUP(eDESIND!Z7,DI!$A$5:$B$400,2,FALSE))","v":{"$error":"#N/A"}},{"$f":"IF($R$7=\"Invalid\",\"Internal Error, Contact Support\",VLOOKUP(eDESIND!AB7,DI!$A$5:$B$400,2,FALSE))","v":{"$error":"#N/A"}},null,null,{"$f":"IF(AND(S4=\"OK\",S5=\"OK\"),\"OK\",\"Invalid\")","v":"OK"}]
[{"$f":"eSPAR!A7","v":0},{"$f":"eSPAR!B7","v":0},{"$f":"IF($R$7=\"Invalid\",\"Internal Error, Contact Support\",VLOOKUP(eDESIND!D8,DI!$A$5:$B$400,2,FALSE))","v":{"$error":"#N/A"}},{"$f":"IF($R$7=\"Invalid\",\"Internal Error, Contact Support\",VLOOKUP(eDESIND!F8,DI!$A$5:$B$400,2,FALSE))","v":{"$error":"#N/A"}},{"$f":"IF($R$7=\"Invalid\",\"Internal Error, Contact Support\",VLOOKUP(eDESIND!H8,DI!$A$5:$B$400,2,FALSE))","v":{"$error":"#N/A"}},{"$f":"IF($R$7=\"Invalid\",\"Internal Error, Contact Support\",VLOOKUP(eDESIND!J8,DI!$A$5:$B$400,2,FALSE))","v":{"$error":"#N/A"}},{"$f":"IF($R$7=\"Invalid\",\"Internal Error, Contact Support\",VLOOKUP(eDESIND!L8,DI!$A$5:$B$400,2,FALSE))","v":{"$error":"#N/A"}},{"$f":"IF($R$7=\"Invalid\",\"Internal Error, Contact Support\",VLOOKUP(eDESIND!N8,DI!$A$5:$B$400,2,FALSE))","v":{"$error":"#N/A"}},{"$f":"IF($R$7=\"Invalid\",\"Internal Error, Contact Support\",VLOOKUP(eDESIND!P8,DI!$A$5:$B$400,2,FALSE))","v":{"$error":"#N/A"}},{"$f":"IF($R$7=\"Invalid\",\"Internal Error, Contact Support\",VLOOKUP(eDESIND!R8,DI!$A$5:$B$400,2,FALSE))","v":{"$error":"#N/A"}},{"$f":"IF($R$7=\"Invalid\",\"Internal Error, Contact Support\",VLOOKUP(eDESIND!T8,DI!$A$5:$B$400,2,FALSE))","v":{"$error":"#N/A"}},{"$f":"IF($R$7=\"Invalid\",\"Internal Error, Contact Support\",VLOOKUP(eDESIND!V8,DI!$A$5:$B$400,2,FALSE))","v":{"$error":"#N/A"}},{"$f":"IF($R$7=\"Invalid\",\"Internal Error, Contact Support\",VLOOKUP(eDESIND!X8,DI!$A$5:$B$400,2,FALSE))","v":{"$error":"#N/A"}},{"$f":"IF($R$7=\"Invalid\",\"Internal Error, Contact Support\",VLOOKUP(eDESIND!Z8,DI!$A$5:$B$400,2,FALSE))","v":{"$error":"#N/A"}},{"$f":"IF($R$7=\"Invalid\",\"Internal Error, Contact Support\",VLOOKUP(eDESIND!AB8,DI!$A$5:$B$400,2,FALSE))","v":{"$error":"#N/A"}}]
[{"$f":"eSPAR!A8","v":0},{"$f":"eSPAR!B8","v":0},{"$f":"IF($R$7=\"Invalid\",\"Internal Error, Contact Support\",VLOOKUP(eDESIND!D9,DI!$A$5:$B$400,2,FALSE))","v":{"$error":"#N/A"}},{"$f":"IF($R$7=\"Invalid\",\"Internal Error, Contact Support\",VLOOKUP(eDESIND!F9,DI!$A$5:$B$400,2,FALSE))","v":{"$error":"#N/A"}},{"$f":"IF($R$7=\"Invalid\",\"Internal Error, Contact Support\",VLOOKUP(eDESIND!H9,DI!$A$5:$B$400,2,FALSE))","v":{"$error":"#N/A"}},{"$f":"IF($R$7=\"Invalid\",\"Internal Error, Contact Support\",VLOOKUP(eDESIND!J9,DI!$A$5:$B$400,2,FALSE))","v":{"$error":"#N/A"}},{"$f":"IF($R$7=\"Invalid\",\"Internal Error, Contact Support\",VLOOKUP(eDESIND!L9,DI!$A$5:$B$400,2,FALSE))","v":{"$error":"#N/A"}},{"$f":"IF($R$7=\"Invalid\",\"Internal Error, Contact Support\",VLOOKUP(eDESIND!N9,DI!$A$5:$B$400,2,FALSE))","v":{"$error":"#N/A"}},{"$f":"IF($R$7=\"Invalid\",\"Internal Error, Contact Support\",VLOOKUP(eDESIND!P9,DI!$A$5:$B$400,2,FALSE))","v":{"$error":"#N/A"}},{"$f":"IF($R$7=\"Invalid\",\"Internal Error, Contact Support\",VLOOKUP(eDESIND!R9,DI!$A$5:$B$400,2,FALSE))","v":{"$error":"#N/A"}},{"$f":"IF($R$7=\"Invalid\",\"Internal Error, Contact Support\",VLOOKUP(eDESIND!T9,DI!$A$5:$B$400,2,FALSE))","v":{"$error":"#N/A"}},{"$f":"IF($R$7=\"Invalid\",\"Internal Error, Contact Support\",VLOOKUP(eDESIND!V9,DI!$A$5:$B$400,2,FALSE))","v":{"$error":"#N/A"}},{"$f":"IF($R$7=\"Invalid\",\"Internal Error, Contact Support\",VLOOKUP(eDESIND!X9,DI!$A$5:$B$400,2,FALSE))","v":{"$error":"#N/A"}},{"$f":"IF($R$7=\"Invalid\",\"Internal Error, Contact Support\",VLOOKUP(eDESIND!Z9,DI!$A$5:$B$400,2,FALSE))","v":{"$error":"#N/A"}},{"$f":"IF($R$7=\"Invalid\",\"Internal Error, Contact Support\",VLOOKUP(eDESIND!AB9,DI!$A$5:$B$400,2,FALSE))","v":{"$error":"#N/A"}}]
[{"$f":"eSPAR!A9","v":0},{"$f":"eSPAR!B9","v":0},{"$f":"IF($R$7=\"Invalid\",\"Internal Error, Contact Support\",VLOOKUP(eDESIND!D10,DI!$A$5:$B$400,2,FALSE))","v":{"$error":"#N/A"}},{"$f":"IF($R$7=\"Invalid\",\"Internal Error, Contact Support\",VLOOKUP(eDESIND!F10,DI!$A$5:$B$400,2,FALSE))","v":{"$error":"#N/A"}},{"$f":"IF($R$7=\"Invalid\",\"Internal Error, Contact Support\",VLOOKUP(eDESIND!H10,DI!$A$5:$B$400,2,FALSE))","v":{"$error":"#N/A"}},{"$f":"IF($R$7=\"Invalid\",\"Internal Error, Contact Support\",VLOOKUP(eDESIND!J10,DI!$A$5:$B$400,2,FALSE))","v":{"$error":"#N/A"}},{"$f":"IF($R$7=\"Invalid\",\"Internal Error, Contact Support\",VLOOKUP(eDESIND!L10,DI!$A$5:$B$400,2,FALSE))","v":{"$error":"#N/A"}},{"$f":"IF($R$7=\"Invalid\",\"Internal Error, Contact Support\",VLOOKUP(eDESIND!N10,DI!$A$5:$B$400,2,FALSE))","v":{"$error":"#N/A"}},{"$f":"IF($R$7=\"Invalid\",\"Internal Error, Contact Support\",VLOOKUP(eDESIND!P10,DI!$A$5:$B$400,2,FALSE))","v":{"$error":"#N/A"}},{"$f":"IF($R$7=\"Invalid\",\"Internal Error, Contact Support\",VLOOKUP(eDESIND!R10,DI!$A$5:$B$400,2,FALSE))","v":{"$error":"#N/A"}},{"$f":"IF($R$7=\"Invalid\",\"Internal Error, Contact Support\",VLOOKUP(eDESIND!T10,DI!$A$5:$B$400,2,FALSE))","v":{"$error":"#N/A"}},{"$f":"IF($R$7=\"Invalid\",\"Internal Error, Contact Support\",VLOOKUP(eDESIND!V10,DI!$A$5:$B$400,2,FALSE))","v":{"$error":"#N/A"}},{"$f":"IF($R$7=\"Invalid\",\"Internal Error, Contact Support\",VLOOKUP(eDESIND!X10,DI!$A$5:$B$400,2,FALSE))","v":{"$error":"#N/A"}},{"$f":"IF($R$7=\"Invalid\",\"Internal Error, Contact Support\",VLOOKUP(eDESIND!Z10,DI!$A$5:$B$400,2,FALSE))","v":{"$error":"#N/A"}},{"$f":"IF($R$7=\"Invalid\",\"Internal Error, Contact Support\",VLOOKUP(eDESIND!AB10,DI!$A$5:$B$400,2,FALSE))","v":{"$error":"#N/A"}}]
[{"$f":"eSPAR!A10","v":0},{"$f":"eSPAR!B10","v":0},{"$f":"IF($R$7=\"Invalid\",\"Internal Error, Contact Support\",VLOOKUP(eDESIND!D11,DI!$A$5:$B$400,2,FALSE))","v":{"$error":"#N/A"}},{"$f":"IF($R$7=\"Invalid\",\"Internal Error, Contact Support\",VLOOKUP(eDESIND!F11,DI!$A$5:$B$400,2,FALSE))","v":{"$error":"#N/A"}},{"$f":"IF($R$7=\"Invalid\",\"Internal Error, Contact Support\",VLOOKUP(eDESIND!H11,DI!$A$5:$B$400,2,FALSE))","v":{"$error":"#N/A"}},{"$f":"IF($R$7=\"Invalid\",\"Internal Error, Contact Support\",VLOOKUP(eDESIND!J11,DI!$A$5:$B$400,2,FALSE))","v":{"$error":"#N/A"}},{"$f":"IF($R$7=\"Invalid\",\"Internal Error, Contact Support\",VLOOKUP(eDESIND!L11,DI!$A$5:$B$400,2,FALSE))","v":{"$error":"#N/A"}},{"$f":"IF($R$7=\"Invalid\",\"Internal Error, Contact Support\",VLOOKUP(eDESIND!N11,DI!$A$5:$B$400,2,FALSE))","v":{"$error":"#N/A"}},{"$f":"IF($R$7=\"Invalid\",\"Internal Error, Contact Support\",VLOOKUP(eDESIND!P11,DI!$A$5:$B$400,2,FALSE))","v":{"$error":"#N/A"}},{"$f":"IF($R$7=\"Invalid\",\"Internal Error, Contact Support\",VLOOKUP(eDESIND!R11,DI!$A$5:$B$400,2,FALSE))","v":{"$error":"#N/A"}},{"$f":"IF($R$7=\"Invalid\",\"Internal Error, Contact Support\",VLOOKUP(eDESIND!T11,DI!$A$5:$B$400,2,FALSE))","v":{"$error":"#N/A"}},{"$f":"IF($R$7=\"Invalid\",\"Internal Error, Contact Support\",VLOOKUP(eDESIND!V11,DI!$A$5:$B$400,2,FALSE))","v":{"$error":"#N/A"}},{"$f":"IF($R$7=\"Invalid\",\"Internal Error, Contact Support\",VLOOKUP(eDESIND!X11,DI!$A$5:$B$400,2,FALSE))","v":{"$error":"#N/A"}},{"$f":"IF($R$7=\"Invalid\",\"Internal Error, Contact Support\",VLOOKUP(eDESIND!Z11,DI!$A$5:$B$400,2,FALSE))","v":{"$error":"#N/A"}},{"$f":"IF($R$7=\"Invalid\",\"Internal Error, Contact Support\",VLOOKUP(eDESIND!AB11,DI!$A$5:$B$400,2,FALSE))","v":{"$error":"#N/A"}}]
[{"$f":"eSPAR!A11","v":0},{"$f":"eSPAR!B11","v":0},{"$f":"IF($R$7=\"Invalid\",\"Internal Error, Contact Support\",VLOOKUP(eDESIND!D12,DI!$A$5:$B$400,2,FALSE))","v":{"$error":"#N/A"}},{"$f":"IF($R$7=\"Invalid\",\"Internal Error, Contact Support\",VLOOKUP(eDESIND!F12,DI!$A$5:$B$400,2,FALSE))","v":{"$error":"#N/A"}},{"$f":"IF($R$7=\"Invalid\",\"Internal Error, Contact Support\",VLOOKUP(eDESIND!H12,DI!$A$5:$B$400,2,FALSE))","v":{"$error":"#N/A"}},{"$f":"IF($R$7=\"Invalid\",\"Internal Error, Contact Support\",VLOOKUP(eDESIND!J12,DI!$A$5:$B$400,2,FALSE))","v":{"$error":"#N/A"}},{"$f":"IF($R$7=\"Invalid\",\"Internal Error, Contact Support\",VLOOKUP(eDESIND!L12,DI!$A$5:$B$400,2,FALSE))","v":{"$error":"#N/A"}},{"$f":"IF($R$7=\"Invalid\",\"Internal Error, Contact Support\",VLOOKUP(eDESIND!N12,DI!$A$5:$B$400,2,FALSE))","v":{"$error":"#N/A"}},{"$f":"IF($R$7=\"Invalid\",\"Internal Error, Contact Support\",VLOOKUP(eDESIND!P12,DI!$A$5:$B$400,2,FALSE))","v":{"$error":"#N/A"}},{"$f":"IF($R$7=\"Invalid\",\"Internal Error, Contact Support\",VLOOKUP(eDESIND!R12,DI!$A$5:$B$400,2,FALSE))","v":{"$error":"#N/A"}},{"$f":"IF($R$7=\"Invalid\",\"Internal Error, Contact Support\",VLOOKUP(eDESIND!T12,DI!$A$5:$B$400,2,FALSE))","v":{"$error":"#N/A"}},{"$f":"IF($R$7=\"Invalid\",\"Internal Error, Contact Support\",VLOOKUP(eDESIND!V12,DI!$A$5:$B$400,2,FALSE))","v":{"$error":"#N/A"}},{"$f":"IF($R$7=\"Invalid\",\"Internal Error, Contact Support\",VLOOKUP(eDESIND!X12,DI!$A$5:$B$400,2,FALSE))","v":{"$error":"#N/A"}},{"$f":"IF($R$7=\"Invalid\",\"Internal Error, Contact Support\",VLOOKUP(eDESIND!Z12,DI!$A$5:$B$400,2,FALSE))","v":{"$error":"#N/A"}},{"$f":"IF($R$7=\"Invalid\",\"Internal Error, Contact Support\",VLOOKUP(eDESIND!AB12,DI!$A$5:$B$400,2,FALSE))","v":{"$error":"#N/A"}}]
[{"$f":"eSPAR!A12","v":0},{"$f":"eSPAR!B12","v":0},{"$f":"IF($R$7=\"Invalid\",\"Internal Error, Contact Support\",VLOOKUP(eDESIND!D13,DI!$A$5:$B$400,2,FALSE))","v":{"$error":"#N/A"}},{"$f":"IF($R$7=\"Invalid\",\"Internal Error, Contact Support\",VLOOKUP(eDESIND!F13,DI!$A$5:$B$400,2,FALSE))","v":{"$error":"#N/A"}},{"$f":"IF($R$7=\"Invalid\",\"Internal Error, Contact Support\",VLOOKUP(eDESIND!H13,DI!$A$5:$B$400,2,FALSE))","v":{"$error":"#N/A"}},{"$f":"IF($R$7=\"Invalid\",\"Internal Error, Contact Support\",VLOOKUP(eDESIND!J13,DI!$A$5:$B$400,2,FALSE))","v":{"$error":"#N/A"}},{"$f":"IF($R$7=\"Invalid\",\"Internal Error, Contact Support\",VLOOKUP(eDESIND!L13,DI!$A$5:$B$400,2,FALSE))","v":{"$error":"#N/A"}},{"$f":"IF($R$7=\"Invalid\",\"Internal Error, Contact Support\",VLOOKUP(eDESIND!N13,DI!$A$5:$B$400,2,FALSE))","v":{"$error":"#N/A"}},{"$f":"IF($R$7=\"Invalid\",\"Internal Error, Contact Support\",VLOOKUP(eDESIND!P13,DI!$A$5:$B$400,2,FALSE))","v":{"$error":"#N/A"}},{"$f":"IF($R$7=\"Invalid\",\"Internal Error, Contact Support\",VLOOKUP(eDESIND!R13,DI!$A$5:$B$400,2,FALSE))","v":{"$error":"#N/A"}},{"$f":"IF($R$7=\"Invalid\",\"Internal Error, Contact Support\",VLOOKUP(eDESIND!T13,DI!$A$5:$B$400,2,FALSE))","v":{"$error":"#N/A"}},{"$f":"IF($R$7=\"Invalid\",\"Internal Error, Contact Support\",VLOOKUP(eDESIND!V13,DI!$A$5:$B$400,2,FALSE))","v":{"$error":"#N/A"}},{"$f":"IF($R$7=\"Invalid\",\"Internal Error, Contact Support\",VLOOKUP(eDESIND!X13,DI!$A$5:$B$400,2,FALSE))","v":{"$error":"#N/A"}},{"$f":"IF($R$7=\"Invalid\",\"Internal Error, Contact Support\",VLOOKUP(eDESIND!Z13,DI!$A$5:$B$400,2,FALSE))","v":{"$error":"#N/A"}},{"$f":"IF($R$7=\"Invalid\",\"Internal Error, Contact Support\",VLOOKUP(eDESIND!AB13,DI!$A$5:$B$400,2,FALSE))","v":{"$error":"#N/A"}}]
[{"$f":"eSPAR!A13","v":0},{"$f":"eSPAR!B13","v":0},{"$f":"IF($R$7=\"Invalid\",\"Internal Error, Contact Support\",VLOOKUP(eDESIND!D14,DI!$A$5:$B$400,2,FALSE))","v":{"$error":"#N/A"}},{"$f":"IF($R$7=\"Invalid\",\"Internal Error, Contact Support\",VLOOKUP(eDESIND!F14,DI!$A$5:$B$400,2,FALSE))","v":{"$error":"#N/A"}},{"$f":"IF($R$7=\"Invalid\",\"Internal Error, Contact Support\",VLOOKUP(eDESIND!H14,DI!$A$5:$B$400,2,FALSE))","v":{"$error":"#N/A"}},{"$f":"IF($R$7=\"Invalid\",\"Internal Error, Contact Support\",VLOOKUP(eDESIND!J14,DI!$A$5:$B$400,2,FALSE))","v":{"$error":"#N/A"}},{"$f":"IF($R$7=\"Invalid\",\"Internal Error, Contact Support\",VLOOKUP(eDESIND!L14,DI!$A$5:$B$400,2,FALSE))","v":{"$error":"#N/A"}},{"$f":"IF($R$7=\"Invalid\",\"Internal Error, Contact Support\",VLOOKUP(eDESIND!N14,DI!$A$5:$B$400,2,FALSE))","v":{"$error":"#N/A"}},{"$f":"IF($R$7=\"Invalid\",\"Internal Error, Contact Support\",VLOOKUP(eDESIND!P14,DI!$A$5:$B$400,2,FALSE))","v":{"$error":"#N/A"}},{"$f":"IF($R$7=\"Invalid\",\"Internal Error, Contact Support\",VLOOKUP(eDESIND!R14,DI!$A$5:$B$400,2,FALSE))","v":{"$error":"#N/A"}},{"$f":"IF($R$7=\"Invalid\",\"Internal Error, Contact Support\",VLOOKUP(eDESIND!T14,DI!$A$5:$B$400,2,FALSE))","v":{"$error":"#N/A"}},{"$f":"IF($R$7=\"Invalid\",\"Internal Error, Contact Support\",VLOOKUP(eDESIND!V14,DI!$A$5:$B$400,2,FALSE))","v":{"$error":"#N/A"}},{"$f":"IF($R$7=\"Invalid\",\"Internal Error, Contact Support\",VLOOKUP(eDESIND!X14,DI!$A$5:$B$400,2,FALSE))","v":{"$error":"#N/A"}},{"$f":"IF($R$7=\"Invalid\",\"Internal Error, Contact Support\",VLOOKUP(eDESIND!Z14,DI!$A$5:$B$400,2,FALSE))","v":{"$error":"#N/A"}},{"$f":"IF($R$7=\"Invalid\",\"Internal Error, Contact Support\",VLOOKUP(eDESIND!AB14,DI!$A$5:$B$400,2,FALSE))","v":{"$error":"#N/A"}}]
[{"$f":"eSPAR!A14","v":0},{"$f":"eSPAR!B14","v":0},{"$f":"IF($R$7=\"Invalid\",\"Internal Error, Contact Support\",VLOOKUP(eDESIND!D15,DI!$A$5:$B$400,2,FALSE))","v":{"$error":"#N/A"}},{"$f":"IF($R$7=\"Invalid\",\"Internal Error, Contact Support\",VLOOKUP(eDESIND!F15,DI!$A$5:$B$400,2,FALSE))","v":{"$error":"#N/A"}},{"$f":"IF($R$7=\"Invalid\",\"Internal Error, Contact Support\",VLOOKUP(eDESIND!H15,DI!$A$5:$B$400,2,FALSE))","v":{"$error":"#N/A"}},{"$f":"IF($R$7=\"Invalid\",\"Internal Error, Contact Support\",VLOOKUP(eDESIND!J15,DI!$A$5:$B$400,2,FALSE))","v":{"$error":"#N/A"}},{"$f":"IF($R$7=\"Invalid\",\"Internal Error, Contact Support\",VLOOKUP(eDESIND!L15,DI!$A$5:$B$400,2,FALSE))","v":{"$error":"#N/A"}},{"$f":"IF($R$7=\"Invalid\",\"Internal Error, Contact Support\",VLOOKUP(eDESIND!N15,DI!$A$5:$B$400,2,FALSE))","v":{"$error":"#N/A"}},{"$f":"IF($R$7=\"Invalid\",\"Internal Error, Contact Support\",VLOOKUP(eDESIND!P15,DI!$A$5:$B$400,2,FALSE))","v":{"$error":"#N/A"}},{"$f":"IF($R$7=\"Invalid\",\"Internal Error, Contact Support\",VLOOKUP(eDESIND!R15,DI!$A$5:$B$400,2,FALSE))","v":{"$error":"#N/A"}},{"$f":"IF($R$7=\"Invalid\",\"Internal Error, Contact Support\",VLOOKUP(eDESIND!T15,DI!$A$5:$B$400,2,FALSE))","v":{"$error":"#N/A"}},{"$f":"IF($R$7=\"Invalid\",\"Internal Error, Contact Support\",VLOOKUP(eDESIND!V15,DI!$A$5:$B$400,2,FALSE))","v":{"$error":"#N/A"}},{"$f":"IF($R$7=\"Invalid\",\"Internal Error, Contact Support\",VLOOKUP(eDESIND!X15,DI!$A$5:$B$400,2,FALSE))","v":{"$error":"#N/A"}},{"$f":"IF($R$7=\"Invalid\",\"Internal Error, Contact Support\",VLOOKUP(eDESIND!Z15,DI!$A$5:$B$400,2,FALSE))","v":{"$error":"#N/A"}},{"$f":"IF($R$7=\"Invalid\",\"Internal Error, Contact Support\",VLOOKUP(eDESIND!AB15,DI!$A$5:$B$400,2,FALSE))","v":{"$error":"#N/A"}}]
[{"$f":"eSPAR!A15","v":0},{"$f":"eSPAR!B15","v":0},{"$f":"IF($R$7=\"Invalid\",\"Internal Error, Contact Support\",VLOOKUP(eDESIND!D16,DI!$A$5:$B$400,2,FALSE))","v":{"$error":"#N/A"}},{"$f":"IF($R$7=\"Invalid\",\"Internal Error, Contact Support\",VLOOKUP(eDESIND!F16,DI!$A$5:$B$400,2,FALSE))","v":{"$error":"#N/A"}},{"$f":"IF($R$7=\"Invalid\",\"Internal Error, Contact Support\",VLOOKUP(eDESIND!H16,DI!$A$5:$B$400,2,FALSE))","v":{"$error":"#N/A"}},{"$f":"IF($R$7=\"Invalid\",\"Internal Error, Contact Support\",VLOOKUP(eDESIND!J16,DI!$A$5:$B$400,2,FALSE))","v":{"$error":"#N/A"}},{"$f":"IF($R$7=\"Invalid\",\"Internal Error, Contact Support\",VLOOKUP(eDESIND!L16,DI!$A$5:$B$400,2,FALSE))","v":{"$error":"#N/A"}},{"$f":"IF($R$7=\"Invalid\",\"Internal Error, Contact Support\",VLOOKUP(eDESIND!N16,DI!$A$5:$B$400,2,FALSE))","v":{"$error":"#N/A"}},{"$f":"IF($R$7=\"Invalid\",\"Internal Error, Contact Support\",VLOOKUP(eDESIND!P16,DI!$A$5:$B$400,2,FALSE))","v":{"$error":"#N/A"}},{"$f":"IF($R$7=\"Invalid\",\"Internal Error, Contact Support\",VLOOKUP(eDESIND!R16,DI!$A$5:$B$400,2,FALSE))","v":{"$error":"#N/A"}},{"$f":"IF($R$7=\"Invalid\",\"Internal Error, Contact Support\",VLOOKUP(eDESIND!T16,DI!$A$5:$B$400,2,FALSE))","v":{"$error":"#N/A"}},{"$f":"IF($R$7=\"Invalid\",\"Internal Error, Contact Support\",VLOOKUP(eDESIND!V16,DI!$A$5:$B$400,2,FALSE))","v":{"$error":"#N/A"}},{"$f":"IF($R$7=\"Invalid\",\"Internal Error, Contact Support\",VLOOKUP(eDESIND!X16,DI!$A$5:$B$400,2,FALSE))","v":{"$error":"#N/A"}},{"$f":"IF($R$7=\"Invalid\",\"Internal Error, Contact Support\",VLOOKUP(eDESIND!Z16,DI!$A$5:$B$400,2,FALSE))","v":{"$error":"#N/A"}},{"$f":"IF($R$7=\"Invalid\",\"Internal Error, Contact Support\",VLOOKUP(eDESIND!AB16,DI!$A$5:$B$400,2,FALSE))","v":{"$error":"#N/A"}}]
[{"$f":"eSPAR!A16","v":0},{"$f":"eSPAR!B16","v":0},{"$f":"IF($R$7=\"Invalid\",\"Internal Error, Contact Support\",VLOOKUP(eDESIND!D17,DI!$A$5:$B$400,2,FALSE))","v":{"$error":"#N/A"}},{"$f":"IF($R$7=\"Invalid\",\"Internal Error, Contact Support\",VLOOKUP(eDESIND!F17,DI!$A$5:$B$400,2,FALSE))","v":{"$error":"#N/A"}},{"$f":"IF($R$7=\"Invalid\",\"Internal Error, Contact Support\",VLOOKUP(eDESIND!H17,DI!$A$5:$B$400,2,FALSE))","v":{"$error":"#N/A"}},{"$f":"IF($R$7=\"Invalid\",\"Internal Error, Contact Support\",VLOOKUP(eDESIND!J17,DI!$A$5:$B$400,2,FALSE))","v":{"$error":"#N/A"}},{"$f":"IF($R$7=\"Invalid\",\"Internal Error, Contact Support\",VLOOKUP(eDESIND!L17,DI!$A$5:$B$400,2,FALSE))","v":{"$error":"#N/A"}},{"$f":"IF($R$7=\"Invalid\",\"Internal Error, Contact Support\",VLOOKUP(eDESIND!N17,DI!$A$5:$B$400,2,FALSE))","v":{"$error":"#N/A"}},{"$f":"IF($R$7=\"Invalid\",\"Internal Error, Contact Support\",VLOOKUP(eDESIND!P17,DI!$A$5:$B$400,2,FALSE))","v":{"$error":"#N/A"}},{"$f":"IF($R$7=\"Invalid\",\"Internal Error, Contact Support\",VLOOKUP(eDESIND!R17,DI!$A$5:$B$400,2,FALSE))","v":{"$error":"#N/A"}},{"$f":"IF($R$7=\"Invalid\",\"Internal Error, Contact Support\",VLOOKUP(eDESIND!T17,DI!$A$5:$B$400,2,FALSE))","v":{"$error":"#N/A"}},{"$f":"IF($R$7=\"Invalid\",\"Internal Error, Contact Support\",VLOOKUP(eDESIND!V17,DI!$A$5:$B$400,2,FALSE))","v":{"$error":"#N/A"}},{"$f":"IF($R$7=\"Invalid\",\"Internal Error, Contact Support\",VLOOKUP(eDESIND!X17,DI!$A$5:$B$400,2,FALSE))","v":{"$error":"#N/A"}},{"$f":"IF($R$7=\"Invalid\",\"Internal Error, Contact Support\",VLOOKUP(eDESIND!Z17,DI!$A$5:$B$400,2,FALSE))","v":{"$error":"#N/A"}},{"$f":"IF($R$7=\"Invalid\",\"Internal Error, Contact Support\",VLOOKUP(eDESIND!AB17,DI!$A$5:$B$400,2,FALSE))","v":{"$error":"#N/A"}}]
[{"$f":"eSPAR!A17","v":0},{"$f":"eSPAR!B17","v":0},{"$f":"IF($R$7=\"Invalid\",\"Internal Error, Contact Support\",VLOOKUP(eDESIND!D18,DI!$A$5:$B$400,2,FALSE))","v":{"$error":"#N/A"}},{"$f":"IF($R$7=\"Invalid\",\"Internal Error, Contact Support\",VLOOKUP(eDESIND!F18,DI!$A$5:$B$400,2,FALSE))","v":{"$error":"#N/A"}},{"$f":"IF($R$7=\"Invalid\",\"Internal Error, Contact Support\",VLOOKUP(eDESIND!H18,DI!$A$5:$B$400,2,FALSE))","v":{"$error":"#N/A"}},{"$f":"IF($R$7=\"Invalid\",\"Internal Error, Contact Support\",VLOOKUP(eDESIND!J18,DI!$A$5:$B$400,2,FALSE))","v":{"$error":"#N/A"}},{"$f":"IF($R$7=\"Invalid\",\"Internal Error, Contact Support\",VLOOKUP(eDESIND!L18,DI!$A$5:$B$400,2,FALSE))","v":{"$error":"#N/A"}},{"$f":"IF($R$7=\"Invalid\",\"Internal Error, Contact Support\",VLOOKUP(eDESIND!N18,DI!$A$5:$B$400,2,FALSE))","v":{"$error":"#N/A"}},{"$f":"IF($R$7=\"Invalid\",\"Internal Error, Contact Support\",VLOOKUP(eDESIND!P18,DI!$A$5:$B$400,2,FALSE))","v":{"$error":"#N/A"}},{"$f":"IF($R$7=\"Invalid\",\"Internal Error, Contact Support\",VLOOKUP(eDESIND!R18,DI!$A$5:$B$400,2,FALSE))","v":{"$error":"#N/A"}},{"$f":"IF($R$7=\"Invalid\",\"Internal Error, Contact Support\",VLOOKUP(eDESIND!T18,DI!$A$5:$B$400,2,FALSE))","v":{"$error":"#N/A"}},{"$f":"IF($R$7=\"Invalid\",\"Internal Error, Contact Support\",VLOOKUP(eDESIND!V18,DI!$A$5:$B$400,2,FALSE))","v":{"$error":"#N/A"}},{"$f":"IF($R$7=\"Invalid\",\"Internal Error, Contact Support\",VLOOKUP(eDESIND!X18,DI!$A$5:$B$400,2,FALSE))","v":{"$error":"#N/A"}},{"$f":"IF($R$7=\"Invalid\",\"Internal Error, Contact Support\",VLOOKUP(eDESIND!Z18,DI!$A$5:$B$400,2,FALSE))","v":{"$error":"#N/A"}},{"$f":"IF($R$7=\"Invalid\",\"Internal Error, Contact Support\",VLOOKUP(eDESIND!AB18,DI!$A$5:$B$400,2,FALSE))","v":{"$error":"#N/A"}}]
[{"$f":"eSPAR!A18","v":0},{"$f":"eSPAR!B18","v":0},{"$f":"IF($R$7=\"Invalid\",\"Internal Error, Contact Support\",VLOOKUP(eDESIND!D19,DI!$A$5:$B$400,2,FALSE))","v":{"$error":"#N/A"}},{"$f":"IF($R$7=\"Invalid\",\"Internal Error, Contact Support\",VLOOKUP(eDESIND!F19,DI!$A$5:$B$400,2,FALSE))","v":{"$error":"#N/A"}},{"$f":"IF($R$7=\"Invalid\",\"Internal Error, Contact Support\",VLOOKUP(eDESIND!H19,DI!$A$5:$B$400,2,FALSE))","v":{"$error":"#N/A"}},{"$f":"IF($R$7=\"Invalid\",\"Internal Error, Contact Support\",VLOOKUP(eDESIND!J19,DI!$A$5:$B$400,2,FALSE))","v":{"$error":"#N/A"}},{"$f":"IF($R$7=\"Invalid\",\"Internal Error, Contact Support\",VLOOKUP(eDESIND!L19,DI!$A$5:$B$400,2,FALSE))","v":{"$error":"#N/A"}},{"$f":"IF($R$7=\"Invalid\",\"Internal Error, Contact Support\",VLOOKUP(eDESIND!N19,DI!$A$5:$B$400,2,FALSE))","v":{"$error":"#N/A"}},{"$f":"IF($R$7=\"Invalid\",\"Internal Error, Contact Support\",VLOOKUP(eDESIND!P19,DI!$A$5:$B$400,2,FALSE))","v":{"$error":"#N/A"}},{"$f":"IF($R$7=\"Invalid\",\"Internal Error, Contact Support\",VLOOKUP(eDESIND!R19,DI!$A$5:$B$400,2,FALSE))","v":{"$error":"#N/A"}},{"$f":"IF($R$7=\"Invalid\",\"Internal Error, Contact Support\",VLOOKUP(eDESIND!T19,DI!$A$5:$B$400,2,FALSE))","v":{"$error":"#N/A"}},{"$f":"IF($R$7=\"Invalid\",\"Internal Error, Contact Support\",VLOOKUP(eDESIND!V19,DI!$A$5:$B$400,2,FALSE))","v":{"$error":"#N/A"}},{"$f":"IF($R$7=\"Invalid\",\"Internal Error, Contact Support\",VLOOKUP(eDESIND!X19,DI!$A$5:$B$400,2,FALSE))","v":{"$error":"#N/A"}},{"$f":"IF($R$7=\"Invalid\",\"Internal Error, Contact Support\",VLOOKUP(eDESIND!Z19,DI!$A$5:$B$400,2,FALSE))","v":{"$error":"#N/A"}},{"$f":"IF($R$7=\"Invalid\",\"Internal Error, Contact Support\",VLOOKUP(eDESIND!AB19,DI!$A$5:$B$400,2,FALSE))","v":{"$error":"#N/A"}}]
[{"$f":"eSPAR!A19","v":0},{"$f":"eSPAR!B19","v":0},{"$f":"IF($R$7=\"Invalid\",\"Internal Error, Contact Support\",VLOOKUP(eDESIND!D20,DI!$A$5:$B$400,2,FALSE))","v":{"$error":"#N/A"}},{"$f":"IF($R$7=\"Invalid\",\"Internal Error, Contact Support\",VLOOKUP(eDESIND!F20,DI!$A$5:$B$400,2,FALSE))","v":{"$error":"#N/A"}},{"$f":"IF($R$7=\"Invalid\",\"Internal Error, Contact Support\",VLOOKUP(eDESIND!H20,DI!$A$5:$B$400,2,FALSE))","v":{"$error":"#N/A"}},{"$f":"IF($R$7=\"Invalid\",\"Internal Error, Contact Support\",VLOOKUP(eDESIND!J20,DI!$A$5:$B$400,2,FALSE))","v":{"$error":"#N/A"}},{"$f":"IF($R$7=\"Invalid\",\"Internal Error, Contact Support\",VLOOKUP(eDESIND!L20,DI!$A$5:$B$400,2,FALSE))","v":{"$error":"#N/A"}},{"$f":"IF($R$7=\"Invalid\",\"Internal Error, Contact Support\",VLOOKUP(eDESIND!N20,DI!$A$5:$B$400,2,FALSE))","v":{"$error":"#N/A"}},{"$f":"IF($R$7=\"Invalid\",\"Internal Error, Contact Support\",VLOOKUP(eDESIND!P20,DI!$A$5:$B$400,2,FALSE))","v":{"$error":"#N/A"}},{"$f":"IF($R$7=\"Invalid\",\"Internal Error, Contact Support\",VLOOKUP(eDESIND!R20,DI!$A$5:$B$400,2,FALSE))","v":{"$error":"#N/A"}},{"$f":"IF($R$7=\"Invalid\",\"Internal Error, Contact Support\",VLOOKUP(eDESIND!T20,DI!$A$5:$B$400,2,FALSE))","v":{"$error":"#N/A"}},{"$f":"IF($R$7=\"Invalid\",\"Internal Error, Contact Support\",VLOOKUP(eDESIND!V20,DI!$A$5:$B$400,2,FALSE))","v":{"$error":"#N/A"}},{"$f":"IF($R$7=\"Invalid\",\"Internal Error, Contact Support\",VLOOKUP(eDESIND!X20,DI!$A$5:$B$400,2,FALSE))","v":{"$error":"#N/A"}},{"$f":"IF($R$7=\"Invalid\",\"Internal Error, Contact Support\",VLOOKUP(eDESIND!Z20,DI!$A$5:$B$400,2,FALSE))","v":{"$error":"#N/A"}},{"$f":"IF($R$7=\"Invalid\",\"Internal Error, Contact Support\",VLOOKUP(eDESIND!AB20,DI!$A$5:$B$400,2,FALSE))","v":{"$error":"#N/A"}}]
[{"$f":"eSPAR!A20","v":0},{"$f":"eSPAR!B20","v":0},{"$f":"IF($R$7=\"Invalid\",\"Internal Error, Contact Support\",VLOOKUP(eDESIND!D21,DI!$A$5:$B$400,2,FALSE))","v":{"$error":"#N/A"}},{"$f":"IF($R$7=\"Invalid\",\"Internal Error, Contact Support\",VLOOKUP(eDESIND!F21,DI!$A$5:$B$400,2,FALSE))","v":{"$error":"#N/A"}},{"$f":"IF($R$7=\"Invalid\",\"Internal Error, Contact Support\",VLOOKUP(eDESIND!H21,DI!$A$5:$B$400,2,FALSE))","v":{"$error":"#N/A"}},{"$f":"IF($R$7=\"Invalid\",\"Internal Error, Contact Support\",VLOOKUP(eDESIND!J21,DI!$A$5:$B$400,2,FALSE))","v":{"$error":"#N/A"}},{"$f":"IF($R$7=\"Invalid\",\"Internal Error, Contact Support\",VLOOKUP(eDESIND!L21,DI!$A$5:$B$400,2,FALSE))","v":{"$error":"#N/A"}},{"$f":"IF($R$7=\"Invalid\",\"Internal Error, Contact Support\",VLOOKUP(eDESIND!N21,DI!$A$5:$B$400,2,FALSE))","v":{"$error":"#N/A"}},{"$f":"IF($R$7=\"Invalid\",\"Internal Error, Contact Support\",VLOOKUP(eDESIND!P21,DI!$A$5:$B$400,2,FALSE))","v":{"$error":"#N/A"}},{"$f":"IF($R$7=\"Invalid\",\"Internal Error, Contact Support\",VLOOKUP(eDESIND!R21,DI!$A$5:$B$400,2,FALSE))","v":{"$error":"#N/A"}},{"$f":"IF($R$7=\"Invalid\",\"Internal Error, Contact Support\",VLOOKUP(eDESIND!T21,DI!$A$5:$B$400,2,FALSE))","v":{"$error":"#N/A"}},{"$f":"IF($R$7=\"Invalid\",\"Internal Error, Contact Support\",VLOOKUP(eDESIND!V21,DI!$A$5:$B$400,2,FALSE))","v":{"$error":"#N/A"}},{"$f":"IF($R$7=\"Invalid\",\"Internal Error, Contact Support\",VLOOKUP(eDESIND!X21,DI!$A$5:$B$400,2,FALSE))","v":{"$error":"#N/A"}},{"$f":"IF($R$7=\"Invalid\",\"Internal Error, Contact Support\",VLOOKUP(eDESIND!Z21,DI!$A$5:$B$400,2,FALSE))","v":{"$error":"#N/A"}},{"$f":"IF($R$7=\"Invalid\",\"Internal Error, Contact Support\",VLOOKUP(eDESIND!AB21,DI!$A$5:$B$400,2,FALSE))","v":{"$error":"#N/A"}}]
[{"$f":"eSPAR!A21","v":0},{"$f":"eSPAR!B21","v":0},{"$f":"IF($R$7=\"Invalid\",\"Internal Error, Contact Support\",VLOOKUP(eDESIND!D22,DI!$A$5:$B$400,2,FALSE))","v":{"$error":"#N/A"}},{"$f":"IF($R$7=\"Invalid\",\"Internal Error, Contact Support\",VLOOKUP(eDESIND!F22,DI!$A$5:$B$400,2,FALSE))","v":{"$error":"#N/A"}},{"$f":"IF($R$7=\"Invalid\",\"Internal Error, Contact Support\",VLOOKUP(eDESIND!H22,DI!$A$5:$B$400,2,FALSE))","v":{"$error":"#N/A"}},{"$f":"IF($R$7=\"Invalid\",\"Internal Error, Contact Support\",VLOOKUP(eDESIND!J22,DI!$A$5:$B$400,2,FALSE))","v":{"$error":"#N/A"}},{"$f":"IF($R$7=\"Invalid\",\"Internal Error, Contact Support\",VLOOKUP(eDESIND!L22,DI!$A$5:$B$400,2,FALSE))","v":{"$error":"#N/A"}},{"$f":"IF($R$7=\"Invalid\",\"Internal Error, Contact Support\",VLOOKUP(eDESIND!N22,DI!$A$5:$B$400,2,FALSE))","v":{"$error":"#N/A"}},{"$f":"IF($R$7=\"Invalid\",\"Internal Error, Contact Support\",VLOOKUP(eDESIND!P22,DI!$A$5:$B$400,2,FALSE))","v":{"$error":"#N/A"}},{"$f":"IF($R$7=\"Invalid\",\"Internal Error, Contact Support\",VLOOKUP(eDESIND!R22,DI!$A$5:$B$400,2,FALSE))","v":{"$error":"#N/A"}},{"$f":"IF($R$7=\"Invalid\",\"Internal Error, Contact Support\",VLOOKUP(eDESIND!T22,DI!$A$5:$B$400,2,FALSE))","v":{"$error":"#N/A"}},{"$f":"IF($R$7=\"Invalid\",\"Internal Error, Contact Support\",VLOOKUP(eDESIND!V22,DI!$A$5:$B$400,2,FALSE))","v":{"$error":"#N/A"}},{"$f":"IF($R$7=\"Invalid\",\"Internal Error, Contact Support\",VLOOKUP(eDESIND!X22,DI!$A$5:$B$400,2,FALSE))","v":{"$error":"#N/A"}},{"$f":"IF($R$7=\"Invalid\",\"Internal Error, Contact Support\",VLOOKUP(eDESIND!Z22,DI!$A$5:$B$400,2,FALSE))","v":{"$error":"#N/A"}},{"$f":"IF($R$7=\"Invalid\",\"Internal Error, Contact Support\",VLOOKUP(eDESIND!AB22,DI!$A$5:$B$400,2,FALSE))","v":{"$error":"#N/A"}}]
[{"$f":"eSPAR!A22","v":0},{"$f":"eSPAR!B22","v":0},{"$f":"IF($R$7=\"Invalid\",\"Internal Error, Contact Support\",VLOOKUP(eDESIND!D23,DI!$A$5:$B$400,2,FALSE))","v":{"$error":"#N/A"}},{"$f":"IF($R$7=\"Invalid\",\"Internal Error, Contact Support\",VLOOKUP(eDESIND!F23,DI!$A$5:$B$400,2,FALSE))","v":{"$error":"#N/A"}},{"$f":"IF($R$7=\"Invalid\",\"Internal Error, Contact Support\",VLOOKUP(eDESIND!H23,DI!$A$5:$B$400,2,FALSE))","v":{"$error":"#N/A"}},{"$f":"IF($R$7=\"Invalid\",\"Internal Error, Contact Support\",VLOOKUP(eDESIND!J23,DI!$A$5:$B$400,2,FALSE))","v":{"$error":"#N/A"}},{"$f":"IF($R$7=\"Invalid\",\"Internal Error, Contact Support\",VLOOKUP(eDESIND!L23,DI!$A$5:$B$400,2,FALSE))","v":{"$error":"#N/A"}},{"$f":"IF($R$7=\"Invalid\",\"Internal Error, Contact Support\",VLOOKUP(eDESIND!N23,DI!$A$5:$B$400,2,FALSE))","v":{"$error":"#N/A"}},{"$f":"IF($R$7=\"Invalid\",\"Internal Error, Contact Support\",VLOOKUP(eDESIND!P23,DI!$A$5:$B$400,2,FALSE))","v":{"$error":"#N/A"}},{"$f":"IF($R$7=\"Invalid\",\"Internal Error, Contact Support\",VLOOKUP(eDESIND!R23,DI!$A$5:$B$400,2,FALSE))","v":{"$error":"#N/A"}},{"$f":"IF($R$7=\"Invalid\",\"Internal Error, Contact Support\",VLOOKUP(eDESIND!T23,DI!$A$5:$B$400,2,FALSE))","v":{"$error":"#N/A"}},{"$f":"IF($R$7=\"Invalid\",\"Internal Error, Contact Support\",VLOOKUP(eDESIND!V23,DI!$A$5:$B$400,2,FALSE))","v":{"$error":"#N/A"}},{"$f":"IF($R$7=\"Invalid\",\"Internal Error, Contact Support\",VLOOKUP(eDESIND!X23,DI!$A$5:$B$400,2,FALSE))","v":{"$error":"#N/A"}},{"$f":"IF($R$7=\"Invalid\",\"Internal Error, Contact Support\",VLOOKUP(eDESIND!Z23,DI!$A$5:$B$400,2,FALSE))","v":{"$error":"#N/A"}},{"$f":"IF($R$7=\"Invalid\",\"Internal Error, Contact Support\",VLOOKUP(eDESIND!AB23,DI!$A$5:$B$400,2,FALSE))","v":{"$error":"#N/A"}}]
[{"$f":"eSPAR!A23","v":0},{"$f":"eSPAR!B23","v":0},{"$f":"IF($R$7=\"Invalid\",\"Internal Error, Contact Support\",VLOOKUP(eDESIND!D24,DI!$A$5:$B$400,2,FALSE))","v":{"$error":"#N/A"}},{"$f":"IF($R$7=\"Invalid\",\"Internal Error, Contact Support\",VLOOKUP(eDESIND!F24,DI!$A$5:$B$400,2,FALSE))","v":{"$error":"#N/A"}},{"$f":"IF($R$7=\"Invalid\",\"Internal Error, Contact Support\",VLOOKUP(eDESIND!H24,DI!$A$5:$B$400,2,FALSE))","v":{"$error":"#N/A"}},{"$f":"IF($R$7=\"Invalid\",\"Internal Error, Contact Support\",VLOOKUP(eDESIND!J24,DI!$A$5:$B$400,2,FALSE))","v":{"$error":"#N/A"}},{"$f":"IF($R$7=\"Invalid\",\"Internal Error, Contact Support\",VLOOKUP(eDESIND!L24,DI!$A$5:$B$400,2,FALSE))","v":{"$error":"#N/A"}},{"$f":"IF($R$7=\"Invalid\",\"Internal Error, Contact Support\",VLOOKUP(eDESIND!N24,DI!$A$5:$B$400,2,FALSE))","v":{"$error":"#N/A"}},{"$f":"IF($R$7=\"Invalid\",\"Internal Error, Contact Support\",VLOOKUP(eDESIND!P24,DI!$A$5:$B$400,2,FALSE))","v":{"$error":"#N/A"}},{"$f":"IF($R$7=\"Invalid\",\"Internal Error, Contact Support\",VLOOKUP(eDESIND!R24,DI!$A$5:$B$400,2,FALSE))","v":{"$error":"#N/A"}},{"$f":"IF($R$7=\"Invalid\",\"Internal Error, Contact Support\",VLOOKUP(eDESIND!T24,DI!$A$5:$B$400,2,FALSE))","v":{"$error":"#N/A"}},{"$f":"IF($R$7=\"Invalid\",\"Internal Error, Contact Support\",VLOOKUP(eDESIND!V24,DI!$A$5:$B$400,2,FALSE))","v":{"$error":"#N/A"}},{"$f":"IF($R$7=\"Invalid\",\"Internal Error, Contact Support\",VLOOKUP(eDESIND!X24,DI!$A$5:$B$400,2,FALSE))","v":{"$error":"#N/A"}},{"$f":"IF($R$7=\"Invalid\",\"Internal Error, Contact Support\",VLOOKUP(eDESIND!Z24,DI!$A$5:$B$400,2,FALSE))","v":{"$error":"#N/A"}},{"$f":"IF($R$7=\"Invalid\",\"Internal Error, Contact Support\",VLOOKUP(eDESIND!AB24,DI!$A$5:$B$400,2,FALSE))","v":{"$error":"#N/A"}}]
[{"$f":"eSPAR!A24","v":0},{"$f":"eSPAR!B24","v":0},{"$f":"IF($R$7=\"Invalid\",\"Internal Error, Contact Support\",VLOOKUP(eDESIND!D25,DI!$A$5:$B$400,2,FALSE))","v":{"$error":"#N/A"}},{"$f":"IF($R$7=\"Invalid\",\"Internal Error, Contact Support\",VLOOKUP(eDESIND!F25,DI!$A$5:$B$400,2,FALSE))","v":{"$error":"#N/A"}},{"$f":"IF($R$7=\"Invalid\",\"Internal Error, Contact Support\",VLOOKUP(eDESIND!H25,DI!$A$5:$B$400,2,FALSE))","v":{"$error":"#N/A"}},{"$f":"IF($R$7=\"Invalid\",\"Internal Error, Contact Support\",VLOOKUP(eDESIND!J25,DI!$A$5:$B$400,2,FALSE))","v":{"$error":"#N/A"}},{"$f":"IF($R$7=\"Invalid\",\"Internal Error, Contact Support\",VLOOKUP(eDESIND!L25,DI!$A$5:$B$400,2,FALSE))","v":{"$error":"#N/A"}},{"$f":"IF($R$7=\"Invalid\",\"Internal Error, Contact Support\",VLOOKUP(eDESIND!N25,DI!$A$5:$B$400,2,FALSE))","v":{"$error":"#N/A"}},{"$f":"IF($R$7=\"Invalid\",\"Internal Error, Contact Support\",VLOOKUP(eDESIND!P25,DI!$A$5:$B$400,2,FALSE))","v":{"$error":"#N/A"}},{"$f":"IF($R$7=\"Invalid\",\"Internal Error, Contact Support\",VLOOKUP(eDESIND!R25,DI!$A$5:$B$400,2,FALSE))","v":{"$error":"#N/A"}},{"$f":"IF($R$7=\"Invalid\",\"Internal Error, Contact Support\",VLOOKUP(eDESIND!T25,DI!$A$5:$B$400,2,FALSE))","v":{"$error":"#N/A"}},{"$f":"IF($R$7=\"Invalid\",\"Internal Error, Contact Support\",VLOOKUP(eDESIND!V25,DI!$A$5:$B$400,2,FALSE))","v":{"$error":"#N/A"}},{"$f":"IF($R$7=\"Invalid\",\"Internal Error, Contact Support\",VLOOKUP(eDESIND!X25,DI!$A$5:$B$400,2,FALSE))","v":{"$error":"#N/A"}},{"$f":"IF($R$7=\"Invalid\",\"Internal Error, Contact Support\",VLOOKUP(eDESIND!Z25,DI!$A$5:$B$400,2,FALSE))","v":{"$error":"#N/A"}},{"$f":"IF($R$7=\"Invalid\",\"Internal Error, Contact Support\",VLOOKUP(eDESIND!AB25,DI!$A$5:$B$400,2,FALSE))","v":{"$error":"#N/A"}}]
[{"$f":"eSPAR!A25","v":0},{"$f":"eSPAR!B25","v":0},{"$f":"IF($R$7=\"Invalid\",\"Internal Error, Contact Support\",VLOOKUP(eDESIND!D26,DI!$A$5:$B$400,2,FALSE))","v":{"$error":"#N/A"}},{"$f":"IF($R$7=\"Invalid\",\"Internal Error, Contact Support\",VLOOKUP(eDESIND!F26,DI!$A$5:$B$400,2,FALSE))","v":{"$error":"#N/A"}},{"$f":"IF($R$7=\"Invalid\",\"Internal Error, Contact Support\",VLOOKUP(eDESIND!H26,DI!$A$5:$B$400,2,FALSE))","v":{"$error":"#N/A"}},{"$f":"IF($R$7=\"Invalid\",\"Internal Error, Contact Support\",VLOOKUP(eDESIND!J26,DI!$A$5:$B$400,2,FALSE))","v":{"$error":"#N/A"}},{"$f":"IF($R$7=\"Invalid\",\"Internal Error, Contact Support\",VLOOKUP(eDESIND!L26,DI!$A$5:$B$400,2,FALSE))","v":{"$error":"#N/A"}},{"$f":"IF($R$7=\"Invalid\",\"Internal Error, Contact Support\",VLOOKUP(eDESIND!N26,DI!$A$5:$B$400,2,FALSE))","v":{"$error":"#N/A"}},{"$f":"IF($R$7=\"Invalid\",\"Internal Error, Contact Support\",VLOOKUP(eDESIND!P26,DI!$A$5:$B$400,2,FALSE))","v":{"$error":"#N/A"}},{"$f":"IF($R$7=\"Invalid\",\"Internal Error, Contact Support\",VLOOKUP(eDESIND!R26,DI!$A$5:$B$400,2,FALSE))","v":{"$error":"#N/A"}},{"$f":"IF($R$7=\"Invalid\",\"Internal Error, Contact Support\",VLOOKUP(eDESIND!T26,DI!$A$5:$B$400,2,FALSE))","v":{"$error":"#N/A"}},{"$f":"IF($R$7=\"Invalid\",\"Internal Error, Contact Support\",VLOOKUP(eDESIND!V26,DI!$A$5:$B$400,2,FALSE))","v":{"$error":"#N/A"}},{"$f":"IF($R$7=\"Invalid\",\"Internal Error, Contact Support\",VLOOKUP(eDESIND!X26,DI!$A$5:$B$400,2,FALSE))","v":{"$error":"#N/A"}},{"$f":"IF($R$7=\"Invalid\",\"Internal Error, Contact Support\",VLOOKUP(eDESIND!Z26,DI!$A$5:$B$400,2,FALSE))","v":{"$error":"#N/A"}},{"$f":"IF($R$7=\"Invalid\",\"Internal Error, Contact Support\",VLOOKUP(eDESIND!AB26,DI!$A$5:$B$400,2,FALSE))","v":{"$error":"#N/A"}}]
[{"$f":"eSPAR!A26","v":0},{"$f":"eSPAR!B26","v":0},{"$f":"IF($R$7=\"Invalid\",\"Internal Error, Contact Support\",VLOOKUP(eDESIND!D27,DI!$A$5:$B$400,2,FALSE))","v":{"$error":"#N/A"}},{"$f":"IF($R$7=\"Invalid\",\"Internal Error, Contact Support\",VLOOKUP(eDESIND!F27,DI!$A$5:$B$400,2,FALSE))","v":{"$error":"#N/A"}},{"$f":"IF($R$7=\"Invalid\",\"Internal Error, Contact Support\",VLOOKUP(eDESIND!H27,DI!$A$5:$B$400,2,FALSE))","v":{"$error":"#N/A"}},{"$f":"IF($R$7=\"Invalid\",\"Internal Error, Contact Support\",VLOOKUP(eDESIND!J27,DI!$A$5:$B$400,2,FALSE))","v":{"$error":"#N/A"}},{"$f":"IF($R$7=\"Invalid\",\"Internal Error, Contact Support\",VLOOKUP(eDESIND!L27,DI!$A$5:$B$400,2,FALSE))","v":{"$error":"#N/A"}},{"$f":"IF($R$7=\"Invalid\",\"Internal Error, Contact Support\",VLOOKUP(eDESIND!N27,DI!$A$5:$B$400,2,FALSE))","v":{"$error":"#N/A"}},{"$f":"IF($R$7=\"Invalid\",\"Internal Error, Contact Support\",VLOOKUP(eDESIND!P27,DI!$A$5:$B$400,2,FALSE))","v":{"$error":"#N/A"}},{"$f":"IF($R$7=\"Invalid\",\"Internal Error, Contact Support\",VLOOKUP(eDESIND!R27,DI!$A$5:$B$400,2,FALSE))","v":{"$error":"#N/A"}},{"$f":"IF($R$7=\"Invalid\",\"Internal Error, Contact Support\",VLOOKUP(eDESIND!T27,DI!$A$5:$B$400,2,FALSE))","v":{"$error":"#N/A"}},{"$f":"IF($R$7=\"Invalid\",\"Internal Error, Contact Support\",VLOOKUP(eDESIND!V27,DI!$A$5:$B$400,2,FALSE))","v":{"$error":"#N/A"}},{"$f":"IF($R$7=\"Invalid\",\"Internal Error, Contact Support\",VLOOKUP(eDESIND!X27,DI!$A$5:$B$400,2,FALSE))","v":{"$error":"#N/A"}},{"$f":"IF($R$7=\"Invalid\",\"Internal Error, Contact Support\",VLOOKUP(eDESIND!Z27,DI!$A$5:$B$400,2,FALSE))","v":{"$error":"#N/A"}},{"$f":"IF($R$7=\"Invalid\",\"Internal Error, Contact Support\",VLOOKUP(eDESIND!AB27,DI!$A$5:$B$400,2,FALSE))","v":{"$error":"#N/A"}}]
[{"$f":"eSPAR!A27","v":0},{"$f":"eSPAR!B27","v":0},{"$f":"IF($R$7=\"Invalid\",\"Internal Error, Contact Support\",VLOOKUP(eDESIND!D28,DI!$A$5:$B$400,2,FALSE))","v":{"$error":"#N/A"}},{"$f":"IF($R$7=\"Invalid\",\"Internal Error, Contact Support\",VLOOKUP(eDESIND!F28,DI!$A$5:$B$400,2,FALSE))","v":{"$error":"#N/A"}},{"$f":"IF($R$7=\"Invalid\",\"Internal Error, Contact Support\",VLOOKUP(eDESIND!H28,DI!$A$5:$B$400,2,FALSE))","v":{"$error":"#N/A"}},{"$f":"IF($R$7=\"Invalid\",\"Internal Error, Contact Support\",VLOOKUP(eDESIND!J28,DI!$A$5:$B$400,2,FALSE))","v":{"$error":"#N/A"}},{"$f":"IF($R$7=\"Invalid\",\"Internal Error, Contact Support\",VLOOKUP(eDESIND!L28,DI!$A$5:$B$400,2,FALSE))","v":{"$error":"#N/A"}},{"$f":"IF($R$7=\"Invalid\",\"Internal Error, Contact Support\",VLOOKUP(eDESIND!N28,DI!$A$5:$B$400,2,FALSE))","v":{"$error":"#N/A"}},{"$f":"IF($R$7=\"Invalid\",\"Internal Error, Contact Support\",VLOOKUP(eDESIND!P28,DI!$A$5:$B$400,2,FALSE))","v":{"$error":"#N/A"}},{"$f":"IF($R$7=\"Invalid\",\"Internal Error, Contact Support\",VLOOKUP(eDESIND!R28,DI!$A$5:$B$400,2,FALSE))","v":{"$error":"#N/A"}},{"$f":"IF($R$7=\"Invalid\",\"Internal Error, Contact Support\",VLOOKUP(eDESIND!T28,DI!$A$5:$B$400,2,FALSE))","v":{"$error":"#N/A"}},{"$f":"IF($R$7=\"Invalid\",\"Internal Error, Contact Support\",VLOOKUP(eDESIND!V28,DI!$A$5:$B$400,2,FALSE))","v":{"$error":"#N/A"}},{"$f":"IF($R$7=\"Invalid\",\"Internal Error, Contact Support\",VLOOKUP(eDESIND!X28,DI!$A$5:$B$400,2,FALSE))","v":{"$error":"#N/A"}},{"$f":"IF($R$7=\"Invalid\",\"Internal Error, Contact Support\",VLOOKUP(eDESIND!Z28,DI!$A$5:$B$400,2,FALSE))","v":{"$error":"#N/A"}},{"$f":"IF($R$7=\"Invalid\",\"Internal Error, Contact Support\",VLOOKUP(eDESIND!AB28,DI!$A$5:$B$400,2,FALSE))","v":{"$error":"#N/A"}}]
[{"$f":"eSPAR!A28","v":0},{"$f":"eSPAR!B28","v":0},{"$f":"IF($R$7=\"Invalid\",\"Internal Error, Contact Support\",VLOOKUP(eDESIND!D29,DI!$A$5:$B$400,2,FALSE))","v":{"$error":"#N/A"}},{"$f":"IF($R$7=\"Invalid\",\"Internal Error, Contact Support\",VLOOKUP(eDESIND!F29,DI!$A$5:$B$400,2,FALSE))","v":{"$error":"#N/A"}},{"$f":"IF($R$7=\"Invalid\",\"Internal Error, Contact Support\",VLOOKUP(eDESIND!H29,DI!$A$5:$B$400,2,FALSE))","v":{"$error":"#N/A"}},{"$f":"IF($R$7=\"Invalid\",\"Internal Error, Contact Support\",VLOOKUP(eDESIND!J29,DI!$A$5:$B$400,2,FALSE))","v":{"$error":"#N/A"}},{"$f":"IF($R$7=\"Invalid\",\"Internal Error, Contact Support\",VLOOKUP(eDESIND!L29,DI!$A$5:$B$400,2,FALSE))","v":{"$error":"#N/A"}},{"$f":"IF($R$7=\"Invalid\",\"Internal Error, Contact Support\",VLOOKUP(eDESIND!N29,DI!$A$5:$B$400,2,FALSE))","v":{"$error":"#N/A"}},{"$f":"IF($R$7=\"Invalid\",\"Internal Error, Contact Support\",VLOOKUP(eDESIND!P29,DI!$A$5:$B$400,2,FALSE))","v":{"$error":"#N/A"}},{"$f":"IF($R$7=\"Invalid\",\"Internal Error, Contact Support\",VLOOKUP(eDESIND!R29,DI!$A$5:$B$400,2,FALSE))","v":{"$error":"#N/A"}},{"$f":"IF($R$7=\"Invalid\",\"Internal Error, Contact Support\",VLOOKUP(eDESIND!T29,DI!$A$5:$B$400,2,FALSE))","v":{"$error":"#N/A"}},{"$f":"IF($R$7=\"Invalid\",\"Internal Error, Contact Support\",VLOOKUP(eDESIND!V29,DI!$A$5:$B$400,2,FALSE))","v":{"$error":"#N/A"}},{"$f":"IF($R$7=\"Invalid\",\"Internal Error, Contact Support\",VLOOKUP(eDESIND!X29,DI!$A$5:$B$400,2,FALSE))","v":{"$error":"#N/A"}},{"$f":"IF($R$7=\"Invalid\",\"Internal Error, Contact Support\",VLOOKUP(eDESIND!Z29,DI!$A$5:$B$400,2,FALSE))","v":{"$error":"#N/A"}},{"$f":"IF($R$7=\"Invalid\",\"Internal Error, Contact Support\",VLOOKUP(eDESIND!AB29,DI!$A$5:$B$400,2,FALSE))","v":{"$error":"#N/A"}}]
[{"$f":"eSPAR!A29","v":0},{"$f":"eSPAR!B29","v":0},{"$f":"IF($R$7=\"Invalid\",\"Internal Error, Contact Support\",VLOOKUP(eDESIND!D30,DI!$A$5:$B$400,2,FALSE))","v":{"$error":"#N/A"}},{"$f":"IF($R$7=\"Invalid\",\"Internal Error, Contact Support\",VLOOKUP(eDESIND!F30,DI!$A$5:$B$400,2,FALSE))","v":{"$error":"#N/A"}},{"$f":"IF($R$7=\"Invalid\",\"Internal Error, Contact Support\",VLOOKUP(eDESIND!H30,DI!$A$5:$B$400,2,FALSE))","v":{"$error":"#N/A"}},{"$f":"IF($R$7=\"Invalid\",\"Internal Error, Contact Support\",VLOOKUP(eDESIND!J30,DI!$A$5:$B$400,2,FALSE))","v":{"$error":"#N/A"}},{"$f":"IF($R$7=\"Invalid\",\"Internal Error, Contact Support\",VLOOKUP(eDESIND!L30,DI!$A$5:$B$400,2,FALSE))","v":{"$error":"#N/A"}},{"$f":"IF($R$7=\"Invalid\",\"Internal Error, Contact Support\",VLOOKUP(eDESIND!N30,DI!$A$5:$B$400,2,FALSE))","v":{"$error":"#N/A"}},{"$f":"IF($R$7=\"Invalid\",\"Internal Error, Contact Support\",VLOOKUP(eDESIND!P30,DI!$A$5:$B$400,2,FALSE))","v":{"$error":"#N/A"}},{"$f":"IF($R$7=\"Invalid\",\"Internal Error, Contact Support\",VLOOKUP(eDESIND!R30,DI!$A$5:$B$400,2,FALSE))","v":{"$error":"#N/A"}},{"$f":"IF($R$7=\"Invalid\",\"Internal Error, Contact Support\",VLOOKUP(eDESIND!T30,DI!$A$5:$B$400,2,FALSE))","v":{"$error":"#N/A"}},{"$f":"IF($R$7=\"Invalid\",\"Internal Error, Contact Support\",VLOOKUP(eDESIND!V30,DI!$A$5:$B$400,2,FALSE))","v":{"$error":"#N/A"}},{"$f":"IF($R$7=\"Invalid\",\"Internal Error, Contact Support\",VLOOKUP(eDESIND!X30,DI!$A$5:$B$400,2,FALSE))","v":{"$error":"#N/A"}},{"$f":"IF($R$7=\"Invalid\",\"Internal Error, Contact Support\",VLOOKUP(eDESIND!Z30,DI!$A$5:$B$400,2,FALSE))","v":{"$error":"#N/A"}},{"$f":"IF($R$7=\"Invalid\",\"Internal Error, Contact Support\",VLOOKUP(eDESIND!AB30,DI!$A$5:$B$400,2,FALSE))","v":{"$error":"#N/A"}}]
[{"$f":"eSPAR!A30","v":0},{"$f":"eSPAR!B30","v":0},{"$f":"IF($R$7=\"Invalid\",\"Internal Error, Contact Support\",VLOOKUP(eDESIND!D31,DI!$A$5:$B$400,2,FALSE))","v":{"$error":"#N/A"}},{"$f":"IF($R$7=\"Invalid\",\"Internal Error, Contact Support\",VLOOKUP(eDESIND!F31,DI!$A$5:$B$400,2,FALSE))","v":{"$error":"#N/A"}},{"$f":"IF($R$7=\"Invalid\",\"Internal Error, Contact Support\",VLOOKUP(eDESIND!H31,DI!$A$5:$B$400,2,FALSE))","v":{"$error":"#N/A"}},{"$f":"IF($R$7=\"Invalid\",\"Internal Error, Contact Support\",VLOOKUP(eDESIND!J31,DI!$A$5:$B$400,2,FALSE))","v":{"$error":"#N/A"}},{"$f":"IF($R$7=\"Invalid\",\"Internal Error, Contact Support\",VLOOKUP(eDESIND!L31,DI!$A$5:$B$400,2,FALSE))","v":{"$error":"#N/A"}},{"$f":"IF($R$7=\"Invalid\",\"Internal Error, Contact Support\",VLOOKUP(eDESIND!N31,DI!$A$5:$B$400,2,FALSE))","v":{"$error":"#N/A"}},{"$f":"IF($R$7=\"Invalid\",\"Internal Error, Contact Support\",VLOOKUP(eDESIND!P31,DI!$A$5:$B$400,2,FALSE))","v":{"$error":"#N/A"}},{"$f":"IF($R$7=\"Invalid\",\"Internal Error, Contact Support\",VLOOKUP(eDESIND!R31,DI!$A$5:$B$400,2,FALSE))","v":{"$error":"#N/A"}},{"$f":"IF($R$7=\"Invalid\",\"Internal Error, Contact Support\",VLOOKUP(eDESIND!T31,DI!$A$5:$B$400,2,FALSE))","v":{"$error":"#N/A"}},{"$f":"IF($R$7=\"Invalid\",\"Internal Error, Contact Support\",VLOOKUP(eDESIND!V31,DI!$A$5:$B$400,2,FALSE))","v":{"$error":"#N/A"}},{"$f":"IF($R$7=\"Invalid\",\"Internal Error, Contact Support\",VLOOKUP(eDESIND!X31,DI!$A$5:$B$400,2,FALSE))","v":{"$error":"#N/A"}},{"$f":"IF($R$7=\"Invalid\",\"Internal Error, Contact Support\",VLOOKUP(eDESIND!Z31,DI!$A$5:$B$400,2,FALSE))","v":{"$error":"#N/A"}},{"$f":"IF($R$7=\"Invalid\",\"Internal Error, Contact Support\",VLOOKUP(eDESIND!AB31,DI!$A$5:$B$400,2,FALSE))","v":{"$error":"#N/A"}}]
[{"$f":"eSPAR!A31","v":0},{"$f":"eSPAR!B31","v":0},{"$f":"IF($R$7=\"Invalid\",\"Internal Error, Contact Support\",VLOOKUP(eDESIND!D32,DI!$A$5:$B$400,2,FALSE))","v":{"$error":"#N/A"}},{"$f":"IF($R$7=\"Invalid\",\"Internal Error, Contact Support\",VLOOKUP(eDESIND!F32,DI!$A$5:$B$400,2,FALSE))","v":{"$error":"#N/A"}},{"$f":"IF($R$7=\"Invalid\",\"Internal Error, Contact Support\",VLOOKUP(eDESIND!H32,DI!$A$5:$B$400,2,FALSE))","v":{"$error":"#N/A"}},{"$f":"IF($R$7=\"Invalid\",\"Internal Error, Contact Support\",VLOOKUP(eDESIND!J32,DI!$A$5:$B$400,2,FALSE))","v":{"$error":"#N/A"}},{"$f":"IF($R$7=\"Invalid\",\"Internal Error, Contact Support\",VLOOKUP(eDESIND!L32,DI!$A$5:$B$400,2,FALSE))","v":{"$error":"#N/A"}},{"$f":"IF($R$7=\"Invalid\",\"Internal Error, Contact Support\",VLOOKUP(eDESIND!N32,DI!$A$5:$B$400,2,FALSE))","v":{"$error":"#N/A"}},{"$f":"IF($R$7=\"Invalid\",\"Internal Error, Contact Support\",VLOOKUP(eDESIND!P32,DI!$A$5:$B$400,2,FALSE))","v":{"$error":"#N/A"}},{"$f":"IF($R$7=\"Invalid\",\"Internal Error, Contact Support\",VLOOKUP(eDESIND!R32,DI!$A$5:$B$400,2,FALSE))","v":{"$error":"#N/A"}},{"$f":"IF($R$7=\"Invalid\",\"Internal Error, Contact Support\",VLOOKUP(eDESIND!T32,DI!$A$5:$B$400,2,FALSE))","v":{"$error":"#N/A"}},{"$f":"IF($R$7=\"Invalid\",\"Internal Error, Contact Support\",VLOOKUP(eDESIND!V32,DI!$A$5:$B$400,2,FALSE))","v":{"$error":"#N/A"}},{"$f":"IF($R$7=\"Invalid\",\"Internal Error, Contact Support\",VLOOKUP(eDESIND!X32,DI!$A$5:$B$400,2,FALSE))","v":{"$error":"#N/A"}},{"$f":"IF($R$7=\"Invalid\",\"Internal Error, Contact Support\",VLOOKUP(eDESIND!Z32,DI!$A$5:$B$400,2,FALSE))","v":{"$error":"#N/A"}},{"$f":"IF($R$7=\"Invalid\",\"Internal Error, Contact Support\",VLOOKUP(eDESIND!AB32,DI!$A$5:$B$400,2,FALSE))","v":{"$error":"#N/A"}}]
[{"$f":"eSPAR!A32","v":0},{"$f":"eSPAR!B32","v":0},{"$f":"IF($R$7=\"Invalid\",\"Internal Error, Contact Support\",VLOOKUP(eDESIND!D33,DI!$A$5:$B$400,2,FALSE))","v":{"$error":"#N/A"}},{"$f":"IF($R$7=\"Invalid\",\"Internal Error, Contact Support\",VLOOKUP(eDESIND!F33,DI!$A$5:$B$400,2,FALSE))","v":{"$error":"#N/A"}},{"$f":"IF($R$7=\"Invalid\",\"Internal Error, Contact Support\",VLOOKUP(eDESIND!H33,DI!$A$5:$B$400,2,FALSE))","v":{"$error":"#N/A"}},{"$f":"IF($R$7=\"Invalid\",\"Internal Error, Contact Support\",VLOOKUP(eDESIND!J33,DI!$A$5:$B$400,2,FALSE))","v":{"$error":"#N/A"}},{"$f":"IF($R$7=\"Invalid\",\"Internal Error, Contact Support\",VLOOKUP(eDESIND!L33,DI!$A$5:$B$400,2,FALSE))","v":{"$error":"#N/A"}},{"$f":"IF($R$7=\"Invalid\",\"Internal Error, Contact Support\",VLOOKUP(eDESIND!N33,DI!$A$5:$B$400,2,FALSE))","v":{"$error":"#N/A"}},{"$f":"IF($R$7=\"Invalid\",\"Internal Error, Contact Support\",VLOOKUP(eDESIND!P33,DI!$A$5:$B$400,2,FALSE))","v":{"$error":"#N/A"}},{"$f":"IF($R$7=\"Invalid\",\"Internal Error, Contact Support\",VLOOKUP(eDESIND!R33,DI!$A$5:$B$400,2,FALSE))","v":{"$error":"#N/A"}},{"$f":"IF($R$7=\"Invalid\",\"Internal Error, Contact Support\",VLOOKUP(eDESIND!T33,DI!$A$5:$B$400,2,FALSE))","v":{"$error":"#N/A"}},{"$f":"IF($R$7=\"Invalid\",\"Internal Error, Contact Support\",VLOOKUP(eDESIND!V33,DI!$A$5:$B$400,2,FALSE))","v":{"$error":"#N/A"}},{"$f":"IF($R$7=\"Invalid\",\"Internal Error, Contact Support\",VLOOKUP(eDESIND!X33,DI!$A$5:$B$400,2,FALSE))","v":{"$error":"#N/A"}},{"$f":"IF($R$7=\"Invalid\",\"Internal Error, Contact Support\",VLOOKUP(eDESIND!Z33,DI!$A$5:$B$400,2,FALSE))","v":{"$error":"#N/A"}},{"$f":"IF($R$7=\"Invalid\",\"Internal Error, Contact Support\",VLOOKUP(eDESIND!AB33,DI!$A$5:$B$400,2,FALSE))","v":{"$error":"#N/A"}}]
[{"$f":"eSPAR!A33","v":0},{"$f":"eSPAR!B33","v":0},{"$f":"IF($R$7=\"Invalid\",\"Internal Error, Contact Support\",VLOOKUP(eDESIND!D34,DI!$A$5:$B$400,2,FALSE))","v":{"$error":"#N/A"}},{"$f":"IF($R$7=\"Invalid\",\"Internal Error, Contact Support\",VLOOKUP(eDESIND!F34,DI!$A$5:$B$400,2,FALSE))","v":{"$error":"#N/A"}},{"$f":"IF($R$7=\"Invalid\",\"Internal Error, Contact Support\",VLOOKUP(eDESIND!H34,DI!$A$5:$B$400,2,FALSE))","v":{"$error":"#N/A"}},{"$f":"IF($R$7=\"Invalid\",\"Internal Error, Contact Support\",VLOOKUP(eDESIND!J34,DI!$A$5:$B$400,2,FALSE))","v":{"$error":"#N/A"}},{"$f":"IF($R$7=\"Invalid\",\"Internal Error, Contact Support\",VLOOKUP(eDESIND!L34,DI!$A$5:$B$400,2,FALSE))","v":{"$error":"#N/A"}},{"$f":"IF($R$7=\"Invalid\",\"Internal Error, Contact Support\",VLOOKUP(eDESIND!N34,DI!$A$5:$B$400,2,FALSE))","v":{"$error":"#N/A"}},{"$f":"IF($R$7=\"Invalid\",\"Internal Error, Contact Support\",VLOOKUP(eDESIND!P34,DI!$A$5:$B$400,2,FALSE))","v":{"$error":"#N/A"}},{"$f":"IF($R$7=\"Invalid\",\"Internal Error, Contact Support\",VLOOKUP(eDESIND!R34,DI!$A$5:$B$400,2,FALSE))","v":{"$error":"#N/A"}},{"$f":"IF($R$7=\"Invalid\",\"Internal Error, Contact Support\",VLOOKUP(eDESIND!T34,DI!$A$5:$B$400,2,FALSE))","v":{"$error":"#N/A"}},{"$f":"IF($R$7=\"Invalid\",\"Internal Error, Contact Support\",VLOOKUP(eDESIND!V34,DI!$A$5:$B$400,2,FALSE))","v":{"$error":"#N/A"}},{"$f":"IF($R$7=\"Invalid\",\"Internal Error, Contact Support\",VLOOKUP(eDESIND!X34,DI!$A$5:$B$400,2,FALSE))","v":{"$error":"#N/A"}},{"$f":"IF($R$7=\"Invalid\",\"Internal Error, Contact Support\",VLOOKUP(eDESIND!Z34,DI!$A$5:$B$400,2,FALSE))","v":{"$error":"#N/A"}},{"$f":"IF($R$7=\"Invalid\",\"Internal Error, Contact Support\",VLOOKUP(eDESIND!AB34,DI!$A$5:$B$400,2,FALSE))","v":{"$error":"#N/A"}}]
[{"$f":"eSPAR!A34","v":0},{"$f":"eSPAR!B34","v":0},{"$f":"IF($R$7=\"Invalid\",\"Internal Error, Contact Support\",VLOOKUP(eDESIND!D35,DI!$A$5:$B$400,2,FALSE))","v":{"$error":"#N/A"}},{"$f":"IF($R$7=\"Invalid\",\"Internal Error, Contact Support\",VLOOKUP(eDESIND!F35,DI!$A$5:$B$400,2,FALSE))","v":{"$error":"#N/A"}},{"$f":"IF($R$7=\"Invalid\",\"Internal Error, Contact Support\",VLOOKUP(eDESIND!H35,DI!$A$5:$B$400,2,FALSE))","v":{"$error":"#N/A"}},{"$f":"IF($R$7=\"Invalid\",\"Internal Error, Contact Support\",VLOOKUP(eDESIND!J35,DI!$A$5:$B$400,2,FALSE))","v":{"$error":"#N/A"}},{"$f":"IF($R$7=\"Invalid\",\"Internal Error, Contact Support\",VLOOKUP(eDESIND!L35,DI!$A$5:$B$400,2,FALSE))","v":{"$error":"#N/A"}},{"$f":"IF($R$7=\"Invalid\",\"Internal Error, Contact Support\",VLOOKUP(eDESIND!N35,DI!$A$5:$B$400,2,FALSE))","v":{"$error":"#N/A"}},{"$f":"IF($R$7=\"Invalid\",\"Internal Error, Contact Support\",VLOOKUP(eDESIND!P35,DI!$A$5:$B$400,2,FALSE))","v":{"$error":"#N/A"}},{"$f":"IF($R$7=\"Invalid\",\"Internal Error, Contact Support\",VLOOKUP(eDESIND!R35,DI!$A$5:$B$400,2,FALSE))","v":{"$error":"#N/A"}},{"$f":"IF($R$7=\"Invalid\",\"Internal Error, Contact Support\",VLOOKUP(eDESIND!T35,DI!$A$5:$B$400,2,FALSE))","v":{"$error":"#N/A"}},{"$f":"IF($R$7=\"Invalid\",\"Internal Error, Contact Support\",VLOOKUP(eDESIND!V35,DI!$A$5:$B$400,2,FALSE))","v":{"$error":"#N/A"}},{"$f":"IF($R$7=\"Invalid\",\"Internal Error, Contact Support\",VLOOKUP(eDESIND!X35,DI!$A$5:$B$400,2,FALSE))","v":{"$error":"#N/A"}},{"$f":"IF($R$7=\"Invalid\",\"Internal Error, Contact Support\",VLOOKUP(eDESIND!Z35,DI!$A$5:$B$400,2,FALSE))","v":{"$error":"#N/A"}},{"$f":"IF($R$7=\"Invalid\",\"Internal Error, Contact Support\",VLOOKUP(eDESIND!AB35,DI!$A$5:$B$400,2,FALSE))","v":{"$error":"#N/A"}}]
[{"$f":"eSPAR!A35","v":0},{"$f":"eSPAR!B35","v":0},{"$f":"IF($R$7=\"Invalid\",\"Internal Error, Contact Support\",VLOOKUP(eDESIND!D36,DI!$A$5:$B$400,2,FALSE))","v":{"$error":"#N/A"}},{"$f":"IF($R$7=\"Invalid\",\"Internal Error, Contact Support\",VLOOKUP(eDESIND!F36,DI!$A$5:$B$400,2,FALSE))","v":{"$error":"#N/A"}},{"$f":"IF($R$7=\"Invalid\",\"Internal Error, Contact Support\",VLOOKUP(eDESIND!H36,DI!$A$5:$B$400,2,FALSE))","v":{"$error":"#N/A"}},{"$f":"IF($R$7=\"Invalid\",\"Internal Error, Contact Support\",VLOOKUP(eDESIND!J36,DI!$A$5:$B$400,2,FALSE))","v":{"$error":"#N/A"}},{"$f":"IF($R$7=\"Invalid\",\"Internal Error, Contact Support\",VLOOKUP(eDESIND!L36,DI!$A$5:$B$400,2,FALSE))","v":{"$error":"#N/A"}},{"$f":"IF($R$7=\"Invalid\",\"Internal Error, Contact Support\",VLOOKUP(eDESIND!N36,DI!$A$5:$B$400,2,FALSE))","v":{"$error":"#N/A"}},{"$f":"IF($R$7=\"Invalid\",\"Internal Error, Contact Support\",VLOOKUP(eDESIND!P36,DI!$A$5:$B$400,2,FALSE))","v":{"$error":"#N/A"}},{"$f":"IF($R$7=\"Invalid\",\"Internal Error, Contact Support\",VLOOKUP(eDESIND!R36,DI!$A$5:$B$400,2,FALSE))","v":{"$error":"#N/A"}},{"$f":"IF($R$7=\"Invalid\",\"Internal Error, Contact Support\",VLOOKUP(eDESIND!T36,DI!$A$5:$B$400,2,FALSE))","v":{"$error":"#N/A"}},{"$f":"IF($R$7=\"Invalid\",\"Internal Error, Contact Support\",VLOOKUP(eDESIND!V36,DI!$A$5:$B$400,2,FALSE))","v":{"$error":"#N/A"}},{"$f":"IF($R$7=\"Invalid\",\"Internal Error, Contact Support\",VLOOKUP(eDESIND!X36,DI!$A$5:$B$400,2,FALSE))","v":{"$error":"#N/A"}},{"$f":"IF($R$7=\"Invalid\",\"Internal Error, Contact Support\",VLOOKUP(eDESIND!Z36,DI!$A$5:$B$400,2,FALSE))","v":{"$error":"#N/A"}},{"$f":"IF($R$7=\"Invalid\",\"Internal Error, Contact Support\",VLOOKUP(eDESIND!AB36,DI!$A$5:$B$400,2,FALSE))","v":{"$error":"#N/A"}}]
[{"$f":"eSPAR!A36","v":0},{"$f":"eSPAR!B36","v":0},{"$f":"IF($R$7=\"Invalid\",\"Internal Error, Contact Support\",VLOOKUP(eDESIND!D37,DI!$A$5:$B$400,2,FALSE))","v":{"$error":"#N/A"}},{"$f":"IF($R$7=\"Invalid\",\"Internal Error, Contact Support\",VLOOKUP(eDESIND!F37,DI!$A$5:$B$400,2,FALSE))","v":{"$error":"#N/A"}},{"$f":"IF($R$7=\"Invalid\",\"Internal Error, Contact Support\",VLOOKUP(eDESIND!H37,DI!$A$5:$B$400,2,FALSE))","v":{"$error":"#N/A"}},{"$f":"IF($R$7=\"Invalid\",\"Internal Error, Contact Support\",VLOOKUP(eDESIND!J37,DI!$A$5:$B$400,2,FALSE))","v":{"$error":"#N/A"}},{"$f":"IF($R$7=\"Invalid\",\"Internal Error, Contact Support\",VLOOKUP(eDESIND!L37,DI!$A$5:$B$400,2,FALSE))","v":{"$error":"#N/A"}},{"$f":"IF($R$7=\"Invalid\",\"Internal Error, Contact Support\",VLOOKUP(eDESIND!N37,DI!$A$5:$B$400,2,FALSE))","v":{"$error":"#N/A"}},{"$f":"IF($R$7=\"Invalid\",\"Internal Error, Contact Support\",VLOOKUP(eDESIND!P37,DI!$A$5:$B$400,2,FALSE))","v":{"$error":"#N/A"}},{"$f":"IF($R$7=\"Invalid\",\"Internal Error, Contact Support\",VLOOKUP(eDESIND!R37,DI!$A$5:$B$400,2,FALSE))","v":{"$error":"#N/A"}},{"$f":"IF($R$7=\"Invalid\",\"Internal Error, Contact Support\",VLOOKUP(eDESIND!T37,DI!$A$5:$B$400,2,FALSE))","v":{"$error":"#N/A"}},{"$f":"IF($R$7=\"Invalid\",\"Internal Error, Contact Support\",VLOOKUP(eDESIND!V37,DI!$A$5:$B$400,2,FALSE))","v":{"$error":"#N/A"}},{"$f":"IF($R$7=\"Invalid\",\"Internal Error, Contact Support\",VLOOKUP(eDESIND!X37,DI!$A$5:$B$400,2,FALSE))","v":{"$error":"#N/A"}},{"$f":"IF($R$7=\"Invalid\",\"Internal Error, Contact Support\",VLOOKUP(eDESIND!Z37,DI!$A$5:$B$400,2,FALSE))","v":{"$error":"#N/A"}},{"$f":"IF($R$7=\"Invalid\",\"Internal Error, Contact Support\",VLOOKUP(eDESIND!AB37,DI!$A$5:$B$400,2,FALSE))","v":{"$error":"#N/A"}}]
[{"$f":"eSPAR!A37","v":0},{"$f":"eSPAR!B37","v":0},{"$f":"IF($R$7=\"Invalid\",\"Internal Error, Contact Support\",VLOOKUP(eDESIND!D38,DI!$A$5:$B$400,2,FALSE))","v":{"$error":"#N/A"}},{"$f":"IF($R$7=\"Invalid\",\"Internal Error, Contact Support\",VLOOKUP(eDESIND!F38,DI!$A$5:$B$400,2,FALSE))","v":{"$error":"#N/A"}},{"$f":"IF($R$7=\"Invalid\",\"Internal Error, Contact Support\",VLOOKUP(eDESIND!H38,DI!$A$5:$B$400,2,FALSE))","v":{"$error":"#N/A"}},{"$f":"IF($R$7=\"Invalid\",\"Internal Error, Contact Support\",VLOOKUP(eDESIND!J38,DI!$A$5:$B$400,2,FALSE))","v":{"$error":"#N/A"}},{"$f":"IF($R$7=\"Invalid\",\"Internal Error, Contact Support\",VLOOKUP(eDESIND!L38,DI!$A$5:$B$400,2,FALSE))","v":{"$error":"#N/A"}},{"$f":"IF($R$7=\"Invalid\",\"Internal Error, Contact Support\",VLOOKUP(eDESIND!N38,DI!$A$5:$B$400,2,FALSE))","v":{"$error":"#N/A"}},{"$f":"IF($R$7=\"Invalid\",\"Internal Error, Contact Support\",VLOOKUP(eDESIND!P38,DI!$A$5:$B$400,2,FALSE))","v":{"$error":"#N/A"}},{"$f":"IF($R$7=\"Invalid\",\"Internal Error, Contact Support\",VLOOKUP(eDESIND!R38,DI!$A$5:$B$400,2,FALSE))","v":{"$error":"#N/A"}},{"$f":"IF($R$7=\"Invalid\",\"Internal Error, Contact Support\",VLOOKUP(eDESIND!T38,DI!$A$5:$B$400,2,FALSE))","v":{"$error":"#N/A"}},{"$f":"IF($R$7=\"Invalid\",\"Internal Error, Contact Support\",VLOOKUP(eDESIND!V38,DI!$A$5:$B$400,2,FALSE))","v":{"$error":"#N/A"}},{"$f":"IF($R$7=\"Invalid\",\"Internal Error, Contact Support\",VLOOKUP(eDESIND!X38,DI!$A$5:$B$400,2,FALSE))","v":{"$error":"#N/A"}},{"$f":"IF($R$7=\"Invalid\",\"Internal Error, Contact Support\",VLOOKUP(eDESIND!Z38,DI!$A$5:$B$400,2,FALSE))","v":{"$error":"#N/A"}},{"$f":"IF($R$7=\"Invalid\",\"Internal Error, Contact Support\",VLOOKUP(eDESIND!AB38,DI!$A$5:$B$400,2,FALSE))","v":{"$error":"#N/A"}}]
[{"$f":"eSPAR!A38","v":0},{"$f":"eSPAR!B38","v":0},{"$f":"IF($R$7=\"Invalid\",\"Internal Error, Contact Support\",VLOOKUP(eDESIND!D39,DI!$A$5:$B$400,2,FALSE))","v":{"$error":"#N/A"}},{"$f":"IF($R$7=\"Invalid\",\"Internal Error, Contact Support\",VLOOKUP(eDESIND!F39,DI!$A$5:$B$400,2,FALSE))","v":{"$error":"#N/A"}},{"$f":"IF($R$7=\"Invalid\",\"Internal Error, Contact Support\",VLOOKUP(eDESIND!H39,DI!$A$5:$B$400,2,FALSE))","v":{"$error":"#N/A"}},{"$f":"IF($R$7=\"Invalid\",\"Internal Error, Contact Support\",VLOOKUP(eDESIND!J39,DI!$A$5:$B$400,2,FALSE))","v":{"$error":"#N/A"}},{"$f":"IF($R$7=\"Invalid\",\"Internal Error, Contact Support\",VLOOKUP(eDESIND!L39,DI!$A$5:$B$400,2,FALSE))","v":{"$error":"#N/A"}},{"$f":"IF($R$7=\"Invalid\",\"Internal Error, Contact Support\",VLOOKUP(eDESIND!N39,DI!$A$5:$B$400,2,FALSE))","v":{"$error":"#N/A"}},{"$f":"IF($R$7=\"Invalid\",\"Internal Error, Contact Support\",VLOOKUP(eDESIND!P39,DI!$A$5:$B$400,2,FALSE))","v":{"$error":"#N/A"}},{"$f":"IF($R$7=\"Invalid\",\"Internal Error, Contact Support\",VLOOKUP(eDESIND!R39,DI!$A$5:$B$400,2,FALSE))","v":{"$error":"#N/A"}},{"$f":"IF($R$7=\"Invalid\",\"Internal Error, Contact Support\",VLOOKUP(eDESIND!T39,DI!$A$5:$B$400,2,FALSE))","v":{"$error":"#N/A"}},{"$f":"IF($R$7=\"Invalid\",\"Internal Error, Contact Support\",VLOOKUP(eDESIND!V39,DI!$A$5:$B$400,2,FALSE))","v":{"$error":"#N/A"}},{"$f":"IF($R$7=\"Invalid\",\"Internal Error, Contact Support\",VLOOKUP(eDESIND!X39,DI!$A$5:$B$400,2,FALSE))","v":{"$error":"#N/A"}},{"$f":"IF($R$7=\"Invalid\",\"Internal Error, Contact Support\",VLOOKUP(eDESIND!Z39,DI!$A$5:$B$400,2,FALSE))","v":{"$error":"#N/A"}},{"$f":"IF($R$7=\"Invalid\",\"Internal Error, Contact Support\",VLOOKUP(eDESIND!AB39,DI!$A$5:$B$400,2,FALSE))","v":{"$error":"#N/A"}}]
[{"$f":"eSPAR!A39","v":0},{"$f":"eSPAR!B39","v":0},{"$f":"IF($R$7=\"Invalid\",\"Internal Error, Contact Support\",VLOOKUP(eDESIND!D40,DI!$A$5:$B$400,2,FALSE))","v":{"$error":"#N/A"}},{"$f":"IF($R$7=\"Invalid\",\"Internal Error, Contact Support\",VLOOKUP(eDESIND!F40,DI!$A$5:$B$400,2,FALSE))","v":{"$error":"#N/A"}},{"$f":"IF($R$7=\"Invalid\",\"Internal Error, Contact Support\",VLOOKUP(eDESIND!H40,DI!$A$5:$B$400,2,FALSE))","v":{"$error":"#N/A"}},{"$f":"IF($R$7=\"Invalid\",\"Internal Error, Contact Support\",VLOOKUP(eDESIND!J40,DI!$A$5:$B$400,2,FALSE))","v":{"$error":"#N/A"}},{"$f":"IF($R$7=\"Invalid\",\"Internal Error, Contact Support\",VLOOKUP(eDESIND!L40,DI!$A$5:$B$400,2,FALSE))","v":{"$error":"#N/A"}},{"$f":"IF($R$7=\"Invalid\",\"Internal Error, Contact Support\",VLOOKUP(eDESIND!N40,DI!$A$5:$B$400,2,FALSE))","v":{"$error":"#N/A"}},{"$f":"IF($R$7=\"Invalid\",\"Internal Error, Contact Support\",VLOOKUP(eDESIND!P40,DI!$A$5:$B$400,2,FALSE))","v":{"$error":"#N/A"}},{"$f":"IF($R$7=\"Invalid\",\"Internal Error, Contact Support\",VLOOKUP(eDESIND!R40,DI!$A$5:$B$400,2,FALSE))","v":{"$error":"#N/A"}},{"$f":"IF($R$7=\"Invalid\",\"Internal Error, Contact Support\",VLOOKUP(eDESIND!T40,DI!$A$5:$B$400,2,FALSE))","v":{"$error":"#N/A"}},{"$f":"IF($R$7=\"Invalid\",\"Internal Error, Contact Support\",VLOOKUP(eDESIND!V40,DI!$A$5:$B$400,2,FALSE))","v":{"$error":"#N/A"}},{"$f":"IF($R$7=\"Invalid\",\"Internal Error, Contact Support\",VLOOKUP(eDESIND!X40,DI!$A$5:$B$400,2,FALSE))","v":{"$error":"#N/A"}},{"$f":"IF($R$7=\"Invalid\",\"Internal Error, Contact Support\",VLOOKUP(eDESIND!Z40,DI!$A$5:$B$400,2,FALSE))","v":{"$error":"#N/A"}},{"$f":"IF($R$7=\"Invalid\",\"Internal Error, Contact Support\",VLOOKUP(eDESIND!AB40,DI!$A$5:$B$400,2,FALSE))","v":{"$error":"#N/A"}}]
[{"$f":"eSPAR!A40","v":0},{"$f":"eSPAR!B40","v":0},{"$f":"IF($R$7=\"Invalid\",\"Internal Error, Contact Support\",VLOOKUP(eDESIND!D41,DI!$A$5:$B$400,2,FALSE))","v":{"$error":"#N/A"}},{"$f":"IF($R$7=\"Invalid\",\"Internal Error, Contact Support\",VLOOKUP(eDESIND!F41,DI!$A$5:$B$400,2,FALSE))","v":{"$error":"#N/A"}},{"$f":"IF($R$7=\"Invalid\",\"Internal Error, Contact Support\",VLOOKUP(eDESIND!H41,DI!$A$5:$B$400,2,FALSE))","v":{"$error":"#N/A"}},{"$f":"IF($R$7=\"Invalid\",\"Internal Error, Contact Support\",VLOOKUP(eDESIND!J41,DI!$A$5:$B$400,2,FALSE))","v":{"$error":"#N/A"}},{"$f":"IF($R$7=\"Invalid\",\"Internal Error, Contact Support\",VLOOKUP(eDESIND!L41,DI!$A$5:$B$400,2,FALSE))","v":{"$error":"#N/A"}},{"$f":"IF($R$7=\"Invalid\",\"Internal Error, Contact Support\",VLOOKUP(eDESIND!N41,DI!$A$5:$B$400,2,FALSE))","v":{"$error":"#N/A"}},{"$f":"IF($R$7=\"Invalid\",\"Internal Error, Contact Support\",VLOOKUP(eDESIND!P41,DI!$A$5:$B$400,2,FALSE))","v":{"$error":"#N/A"}},{"$f":"IF($R$7=\"Invalid\",\"Internal Error, Contact Support\",VLOOKUP(eDESIND!R41,DI!$A$5:$B$400,2,FALSE))","v":{"$error":"#N/A"}},{"$f":"IF($R$7=\"Invalid\",\"Internal Error, Contact Support\",VLOOKUP(eDESIND!T41,DI!$A$5:$B$400,2,FALSE))","v":{"$error":"#N/A"}},{"$f":"IF($R$7=\"Invalid\",\"Internal Error, Contact Support\",VLOOKUP(eDESIND!V41,DI!$A$5:$B$400,2,FALSE))","v":{"$error":"#N/A"}},{"$f":"IF($R$7=\"Invalid\",\"Internal Error, Contact Support\",VLOOKUP(eDESIND!X41,DI!$A$5:$B$400,2,FALSE))","v":{"$error":"#N/A"}},{"$f":"IF($R$7=\"Invalid\",\"Internal Error, Contact Support\",VLOOKUP(eDESIND!Z41,DI!$A$5:$B$400,2,FALSE))","v":{"$error":"#N/A"}},{"$f":"IF($R$7=\"Invalid\",\"Internal Error, Contact Support\",VLOOKUP(eDESIND!AB41,DI!$A$5:$B$400,2,FALSE))","v":{"$error":"#N/A"}}]
[{"$f":"eSPAR!A41","v":0},{"$f":"eSPAR!B41","v":0},{"$f":"IF($R$7=\"Invalid\",\"Internal Error, Contact Support\",VLOOKUP(eDESIND!D42,DI!$A$5:$B$400,2,FALSE))","v":{"$error":"#N/A"}},{"$f":"IF($R$7=\"Invalid\",\"Internal Error, Contact Support\",VLOOKUP(eDESIND!F42,DI!$A$5:$B$400,2,FALSE))","v":{"$error":"#N/A"}},{"$f":"IF($R$7=\"Invalid\",\"Internal Error, Contact Support\",VLOOKUP(eDESIND!H42,DI!$A$5:$B$400,2,FALSE))","v":{"$error":"#N/A"}},{"$f":"IF($R$7=\"Invalid\",\"Internal Error, Contact Support\",VLOOKUP(eDESIND!J42,DI!$A$5:$B$400,2,FALSE))","v":{"$error":"#N/A"}},{"$f":"IF($R$7=\"Invalid\",\"Internal Error, Contact Support\",VLOOKUP(eDESIND!L42,DI!$A$5:$B$400,2,FALSE))","v":{"$error":"#N/A"}},{"$f":"IF($R$7=\"Invalid\",\"Internal Error, Contact Support\",VLOOKUP(eDESIND!N42,DI!$A$5:$B$400,2,FALSE))","v":{"$error":"#N/A"}},{"$f":"IF($R$7=\"Invalid\",\"Internal Error, Contact Support\",VLOOKUP(eDESIND!P42,DI!$A$5:$B$400,2,FALSE))","v":{"$error":"#N/A"}},{"$f":"IF($R$7=\"Invalid\",\"Internal Error, Contact Support\",VLOOKUP(eDESIND!R42,DI!$A$5:$B$400,2,FALSE))","v":{"$error":"#N/A"}},{"$f":"IF($R$7=\"Invalid\",\"Internal Error, Contact Support\",VLOOKUP(eDESIND!T42,DI!$A$5:$B$400,2,FALSE))","v":{"$error":"#N/A"}},{"$f":"IF($R$7=\"Invalid\",\"Internal Error, Contact Support\",VLOOKUP(eDESIND!V42,DI!$A$5:$B$400,2,FALSE))","v":{"$error":"#N/A"}},{"$f":"IF($R$7=\"Invalid\",\"Internal Error, Contact Support\",VLOOKUP(eDESIND!X42,DI!$A$5:$B$400,2,FALSE))","v":{"$error":"#N/A"}},{"$f":"IF($R$7=\"Invalid\",\"Internal Error, Contact Support\",VLOOKUP(eDESIND!Z42,DI!$A$5:$B$400,2,FALSE))","v":{"$error":"#N/A"}},{"$f":"IF($R$7=\"Invalid\",\"Internal Error, Contact Support\",VLOOKUP(eDESIND!AB42,DI!$A$5:$B$400,2,FALSE))","v":{"$error":"#N/A"}}]
[{"$f":"eSPAR!A42","v":0},{"$f":"eSPAR!B42","v":0},{"$f":"IF($R$7=\"Invalid\",\"Internal Error, Contact Support\",VLOOKUP(eDESIND!D43,DI!$A$5:$B$400,2,FALSE))","v":{"$error":"#N/A"}},{"$f":"IF($R$7=\"Invalid\",\"Internal Error, Contact Support\",VLOOKUP(eDESIND!F43,DI!$A$5:$B$400,2,FALSE))","v":{"$error":"#N/A"}},{"$f":"IF($R$7=\"Invalid\",\"Internal Error, Contact Support\",VLOOKUP(eDESIND!H43,DI!$A$5:$B$400,2,FALSE))","v":{"$error":"#N/A"}},{"$f":"IF($R$7=\"Invalid\",\"Internal Error, Contact Support\",VLOOKUP(eDESIND!J43,DI!$A$5:$B$400,2,FALSE))","v":{"$error":"#N/A"}},{"$f":"IF($R$7=\"Invalid\",\"Internal Error, Contact Support\",VLOOKUP(eDESIND!L43,DI!$A$5:$B$400,2,FALSE))","v":{"$error":"#N/A"}},{"$f":"IF($R$7=\"Invalid\",\"Internal Error, Contact Support\",VLOOKUP(eDESIND!N43,DI!$A$5:$B$400,2,FALSE))","v":{"$error":"#N/A"}},{"$f":"IF($R$7=\"Invalid\",\"Internal Error, Contact Support\",VLOOKUP(eDESIND!P43,DI!$A$5:$B$400,2,FALSE))","v":{"$error":"#N/A"}},{"$f":"IF($R$7=\"Invalid\",\"Internal Error, Contact Support\",VLOOKUP(eDESIND!R43,DI!$A$5:$B$400,2,FALSE))","v":{"$error":"#N/A"}},{"$f":"IF($R$7=\"Invalid\",\"Internal Error, Contact Support\",VLOOKUP(eDESIND!T43,DI!$A$5:$B$400,2,FALSE))","v":{"$error":"#N/A"}},{"$f":"IF($R$7=\"Invalid\",\"Internal Error, Contact Support\",VLOOKUP(eDESIND!V43,DI!$A$5:$B$400,2,FALSE))","v":{"$error":"#N/A"}},{"$f":"IF($R$7=\"Invalid\",\"Internal Error, Contact Support\",VLOOKUP(eDESIND!X43,DI!$A$5:$B$400,2,FALSE))","v":{"$error":"#N/A"}},{"$f":"IF($R$7=\"Invalid\",\"Internal Error, Contact Support\",VLOOKUP(eDESIND!Z43,DI!$A$5:$B$400,2,FALSE))","v":{"$error":"#N/A"}},{"$f":"IF($R$7=\"Invalid\",\"Internal Error, Contact Support\",VLOOKUP(eDESIND!AB43,DI!$A$5:$B$400,2,FALSE))","v":{"$error":"#N/A"}}]
[{"$f":"eSPAR!A43","v":0},{"$f":"eSPAR!B43","v":0},{"$f":"IF($R$7=\"Invalid\",\"Internal Error, Contact Support\",VLOOKUP(eDESIND!D44,DI!$A$5:$B$400,2,FALSE))","v":{"$error":"#N/A"}},{"$f":"IF($R$7=\"Invalid\",\"Internal Error, Contact Support\",VLOOKUP(eDESIND!F44,DI!$A$5:$B$400,2,FALSE))","v":{"$error":"#N/A"}},{"$f":"IF($R$7=\"Invalid\",\"Internal Error, Contact Support\",VLOOKUP(eDESIND!H44,DI!$A$5:$B$400,2,FALSE))","v":{"$error":"#N/A"}},{"$f":"IF($R$7=\"Invalid\",\"Internal Error, Contact Support\",VLOOKUP(eDESIND!J44,DI!$A$5:$B$400,2,FALSE))","v":{"$error":"#N/A"}},{"$f":"IF($R$7=\"Invalid\",\"Internal Error, Contact Support\",VLOOKUP(eDESIND!L44,DI!$A$5:$B$400,2,FALSE))","v":{"$error":"#N/A"}},{"$f":"IF($R$7=\"Invalid\",\"Internal Error, Contact Support\",VLOOKUP(eDESIND!N44,DI!$A$5:$B$400,2,FALSE))","v":{"$error":"#N/A"}},{"$f":"IF($R$7=\"Invalid\",\"Internal Error, Contact Support\",VLOOKUP(eDESIND!P44,DI!$A$5:$B$400,2,FALSE))","v":{"$error":"#N/A"}},{"$f":"IF($R$7=\"Invalid\",\"Internal Error, Contact Support\",VLOOKUP(eDESIND!R44,DI!$A$5:$B$400,2,FALSE))","v":{"$error":"#N/A"}},{"$f":"IF($R$7=\"Invalid\",\"Internal Error, Contact Support\",VLOOKUP(eDESIND!T44,DI!$A$5:$B$400,2,FALSE))","v":{"$error":"#N/A"}},{"$f":"IF($R$7=\"Invalid\",\"Internal Error, Contact Support\",VLOOKUP(eDESIND!V44,DI!$A$5:$B$400,2,FALSE))","v":{"$error":"#N/A"}},{"$f":"IF($R$7=\"Invalid\",\"Internal Error, Contact Support\",VLOOKUP(eDESIND!X44,DI!$A$5:$B$400,2,FALSE))","v":{"$error":"#N/A"}},{"$f":"IF($R$7=\"Invalid\",\"Internal Error, Contact Support\",VLOOKUP(eDESIND!Z44,DI!$A$5:$B$400,2,FALSE))","v":{"$error":"#N/A"}},{"$f":"IF($R$7=\"Invalid\",\"Internal Error, Contact Support\",VLOOKUP(eDESIND!AB44,DI!$A$5:$B$400,2,FALSE))","v":{"$error":"#N/A"}}]
[{"$f":"eSPAR!A44","v":0},{"$f":"eSPAR!B44","v":0},{"$f":"IF($R$7=\"Invalid\",\"Internal Error, Contact Support\",VLOOKUP(eDESIND!D45,DI!$A$5:$B$400,2,FALSE))","v":{"$error":"#N/A"}},{"$f":"IF($R$7=\"Invalid\",\"Internal Error, Contact Support\",VLOOKUP(eDESIND!F45,DI!$A$5:$B$400,2,FALSE))","v":{"$error":"#N/A"}},{"$f":"IF($R$7=\"Invalid\",\"Internal Error, Contact Support\",VLOOKUP(eDESIND!H45,DI!$A$5:$B$400,2,FALSE))","v":{"$error":"#N/A"}},{"$f":"IF($R$7=\"Invalid\",\"Internal Error, Contact Support\",VLOOKUP(eDESIND!J45,DI!$A$5:$B$400,2,FALSE))","v":{"$error":"#N/A"}},{"$f":"IF($R$7=\"Invalid\",\"Internal Error, Contact Support\",VLOOKUP(eDESIND!L45,DI!$A$5:$B$400,2,FALSE))","v":{"$error":"#N/A"}},{"$f":"IF($R$7=\"Invalid\",\"Internal Error, Contact Support\",VLOOKUP(eDESIND!N45,DI!$A$5:$B$400,2,FALSE))","v":{"$error":"#N/A"}},{"$f":"IF($R$7=\"Invalid\",\"Internal Error, Contact Support\",VLOOKUP(eDESIND!P45,DI!$A$5:$B$400,2,FALSE))","v":{"$error":"#N/A"}},{"$f":"IF($R$7=\"Invalid\",\"Internal Error, Contact Support\",VLOOKUP(eDESIND!R45,DI!$A$5:$B$400,2,FALSE))","v":{"$error":"#N/A"}},{"$f":"IF($R$7=\"Invalid\",\"Internal Error, Contact Support\",VLOOKUP(eDESIND!T45,DI!$A$5:$B$400,2,FALSE))","v":{"$error":"#N/A"}},{"$f":"IF($R$7=\"Invalid\",\"Internal Error, Contact Support\",VLOOKUP(eDESIND!V45,DI!$A$5:$B$400,2,FALSE))","v":{"$error":"#N/A"}},{"$f":"IF($R$7=\"Invalid\",\"Internal Error, Contact Support\",VLOOKUP(eDESIND!X45,DI!$A$5:$B$400,2,FALSE))","v":{"$error":"#N/A"}},{"$f":"IF($R$7=\"Invalid\",\"Internal Error, Contact Support\",VLOOKUP(eDESIND!Z45,DI!$A$5:$B$400,2,FALSE))","v":{"$error":"#N/A"}},{"$f":"IF($R$7=\"Invalid\",\"Internal Error, Contact Support\",VLOOKUP(eDESIND!AB45,DI!$A$5:$B$400,2,FALSE))","v":{"$error":"#N/A"}}]
[{"$f":"eSPAR!A45","v":0},{"$f":"eSPAR!B45","v":0},{"$f":"IF($R$7=\"Invalid\",\"Internal Error, Contact Support\",VLOOKUP(eDESIND!D46,DI!$A$5:$B$400,2,FALSE))","v":{"$error":"#N/A"}},{"$f":"IF($R$7=\"Invalid\",\"Internal Error, Contact Support\",VLOOKUP(eDESIND!F46,DI!$A$5:$B$400,2,FALSE))","v":{"$error":"#N/A"}},{"$f":"IF($R$7=\"Invalid\",\"Internal Error, Contact Support\",VLOOKUP(eDESIND!H46,DI!$A$5:$B$400,2,FALSE))","v":{"$error":"#N/A"}},{"$f":"IF($R$7=\"Invalid\",\"Internal Error, Contact Support\",VLOOKUP(eDESIND!J46,DI!$A$5:$B$400,2,FALSE))","v":{"$error":"#N/A"}},{"$f":"IF($R$7=\"Invalid\",\"Internal Error, Contact Support\",VLOOKUP(eDESIND!L46,DI!$A$5:$B$400,2,FALSE))","v":{"$error":"#N/A"}},{"$f":"IF($R$7=\"Invalid\",\"Internal Error, Contact Support\",VLOOKUP(eDESIND!N46,DI!$A$5:$B$400,2,FALSE))","v":{"$error":"#N/A"}},{"$f":"IF($R$7=\"Invalid\",\"Internal Error, Contact Support\",VLOOKUP(eDESIND!P46,DI!$A$5:$B$400,2,FALSE))","v":{"$error":"#N/A"}},{"$f":"IF($R$7=\"Invalid\",\"Internal Error, Contact Support\",VLOOKUP(eDESIND!R46,DI!$A$5:$B$400,2,FALSE))","v":{"$error":"#N/A"}},{"$f":"IF($R$7=\"Invalid\",\"Internal Error, Contact Support\",VLOOKUP(eDESIND!T46,DI!$A$5:$B$400,2,FALSE))","v":{"$error":"#N/A"}},{"$f":"IF($R$7=\"Invalid\",\"Internal Error, Contact Support\",VLOOKUP(eDESIND!V46,DI!$A$5:$B$400,2,FALSE))","v":{"$error":"#N/A"}},{"$f":"IF($R$7=\"Invalid\",\"Internal Error, Contact Support\",VLOOKUP(eDESIND!X46,DI!$A$5:$B$400,2,FALSE))","v":{"$error":"#N/A"}},{"$f":"IF($R$7=\"Invalid\",\"Internal Error, Contact Support\",VLOOKUP(eDESIND!Z46,DI!$A$5:$B$400,2,FALSE))","v":{"$error":"#N/A"}},{"$f":"IF($R$7=\"Invalid\",\"Internal Error, Contact Support\",VLOOKUP(eDESIND!AB46,DI!$A$5:$B$400,2,FALSE))","v":{"$error":"#N/A"}}]
[{"$f":"eSPAR!A46","v":0},{"$f":"eSPAR!B46","v":0},{"$f":"IF($R$7=\"Invalid\",\"Internal Error, Contact Support\",VLOOKUP(eDESIND!D47,DI!$A$5:$B$400,2,FALSE))","v":{"$error":"#N/A"}},{"$f":"IF($R$7=\"Invalid\",\"Internal Error, Contact Support\",VLOOKUP(eDESIND!F47,DI!$A$5:$B$400,2,FALSE))","v":{"$error":"#N/A"}},{"$f":"IF($R$7=\"Invalid\",\"Internal Error, Contact Support\",VLOOKUP(eDESIND!H47,DI!$A$5:$B$400,2,FALSE))","v":{"$error":"#N/A"}},{"$f":"IF($R$7=\"Invalid\",\"Internal Error, Contact Support\",VLOOKUP(eDESIND!J47,DI!$A$5:$B$400,2,FALSE))","v":{"$error":"#N/A"}},{"$f":"IF($R$7=\"Invalid\",\"Internal Error, Contact Support\",VLOOKUP(eDESIND!L47,DI!$A$5:$B$400,2,FALSE))","v":{"$error":"#N/A"}},{"$f":"IF($R$7=\"Invalid\",\"Internal Error, Contact Support\",VLOOKUP(eDESIND!N47,DI!$A$5:$B$400,2,FALSE))","v":{"$error":"#N/A"}},{"$f":"IF($R$7=\"Invalid\",\"Internal Error, Contact Support\",VLOOKUP(eDESIND!P47,DI!$A$5:$B$400,2,FALSE))","v":{"$error":"#N/A"}},{"$f":"IF($R$7=\"Invalid\",\"Internal Error, Contact Support\",VLOOKUP(eDESIND!R47,DI!$A$5:$B$400,2,FALSE))","v":{"$error":"#N/A"}},{"$f":"IF($R$7=\"Invalid\",\"Internal Error, Contact Support\",VLOOKUP(eDESIND!T47,DI!$A$5:$B$400,2,FALSE))","v":{"$error":"#N/A"}},{"$f":"IF($R$7=\"Invalid\",\"Internal Error, Contact Support\",VLOOKUP(eDESIND!V47,DI!$A$5:$B$400,2,FALSE))","v":{"$error":"#N/A"}},{"$f":"IF($R$7=\"Invalid\",\"Internal Error, Contact Support\",VLOOKUP(eDESIND!X47,DI!$A$5:$B$400,2,FALSE))","v":{"$error":"#N/A"}},{"$f":"IF($R$7=\"Invalid\",\"Internal Error, Contact Support\",VLOOKUP(eDESIND!Z47,DI!$A$5:$B$400,2,FALSE))","v":{"$error":"#N/A"}},{"$f":"IF($R$7=\"Invalid\",\"Internal Error, Contact Support\",VLOOKUP(eDESIND!AB47,DI!$A$5:$B$400,2,FALSE))","v":{"$error":"#N/A"}}]
[{"$f":"eSPAR!A47","v":0},{"$f":"eSPAR!B47","v":0},{"$f":"IF($R$7=\"Invalid\",\"Internal Error, Contact Support\",VLOOKUP(eDESIND!D48,DI!$A$5:$B$400,2,FALSE))","v":{"$error":"#N/A"}},{"$f":"IF($R$7=\"Invalid\",\"Internal Error, Contact Support\",VLOOKUP(eDESIND!F48,DI!$A$5:$B$400,2,FALSE))","v":{"$error":"#N/A"}},{"$f":"IF($R$7=\"Invalid\",\"Internal Error, Contact Support\",VLOOKUP(eDESIND!H48,DI!$A$5:$B$400,2,FALSE))","v":{"$error":"#N/A"}},{"$f":"IF($R$7=\"Invalid\",\"Internal Error, Contact Support\",VLOOKUP(eDESIND!J48,DI!$A$5:$B$400,2,FALSE))","v":{"$error":"#N/A"}},{"$f":"IF($R$7=\"Invalid\",\"Internal Error, Contact Support\",VLOOKUP(eDESIND!L48,DI!$A$5:$B$400,2,FALSE))","v":{"$error":"#N/A"}},{"$f":"IF($R$7=\"Invalid\",\"Internal Error, Contact Support\",VLOOKUP(eDESIND!N48,DI!$A$5:$B$400,2,FALSE))","v":{"$error":"#N/A"}},{"$f":"IF($R$7=\"Invalid\",\"Internal Error, Contact Support\",VLOOKUP(eDESIND!P48,DI!$A$5:$B$400,2,FALSE))","v":{"$error":"#N/A"}},{"$f":"IF($R$7=\"Invalid\",\"Internal Error, Contact Support\",VLOOKUP(eDESIND!R48,DI!$A$5:$B$400,2,FALSE))","v":{"$error":"#N/A"}},{"$f":"IF($R$7=\"Invalid\",\"Internal Error, Contact Support\",VLOOKUP(eDESIND!T48,DI!$A$5:$B$400,2,FALSE))","v":{"$error":"#N/A"}},{"$f":"IF($R$7=\"Invalid\",\"Internal Error, Contact Support\",VLOOKUP(eDESIND!V48,DI!$A$5:$B$400,2,FALSE))","v":{"$error":"#N/A"}},{"$f":"IF($R$7=\"Invalid\",\"Internal Error, Contact Support\",VLOOKUP(eDESIND!X48,DI!$A$5:$B$400,2,FALSE))","v":{"$error":"#N/A"}},{"$f":"IF($R$7=\"Invalid\",\"Internal Error, Contact Support\",VLOOKUP(eDESIND!Z48,DI!$A$5:$B$400,2,FALSE))","v":{"$error":"#N/A"}},{"$f":"IF($R$7=\"Invalid\",\"Internal Error, Contact Support\",VLOOKUP(eDESIND!AB48,DI!$A$5:$B$400,2,FALSE))","v":{"$error":"#N/A"}}]
[{"$f":"eSPAR!A48","v":0},{"$f":"eSPAR!B48","v":0},{"$f":"IF($R$7=\"Invalid\",\"Internal Error, Contact Support\",VLOOKUP(eDESIND!D49,DI!$A$5:$B$400,2,FALSE))","v":{"$error":"#N/A"}},{"$f":"IF($R$7=\"Invalid\",\"Internal Error, Contact Support\",VLOOKUP(eDESIND!F49,DI!$A$5:$B$400,2,FALSE))","v":{"$error":"#N/A"}},{"$f":"IF($R$7=\"Invalid\",\"Internal Error, Contact Support\",VLOOKUP(eDESIND!H49,DI!$A$5:$B$400,2,FALSE))","v":{"$error":"#N/A"}},{"$f":"IF($R$7=\"Invalid\",\"Internal Error, Contact Support\",VLOOKUP(eDESIND!J49,DI!$A$5:$B$400,2,FALSE))","v":{"$error":"#N/A"}},{"$f":"IF($R$7=\"Invalid\",\"Internal Error, Contact Support\",VLOOKUP(eDESIND!L49,DI!$A$5:$B$400,2,FALSE))","v":{"$error":"#N/A"}},{"$f":"IF($R$7=\"Invalid\",\"Internal Error, Contact Support\",VLOOKUP(eDESIND!N49,DI!$A$5:$B$400,2,FALSE))","v":{"$error":"#N/A"}},{"$f":"IF($R$7=\"Invalid\",\"Internal Error, Contact Support\",VLOOKUP(eDESIND!P49,DI!$A$5:$B$400,2,FALSE))","v":{"$error":"#N/A"}},{"$f":"IF($R$7=\"Invalid\",\"Internal Error, Contact Support\",VLOOKUP(eDESIND!R49,DI!$A$5:$B$400,2,FALSE))","v":{"$error":"#N/A"}},{"$f":"IF($R$7=\"Invalid\",\"Internal Error, Contact Support\",VLOOKUP(eDESIND!T49,DI!$A$5:$B$400,2,FALSE))","v":{"$error":"#N/A"}},{"$f":"IF($R$7=\"Invalid\",\"Internal Error, Contact Support\",VLOOKUP(eDESIND!V49,DI!$A$5:$B$400,2,FALSE))","v":{"$error":"#N/A"}},{"$f":"IF($R$7=\"Invalid\",\"Internal Error, Contact Support\",VLOOKUP(eDESIND!X49,DI!$A$5:$B$400,2,FALSE))","v":{"$error":"#N/A"}},{"$f":"IF($R$7=\"Invalid\",\"Internal Error, Contact Support\",VLOOKUP(eDESIND!Z49,DI!$A$5:$B$400,2,FALSE))","v":{"$error":"#N/A"}},{"$f":"IF($R$7=\"Invalid\",\"Internal Error, Contact Support\",VLOOKUP(eDESIND!AB49,DI!$A$5:$B$400,2,FALSE))","v":{"$error":"#N/A"}}]
[{"$f":"eSPAR!A49","v":0},{"$f":"eSPAR!B49","v":0},{"$f":"IF($R$7=\"Invalid\",\"Internal Error, Contact Support\",VLOOKUP(eDESIND!D50,DI!$A$5:$B$400,2,FALSE))","v":{"$error":"#N/A"}},{"$f":"IF($R$7=\"Invalid\",\"Internal Error, Contact Support\",VLOOKUP(eDESIND!F50,DI!$A$5:$B$400,2,FALSE))","v":{"$error":"#N/A"}},{"$f":"IF($R$7=\"Invalid\",\"Internal Error, Contact Support\",VLOOKUP(eDESIND!H50,DI!$A$5:$B$400,2,FALSE))","v":{"$error":"#N/A"}},{"$f":"IF($R$7=\"Invalid\",\"Internal Error, Contact Support\",VLOOKUP(eDESIND!J50,DI!$A$5:$B$400,2,FALSE))","v":{"$error":"#N/A"}},{"$f":"IF($R$7=\"Invalid\",\"Internal Error, Contact Support\",VLOOKUP(eDESIND!L50,DI!$A$5:$B$400,2,FALSE))","v":{"$error":"#N/A"}},{"$f":"IF($R$7=\"Invalid\",\"Internal Error, Contact Support\",VLOOKUP(eDESIND!N50,DI!$A$5:$B$400,2,FALSE))","v":{"$error":"#N/A"}},{"$f":"IF($R$7=\"Invalid\",\"Internal Error, Contact Support\",VLOOKUP(eDESIND!P50,DI!$A$5:$B$400,2,FALSE))","v":{"$error":"#N/A"}},{"$f":"IF($R$7=\"Invalid\",\"Internal Error, Contact Support\",VLOOKUP(eDESIND!R50,DI!$A$5:$B$400,2,FALSE))","v":{"$error":"#N/A"}},{"$f":"IF($R$7=\"Invalid\",\"Internal Error, Contact Support\",VLOOKUP(eDESIND!T50,DI!$A$5:$B$400,2,FALSE))","v":{"$error":"#N/A"}},{"$f":"IF($R$7=\"Invalid\",\"Internal Error, Contact Support\",VLOOKUP(eDESIND!V50,DI!$A$5:$B$400,2,FALSE))","v":{"$error":"#N/A"}},{"$f":"IF($R$7=\"Invalid\",\"Internal Error, Contact Support\",VLOOKUP(eDESIND!X50,DI!$A$5:$B$400,2,FALSE))","v":{"$error":"#N/A"}},{"$f":"IF($R$7=\"Invalid\",\"Internal Error, Contact Support\",VLOOKUP(eDESIND!Z50,DI!$A$5:$B$400,2,FALSE))","v":{"$error":"#N/A"}},{"$f":"IF($R$7=\"Invalid\",\"Internal Error, Contact Support\",VLOOKUP(eDESIND!AB50,DI!$A$5:$B$400,2,FALSE))","v":{"$error":"#N/A"}}]
[{"$f":"eSPAR!A50","v":0},{"$f":"eSPAR!B50","v":0},{"$f":"IF($R$7=\"Invalid\",\"Internal Error, Contact Support\",VLOOKUP(eDESIND!D51,DI!$A$5:$B$400,2,FALSE))","v":{"$error":"#N/A"}},{"$f":"IF($R$7=\"Invalid\",\"Internal Error, Contact Support\",VLOOKUP(eDESIND!F51,DI!$A$5:$B$400,2,FALSE))","v":{"$error":"#N/A"}},{"$f":"IF($R$7=\"Invalid\",\"Internal Error, Contact Support\",VLOOKUP(eDESIND!H51,DI!$A$5:$B$400,2,FALSE))","v":{"$error":"#N/A"}},{"$f":"IF($R$7=\"Invalid\",\"Internal Error, Contact Support\",VLOOKUP(eDESIND!J51,DI!$A$5:$B$400,2,FALSE))","v":{"$error":"#N/A"}},{"$f":"IF($R$7=\"Invalid\",\"Internal Error, Contact Support\",VLOOKUP(eDESIND!L51,DI!$A$5:$B$400,2,FALSE))","v":{"$error":"#N/A"}},{"$f":"IF($R$7=\"Invalid\",\"Internal Error, Contact Support\",VLOOKUP(eDESIND!N51,DI!$A$5:$B$400,2,FALSE))","v":{"$error":"#N/A"}},{"$f":"IF($R$7=\"Invalid\",\"Internal Error, Contact Support\",VLOOKUP(eDESIND!P51,DI!$A$5:$B$400,2,FALSE))","v":{"$error":"#N/A"}},{"$f":"IF($R$7=\"Invalid\",\"Internal Error, Contact Support\",VLOOKUP(eDESIND!R51,DI!$A$5:$B$400,2,FALSE))","v":{"$error":"#N/A"}},{"$f":"IF($R$7=\"Invalid\",\"Internal Error, Contact Support\",VLOOKUP(eDESIND!T51,DI!$A$5:$B$400,2,FALSE))","v":{"$error":"#N/A"}},{"$f":"IF($R$7=\"Invalid\",\"Internal Error, Contact Support\",VLOOKUP(eDESIND!V51,DI!$A$5:$B$400,2,FALSE))","v":{"$error":"#N/A"}},{"$f":"IF($R$7=\"Invalid\",\"Internal Error, Contact Support\",VLOOKUP(eDESIND!X51,DI!$A$5:$B$400,2,FALSE))","v":{"$error":"#N/A"}},{"$f":"IF($R$7=\"Invalid\",\"Internal Error, Contact Support\",VLOOKUP(eDESIND!Z51,DI!$A$5:$B$400,2,FALSE))","v":{"$error":"#N/A"}},{"$f":"IF($R$7=\"Invalid\",\"Internal Error, Contact Support\",VLOOKUP(eDESIND!AB51,DI!$A$5:$B$400,2,FALSE))","v":{"$error":"#N/A"}}]
[{"$f":"eSPAR!A51","v":0},{"$f":"eSPAR!B51","v":0},{"$f":"IF($R$7=\"Invalid\",\"Internal Error, Contact Support\",VLOOKUP(eDESIND!D52,DI!$A$5:$B$400,2,FALSE))","v":{"$error":"#N/A"}},{"$f":"IF($R$7=\"Invalid\",\"Internal Error, Contact Support\",VLOOKUP(eDESIND!F52,DI!$A$5:$B$400,2,FALSE))","v":{"$error":"#N/A"}},{"$f":"IF($R$7=\"Invalid\",\"Internal Error, Contact Support\",VLOOKUP(eDESIND!H52,DI!$A$5:$B$400,2,FALSE))","v":{"$error":"#N/A"}},{"$f":"IF($R$7=\"Invalid\",\"Internal Error, Contact Support\",VLOOKUP(eDESIND!J52,DI!$A$5:$B$400,2,FALSE))","v":{"$error":"#N/A"}},{"$f":"IF($R$7=\"Invalid\",\"Internal Error, Contact Support\",VLOOKUP(eDESIND!L52,DI!$A$5:$B$400,2,FALSE))","v":{"$error":"#N/A"}},{"$f":"IF($R$7=\"Invalid\",\"Internal Error, Contact Support\",VLOOKUP(eDESIND!N52,DI!$A$5:$B$400,2,FALSE))","v":{"$error":"#N/A"}},{"$f":"IF($R$7=\"Invalid\",\"Internal Error, Contact Support\",VLOOKUP(eDESIND!P52,DI!$A$5:$B$400,2,FALSE))","v":{"$error":"#N/A"}},{"$f":"IF($R$7=\"Invalid\",\"Internal Error, Contact Support\",VLOOKUP(eDESIND!R52,DI!$A$5:$B$400,2,FALSE))","v":{"$error":"#N/A"}},{"$f":"IF($R$7=\"Invalid\",\"Internal Error, Contact Support\",VLOOKUP(eDESIND!T52,DI!$A$5:$B$400,2,FALSE))","v":{"$error":"#N/A"}},{"$f":"IF($R$7=\"Invalid\",\"Internal Error, Contact Support\",VLOOKUP(eDESIND!V52,DI!$A$5:$B$400,2,FALSE))","v":{"$error":"#N/A"}},{"$f":"IF($R$7=\"Invalid\",\"Internal Error, Contact Support\",VLOOKUP(eDESIND!X52,DI!$A$5:$B$400,2,FALSE))","v":{"$error":"#N/A"}},{"$f":"IF($R$7=\"Invalid\",\"Internal Error, Contact Support\",VLOOKUP(eDESIND!Z52,DI!$A$5:$B$400,2,FALSE))","v":{"$error":"#N/A"}},{"$f":"IF($R$7=\"Invalid\",\"Internal Error, Contact Support\",VLOOKUP(eDESIND!AB52,DI!$A$5:$B$400,2,FALSE))","v":{"$error":"#N/A"}}]
[{"$f":"eSPAR!A52","v":0},{"$f":"eSPAR!B52","v":0},{"$f":"IF($R$7=\"Invalid\",\"Internal Error, Contact Support\",VLOOKUP(eDESIND!D53,DI!$A$5:$B$400,2,FALSE))","v":{"$error":"#N/A"}},{"$f":"IF($R$7=\"Invalid\",\"Internal Error, Contact Support\",VLOOKUP(eDESIND!F53,DI!$A$5:$B$400,2,FALSE))","v":{"$error":"#N/A"}},{"$f":"IF($R$7=\"Invalid\",\"Internal Error, Contact Support\",VLOOKUP(eDESIND!H53,DI!$A$5:$B$400,2,FALSE))","v":{"$error":"#N/A"}},{"$f":"IF($R$7=\"Invalid\",\"Internal Error, Contact Support\",VLOOKUP(eDESIND!J53,DI!$A$5:$B$400,2,FALSE))","v":{"$error":"#N/A"}},{"$f":"IF($R$7=\"Invalid\",\"Internal Error, Contact Support\",VLOOKUP(eDESIND!L53,DI!$A$5:$B$400,2,FALSE))","v":{"$error":"#N/A"}},{"$f":"IF($R$7=\"Invalid\",\"Internal Error, Contact Support\",VLOOKUP(eDESIND!N53,DI!$A$5:$B$400,2,FALSE))","v":{"$error":"#N/A"}},{"$f":"IF($R$7=\"Invalid\",\"Internal Error, Contact Support\",VLOOKUP(eDESIND!P53,DI!$A$5:$B$400,2,FALSE))","v":{"$error":"#N/A"}},{"$f":"IF($R$7=\"Invalid\",\"Internal Error, Contact Support\",VLOOKUP(eDESIND!R53,DI!$A$5:$B$400,2,FALSE))","v":{"$error":"#N/A"}},{"$f":"IF($R$7=\"Invalid\",\"Internal Error, Contact Support\",VLOOKUP(eDESIND!T53,DI!$A$5:$B$400,2,FALSE))","v":{"$error":"#N/A"}},{"$f":"IF($R$7=\"Invalid\",\"Internal Error, Contact Support\",VLOOKUP(eDESIND!V53,DI!$A$5:$B$400,2,FALSE))","v":{"$error":"#N/A"}},{"$f":"IF($R$7=\"Invalid\",\"Internal Error, Contact Support\",VLOOKUP(eDESIND!X53,DI!$A$5:$B$400,2,FALSE))","v":{"$error":"#N/A"}},{"$f":"IF($R$7=\"Invalid\",\"Internal Error, Contact Support\",VLOOKUP(eDESIND!Z53,DI!$A$5:$B$400,2,FALSE))","v":{"$error":"#N/A"}},{"$f":"IF($R$7=\"Invalid\",\"Internal Error, Contact Support\",VLOOKUP(eDESIND!AB53,DI!$A$5:$B$400,2,FALSE))","v":{"$error":"#N/A"}}]
[{"$f":"eSPAR!A53","v":0},{"$f":"eSPAR!B53","v":0},{"$f":"IF($R$7=\"Invalid\",\"Internal Error, Contact Support\",VLOOKUP(eDESIND!D54,DI!$A$5:$B$400,2,FALSE))","v":{"$error":"#N/A"}},{"$f":"IF($R$7=\"Invalid\",\"Internal Error, Contact Support\",VLOOKUP(eDESIND!F54,DI!$A$5:$B$400,2,FALSE))","v":{"$error":"#N/A"}},{"$f":"IF($R$7=\"Invalid\",\"Internal Error, Contact Support\",VLOOKUP(eDESIND!H54,DI!$A$5:$B$400,2,FALSE))","v":{"$error":"#N/A"}},{"$f":"IF($R$7=\"Invalid\",\"Internal Error, Contact Support\",VLOOKUP(eDESIND!J54,DI!$A$5:$B$400,2,FALSE))","v":{"$error":"#N/A"}},{"$f":"IF($R$7=\"Invalid\",\"Internal Error, Contact Support\",VLOOKUP(eDESIND!L54,DI!$A$5:$B$400,2,FALSE))","v":{"$error":"#N/A"}},{"$f":"IF($R$7=\"Invalid\",\"Internal Error, Contact Support\",VLOOKUP(eDESIND!N54,DI!$A$5:$B$400,2,FALSE))","v":{"$error":"#N/A"}},{"$f":"IF($R$7=\"Invalid\",\"Internal Error, Contact Support\",VLOOKUP(eDESIND!P54,DI!$A$5:$B$400,2,FALSE))","v":{"$error":"#N/A"}},{"$f":"IF($R$7=\"Invalid\",\"Internal Error, Contact Support\",VLOOKUP(eDESIND!R54,DI!$A$5:$B$400,2,FALSE))","v":{"$error":"#N/A"}},{"$f":"IF($R$7=\"Invalid\",\"Internal Error, Contact Support\",VLOOKUP(eDESIND!T54,DI!$A$5:$B$400,2,FALSE))","v":{"$error":"#N/A"}},{"$f":"IF($R$7=\"Invalid\",\"Internal Error, Contact Support\",VLOOKUP(eDESIND!V54,DI!$A$5:$B$400,2,FALSE))","v":{"$error":"#N/A"}},{"$f":"IF($R$7=\"Invalid\",\"Internal Error, Contact Support\",VLOOKUP(eDESIND!X54,DI!$A$5:$B$400,2,FALSE))","v":{"$error":"#N/A"}},{"$f":"IF($R$7=\"Invalid\",\"Internal Error, Contact Support\",VLOOKUP(eDESIND!Z54,DI!$A$5:$B$400,2,FALSE))","v":{"$error":"#N/A"}},{"$f":"IF($R$7=\"Invalid\",\"Internal Error, Contact Support\",VLOOKUP(eDESIND!AB54,DI!$A$5:$B$400,2,FALSE))","v":{"$error":"#N/A"}}]
[{"$f":"eSPAR!A54","v":0},{"$f":"eSPAR!B54","v":0},{"$f":"IF($R$7=\"Invalid\",\"Internal Error, Contact Support\",VLOOKUP(eDESIND!D55,DI!$A$5:$B$400,2,FALSE))","v":{"$error":"#N/A"}},{"$f":"IF($R$7=\"Invalid\",\"Internal Error, Contact Support\",VLOOKUP(eDESIND!F55,DI!$A$5:$B$400,2,FALSE))","v":{"$error":"#N/A"}},{"$f":"IF($R$7=\"Invalid\",\"Internal Error, Contact Support\",VLOOKUP(eDESIND!H55,DI!$A$5:$B$400,2,FALSE))","v":{"$error":"#N/A"}},{"$f":"IF($R$7=\"Invalid\",\"Internal Error, Contact Support\",VLOOKUP(eDESIND!J55,DI!$A$5:$B$400,2,FALSE))","v":{"$error":"#N/A"}},{"$f":"IF($R$7=\"Invalid\",\"Internal Error, Contact Support\",VLOOKUP(eDESIND!L55,DI!$A$5:$B$400,2,FALSE))","v":{"$error":"#N/A"}},{"$f":"IF($R$7=\"Invalid\",\"Internal Error, Contact Support\",VLOOKUP(eDESIND!N55,DI!$A$5:$B$400,2,FALSE))","v":{"$error":"#N/A"}},{"$f":"IF($R$7=\"Invalid\",\"Internal Error, Contact Support\",VLOOKUP(eDESIND!P55,DI!$A$5:$B$400,2,FALSE))","v":{"$error":"#N/A"}},{"$f":"IF($R$7=\"Invalid\",\"Internal Error, Contact Support\",VLOOKUP(eDESIND!R55,DI!$A$5:$B$400,2,FALSE))","v":{"$error":"#N/A"}},{"$f":"IF($R$7=\"Invalid\",\"Internal Error, Contact Support\",VLOOKUP(eDESIND!T55,DI!$A$5:$B$400,2,FALSE))","v":{"$error":"#N/A"}},{"$f":"IF($R$7=\"Invalid\",\"Internal Error, Contact Support\",VLOOKUP(eDESIND!V55,DI!$A$5:$B$400,2,FALSE))","v":{"$error":"#N/A"}},{"$f":"IF($R$7=\"Invalid\",\"Internal Error, Contact Support\",VLOOKUP(eDESIND!X55,DI!$A$5:$B$400,2,FALSE))","v":{"$error":"#N/A"}},{"$f":"IF($R$7=\"Invalid\",\"Internal Error, Contact Support\",VLOOKUP(eDESIND!Z55,DI!$A$5:$B$400,2,FALSE))","v":{"$error":"#N/A"}},{"$f":"IF($R$7=\"Invalid\",\"Internal Error, Contact Support\",VLOOKUP(eDESIND!AB55,DI!$A$5:$B$400,2,FALSE))","v":{"$error":"#N/A"}}]
[{"$f":"eSPAR!A55","v":0},{"$f":"eSPAR!B55","v":0},{"$f":"IF($R$7=\"Invalid\",\"Internal Error, Contact Support\",VLOOKUP(eDESIND!D56,DI!$A$5:$B$400,2,FALSE))","v":{"$error":"#N/A"}},{"$f":"IF($R$7=\"Invalid\",\"Internal Error, Contact Support\",VLOOKUP(eDESIND!F56,DI!$A$5:$B$400,2,FALSE))","v":{"$error":"#N/A"}},{"$f":"IF($R$7=\"Invalid\",\"Internal Error, Contact Support\",VLOOKUP(eDESIND!H56,DI!$A$5:$B$400,2,FALSE))","v":{"$error":"#N/A"}},{"$f":"IF($R$7=\"Invalid\",\"Internal Error, Contact Support\",VLOOKUP(eDESIND!J56,DI!$A$5:$B$400,2,FALSE))","v":{"$error":"#N/A"}},{"$f":"IF($R$7=\"Invalid\",\"Internal Error, Contact Support\",VLOOKUP(eDESIND!L56,DI!$A$5:$B$400,2,FALSE))","v":{"$error":"#N/A"}},{"$f":"IF($R$7=\"Invalid\",\"Internal Error, Contact Support\",VLOOKUP(eDESIND!N56,DI!$A$5:$B$400,2,FALSE))","v":{"$error":"#N/A"}},{"$f":"IF($R$7=\"Invalid\",\"Internal Error, Contact Support\",VLOOKUP(eDESIND!P56,DI!$A$5:$B$400,2,FALSE))","v":{"$error":"#N/A"}},{"$f":"IF($R$7=\"Invalid\",\"Internal Error, Contact Support\",VLOOKUP(eDESIND!R56,DI!$A$5:$B$400,2,FALSE))","v":{"$error":"#N/A"}},{"$f":"IF($R$7=\"Invalid\",\"Internal Error, Contact Support\",VLOOKUP(eDESIND!T56,DI!$A$5:$B$400,2,FALSE))","v":{"$error":"#N/A"}},{"$f":"IF($R$7=\"Invalid\",\"Internal Error, Contact Support\",VLOOKUP(eDESIND!V56,DI!$A$5:$B$400,2,FALSE))","v":{"$error":"#N/A"}},{"$f":"IF($R$7=\"Invalid\",\"Internal Error, Contact Support\",VLOOKUP(eDESIND!X56,DI!$A$5:$B$400,2,FALSE))","v":{"$error":"#N/A"}},{"$f":"IF($R$7=\"Invalid\",\"Internal Error, Contact Support\",VLOOKUP(eDESIND!Z56,DI!$A$5:$B$400,2,FALSE))","v":{"$error":"#N/A"}},{"$f":"IF($R$7=\"Invalid\",\"Internal Error, Contact Support\",VLOOKUP(eDESIND!AB56,DI!$A$5:$B$400,2,FALSE))","v":{"$error":"#N/A"}}]
[{"$f":"eSPAR!A56","v":0},{"$f":"eSPAR!B56","v":0},{"$f":"IF($R$7=\"Invalid\",\"Internal Error, Contact Support\",VLOOKUP(eDESIND!D57,DI!$A$5:$B$400,2,FALSE))","v":{"$error":"#N/A"}},{"$f":"IF($R$7=\"Invalid\",\"Internal Error, Contact Support\",VLOOKUP(eDESIND!F57,DI!$A$5:$B$400,2,FALSE))","v":{"$error":"#N/A"}},{"$f":"IF($R$7=\"Invalid\",\"Internal Error, Contact Support\",VLOOKUP(eDESIND!H57,DI!$A$5:$B$400,2,FALSE))","v":{"$error":"#N/A"}},{"$f":"IF($R$7=\"Invalid\",\"Internal Error, Contact Support\",VLOOKUP(eDESIND!J57,DI!$A$5:$B$400,2,FALSE))","v":{"$error":"#N/A"}},{"$f":"IF($R$7=\"Invalid\",\"Internal Error, Contact Support\",VLOOKUP(eDESIND!L57,DI!$A$5:$B$400,2,FALSE))","v":{"$error":"#N/A"}},{"$f":"IF($R$7=\"Invalid\",\"Internal Error, Contact Support\",VLOOKUP(eDESIND!N57,DI!$A$5:$B$400,2,FALSE))","v":{"$error":"#N/A"}},{"$f":"IF($R$7=\"Invalid\",\"Internal Error, Contact Support\",VLOOKUP(eDESIND!P57,DI!$A$5:$B$400,2,FALSE))","v":{"$error":"#N/A"}},{"$f":"IF($R$7=\"Invalid\",\"Internal Error, Contact Support\",VLOOKUP(eDESIND!R57,DI!$A$5:$B$400,2,FALSE))","v":{"$error":"#N/A"}},{"$f":"IF($R$7=\"Invalid\",\"Internal Error, Contact Support\",VLOOKUP(eDESIND!T57,DI!$A$5:$B$400,2,FALSE))","v":{"$error":"#N/A"}},{"$f":"IF($R$7=\"Invalid\",\"Internal Error, Contact Support\",VLOOKUP(eDESIND!V57,DI!$A$5:$B$400,2,FALSE))","v":{"$error":"#N/A"}},{"$f":"IF($R$7=\"Invalid\",\"Internal Error, Contact Support\",VLOOKUP(eDESIND!X57,DI!$A$5:$B$400,2,FALSE))","v":{"$error":"#N/A"}},{"$f":"IF($R$7=\"Invalid\",\"Internal Error, Contact Support\",VLOOKUP(eDESIND!Z57,DI!$A$5:$B$400,2,FALSE))","v":{"$error":"#N/A"}},{"$f":"IF($R$7=\"Invalid\",\"Internal Error, Contact Support\",VLOOKUP(eDESIND!AB57,DI!$A$5:$B$400,2,FALSE))","v":{"$error":"#N/A"}}]
[{"$f":"eSPAR!A57","v":0},{"$f":"eSPAR!B57","v":0},{"$f":"IF($R$7=\"Invalid\",\"Internal Error, Contact Support\",VLOOKUP(eDESIND!D58,DI!$A$5:$B$400,2,FALSE))","v":{"$error":"#N/A"}},{"$f":"IF($R$7=\"Invalid\",\"Internal Error, Contact Support\",VLOOKUP(eDESIND!F58,DI!$A$5:$B$400,2,FALSE))","v":{"$error":"#N/A"}},{"$f":"IF($R$7=\"Invalid\",\"Internal Error, Contact Support\",VLOOKUP(eDESIND!H58,DI!$A$5:$B$400,2,FALSE))","v":{"$error":"#N/A"}},{"$f":"IF($R$7=\"Invalid\",\"Internal Error, Contact Support\",VLOOKUP(eDESIND!J58,DI!$A$5:$B$400,2,FALSE))","v":{"$error":"#N/A"}},{"$f":"IF($R$7=\"Invalid\",\"Internal Error, Contact Support\",VLOOKUP(eDESIND!L58,DI!$A$5:$B$400,2,FALSE))","v":{"$error":"#N/A"}},{"$f":"IF($R$7=\"Invalid\",\"Internal Error, Contact Support\",VLOOKUP(eDESIND!N58,DI!$A$5:$B$400,2,FALSE))","v":{"$error":"#N/A"}},{"$f":"IF($R$7=\"Invalid\",\"Internal Error, Contact Support\",VLOOKUP(eDESIND!P58,DI!$A$5:$B$400,2,FALSE))","v":{"$error":"#N/A"}},{"$f":"IF($R$7=\"Invalid\",\"Internal Error, Contact Support\",VLOOKUP(eDESIND!R58,DI!$A$5:$B$400,2,FALSE))","v":{"$error":"#N/A"}},{"$f":"IF($R$7=\"Invalid\",\"Internal Error, Contact Support\",VLOOKUP(eDESIND!T58,DI!$A$5:$B$400,2,FALSE))","v":{"$error":"#N/A"}},{"$f":"IF($R$7=\"Invalid\",\"Internal Error, Contact Support\",VLOOKUP(eDESIND!V58,DI!$A$5:$B$400,2,FALSE))","v":{"$error":"#N/A"}},{"$f":"IF($R$7=\"Invalid\",\"Internal Error, Contact Support\",VLOOKUP(eDESIND!X58,DI!$A$5:$B$400,2,FALSE))","v":{"$error":"#N/A"}},{"$f":"IF($R$7=\"Invalid\",\"Internal Error, Contact Support\",VLOOKUP(eDESIND!Z58,DI!$A$5:$B$400,2,FALSE))","v":{"$error":"#N/A"}},{"$f":"IF($R$7=\"Invalid\",\"Internal Error, Contact Support\",VLOOKUP(eDESIND!AB58,DI!$A$5:$B$400,2,FALSE))","v":{"$error":"#N/A"}}]
[{"$f":"eSPAR!A58","v":0},{"$f":"eSPAR!B58","v":0},{"$f":"IF($R$7=\"Invalid\",\"Internal Error, Contact Support\",VLOOKUP(eDESIND!D59,DI!$A$5:$B$400,2,FALSE))","v":{"$error":"#N/A"}},{"$f":"IF($R$7=\"Invalid\",\"Internal Error, Contact Support\",VLOOKUP(eDESIND!F59,DI!$A$5:$B$400,2,FALSE))","v":{"$error":"#N/A"}},{"$f":"IF($R$7=\"Invalid\",\"Internal Error, Contact Support\",VLOOKUP(eDESIND!H59,DI!$A$5:$B$400,2,FALSE))","v":{"$error":"#N/A"}},{"$f":"IF($R$7=\"Invalid\",\"Internal Error, Contact Support\",VLOOKUP(eDESIND!J59,DI!$A$5:$B$400,2,FALSE))","v":{"$error":"#N/A"}},{"$f":"IF($R$7=\"Invalid\",\"Internal Error, Contact Support\",VLOOKUP(eDESIND!L59,DI!$A$5:$B$400,2,FALSE))","v":{"$error":"#N/A"}},{"$f":"IF($R$7=\"Invalid\",\"Internal Error, Contact Support\",VLOOKUP(eDESIND!N59,DI!$A$5:$B$400,2,FALSE))","v":{"$error":"#N/A"}},{"$f":"IF($R$7=\"Invalid\",\"Internal Error, Contact Support\",VLOOKUP(eDESIND!P59,DI!$A$5:$B$400,2,FALSE))","v":{"$error":"#N/A"}},{"$f":"IF($R$7=\"Invalid\",\"Internal Error, Contact Support\",VLOOKUP(eDESIND!R59,DI!$A$5:$B$400,2,FALSE))","v":{"$error":"#N/A"}},{"$f":"IF($R$7=\"Invalid\",\"Internal Error, Contact Support\",VLOOKUP(eDESIND!T59,DI!$A$5:$B$400,2,FALSE))","v":{"$error":"#N/A"}},{"$f":"IF($R$7=\"Invalid\",\"Internal Error, Contact Support\",VLOOKUP(eDESIND!V59,DI!$A$5:$B$400,2,FALSE))","v":{"$error":"#N/A"}},{"$f":"IF($R$7=\"Invalid\",\"Internal Error, Contact Support\",VLOOKUP(eDESIND!X59,DI!$A$5:$B$400,2,FALSE))","v":{"$error":"#N/A"}},{"$f":"IF($R$7=\"Invalid\",\"Internal Error, Contact Support\",VLOOKUP(eDESIND!Z59,DI!$A$5:$B$400,2,FALSE))","v":{"$error":"#N/A"}},{"$f":"IF($R$7=\"Invalid\",\"Internal Error, Contact Support\",VLOOKUP(eDESIND!AB59,DI!$A$5:$B$400,2,FALSE))","v":{"$error":"#N/A"}}]
[{"$f":"eSPAR!A59","v":0},{"$f":"eSPAR!B59","v":0},{"$f":"IF($R$7=\"Invalid\",\"Internal Error, Contact Support\",VLOOKUP(eDESIND!D60,DI!$A$5:$B$400,2,FALSE))","v":{"$error":"#N/A"}},{"$f":"IF($R$7=\"Invalid\",\"Internal Error, Contact Support\",VLOOKUP(eDESIND!F60,DI!$A$5:$B$400,2,FALSE))","v":{"$error":"#N/A"}},{"$f":"IF($R$7=\"Invalid\",\"Internal Error, Contact Support\",VLOOKUP(eDESIND!H60,DI!$A$5:$B$400,2,FALSE))","v":{"$error":"#N/A"}},{"$f":"IF($R$7=\"Invalid\",\"Internal Error, Contact Support\",VLOOKUP(eDESIND!J60,DI!$A$5:$B$400,2,FALSE))","v":{"$error":"#N/A"}},{"$f":"IF($R$7=\"Invalid\",\"Internal Error, Contact Support\",VLOOKUP(eDESIND!L60,DI!$A$5:$B$400,2,FALSE))","v":{"$error":"#N/A"}},{"$f":"IF($R$7=\"Invalid\",\"Internal Error, Contact Support\",VLOOKUP(eDESIND!N60,DI!$A$5:$B$400,2,FALSE))","v":{"$error":"#N/A"}},{"$f":"IF($R$7=\"Invalid\",\"Internal Error, Contact Support\",VLOOKUP(eDESIND!P60,DI!$A$5:$B$400,2,FALSE))","v":{"$error":"#N/A"}},{"$f":"IF($R$7=\"Invalid\",\"Internal Error, Contact Support\",VLOOKUP(eDESIND!R60,DI!$A$5:$B$400,2,FALSE))","v":{"$error":"#N/A"}},{"$f":"IF($R$7=\"Invalid\",\"Internal Error, Contact Support\",VLOOKUP(eDESIND!T60,DI!$A$5:$B$400,2,FALSE))","v":{"$error":"#N/A"}},{"$f":"IF($R$7=\"Invalid\",\"Internal Error, Contact Support\",VLOOKUP(eDESIND!V60,DI!$A$5:$B$400,2,FALSE))","v":{"$error":"#N/A"}},{"$f":"IF($R$7=\"Invalid\",\"Internal Error, Contact Support\",VLOOKUP(eDESIND!X60,DI!$A$5:$B$400,2,FALSE))","v":{"$error":"#N/A"}},{"$f":"IF($R$7=\"Invalid\",\"Internal Error, Contact Support\",VLOOKUP(eDESIND!Z60,DI!$A$5:$B$400,2,FALSE))","v":{"$error":"#N/A"}},{"$f":"IF($R$7=\"Invalid\",\"Internal Error, Contact Support\",VLOOKUP(eDESIND!AB60,DI!$A$5:$B$400,2,FALSE))","v":{"$error":"#N/A"}}]
[{"$f":"eSPAR!A60","v":0},{"$f":"eSPAR!B60","v":0},{"$f":"IF($R$7=\"Invalid\",\"Internal Error, Contact Support\",VLOOKUP(eDESIND!D61,DI!$A$5:$B$400,2,FALSE))","v":{"$error":"#N/A"}},{"$f":"IF($R$7=\"Invalid\",\"Internal Error, Contact Support\",VLOOKUP(eDESIND!F61,DI!$A$5:$B$400,2,FALSE))","v":{"$error":"#N/A"}},{"$f":"IF($R$7=\"Invalid\",\"Internal Error, Contact Support\",VLOOKUP(eDESIND!H61,DI!$A$5:$B$400,2,FALSE))","v":{"$error":"#N/A"}},{"$f":"IF($R$7=\"Invalid\",\"Internal Error, Contact Support\",VLOOKUP(eDESIND!J61,DI!$A$5:$B$400,2,FALSE))","v":{"$error":"#N/A"}},{"$f":"IF($R$7=\"Invalid\",\"Internal Error, Contact Support\",VLOOKUP(eDESIND!L61,DI!$A$5:$B$400,2,FALSE))","v":{"$error":"#N/A"}},{"$f":"IF($R$7=\"Invalid\",\"Internal Error, Contact Support\",VLOOKUP(eDESIND!N61,DI!$A$5:$B$400,2,FALSE))","v":{"$error":"#N/A"}},{"$f":"IF($R$7=\"Invalid\",\"Internal Error, Contact Support\",VLOOKUP(eDESIND!P61,DI!$A$5:$B$400,2,FALSE))","v":{"$error":"#N/A"}},{"$f":"IF($R$7=\"Invalid\",\"Internal Error, Contact Support\",VLOOKUP(eDESIND!R61,DI!$A$5:$B$400,2,FALSE))","v":{"$error":"#N/A"}},{"$f":"IF($R$7=\"Invalid\",\"Internal Error, Contact Support\",VLOOKUP(eDESIND!T61,DI!$A$5:$B$400,2,FALSE))","v":{"$error":"#N/A"}},{"$f":"IF($R$7=\"Invalid\",\"Internal Error, Contact Support\",VLOOKUP(eDESIND!V61,DI!$A$5:$B$400,2,FALSE))","v":{"$error":"#N/A"}},{"$f":"IF($R$7=\"Invalid\",\"Internal Error, Contact Support\",VLOOKUP(eDESIND!X61,DI!$A$5:$B$400,2,FALSE))","v":{"$error":"#N/A"}},{"$f":"IF($R$7=\"Invalid\",\"Internal Error, Contact Support\",VLOOKUP(eDESIND!Z61,DI!$A$5:$B$400,2,FALSE))","v":{"$error":"#N/A"}},{"$f":"IF($R$7=\"Invalid\",\"Internal Error, Contact Support\",VLOOKUP(eDESIND!AB61,DI!$A$5:$B$400,2,FALSE))","v":{"$error":"#N/A"}}]
[{"$f":"eSPAR!A61","v":0},{"$f":"eSPAR!B61","v":0},{"$f":"IF($R$7=\"Invalid\",\"Internal Error, Contact Support\",VLOOKUP(eDESIND!D62,DI!$A$5:$B$400,2,FALSE))","v":{"$error":"#N/A"}},{"$f":"IF($R$7=\"Invalid\",\"Internal Error, Contact Support\",VLOOKUP(eDESIND!F62,DI!$A$5:$B$400,2,FALSE))","v":{"$error":"#N/A"}},{"$f":"IF($R$7=\"Invalid\",\"Internal Error, Contact Support\",VLOOKUP(eDESIND!H62,DI!$A$5:$B$400,2,FALSE))","v":{"$error":"#N/A"}},{"$f":"IF($R$7=\"Invalid\",\"Internal Error, Contact Support\",VLOOKUP(eDESIND!J62,DI!$A$5:$B$400,2,FALSE))","v":{"$error":"#N/A"}},{"$f":"IF($R$7=\"Invalid\",\"Internal Error, Contact Support\",VLOOKUP(eDESIND!L62,DI!$A$5:$B$400,2,FALSE))","v":{"$error":"#N/A"}},{"$f":"IF($R$7=\"Invalid\",\"Internal Error, Contact Support\",VLOOKUP(eDESIND!N62,DI!$A$5:$B$400,2,FALSE))","v":{"$error":"#N/A"}},{"$f":"IF($R$7=\"Invalid\",\"Internal Error, Contact Support\",VLOOKUP(eDESIND!P62,DI!$A$5:$B$400,2,FALSE))","v":{"$error":"#N/A"}},{"$f":"IF($R$7=\"Invalid\",\"Internal Error, Contact Support\",VLOOKUP(eDESIND!R62,DI!$A$5:$B$400,2,FALSE))","v":{"$error":"#N/A"}},{"$f":"IF($R$7=\"Invalid\",\"Internal Error, Contact Support\",VLOOKUP(eDESIND!T62,DI!$A$5:$B$400,2,FALSE))","v":{"$error":"#N/A"}},{"$f":"IF($R$7=\"Invalid\",\"Internal Error, Contact Support\",VLOOKUP(eDESIND!V62,DI!$A$5:$B$400,2,FALSE))","v":{"$error":"#N/A"}},{"$f":"IF($R$7=\"Invalid\",\"Internal Error, Contact Support\",VLOOKUP(eDESIND!X62,DI!$A$5:$B$400,2,FALSE))","v":{"$error":"#N/A"}},{"$f":"IF($R$7=\"Invalid\",\"Internal Error, Contact Support\",VLOOKUP(eDESIND!Z62,DI!$A$5:$B$400,2,FALSE))","v":{"$error":"#N/A"}},{"$f":"IF($R$7=\"Invalid\",\"Internal Error, Contact Support\",VLOOKUP(eDESIND!AB62,DI!$A$5:$B$400,2,FALSE))","v":{"$error":"#N/A"}}]
[{"$f":"eSPAR!A62","v":0},{"$f":"eSPAR!B62","v":0},{"$f":"IF($R$7=\"Invalid\",\"Internal Error, Contact Support\",VLOOKUP(eDESIND!D63,DI!$A$5:$B$400,2,FALSE))","v":{"$error":"#N/A"}},{"$f":"IF($R$7=\"Invalid\",\"Internal Error, Contact Support\",VLOOKUP(eDESIND!F63,DI!$A$5:$B$400,2,FALSE))","v":{"$error":"#N/A"}},{"$f":"IF($R$7=\"Invalid\",\"Internal Error, Contact Support\",VLOOKUP(eDESIND!H63,DI!$A$5:$B$400,2,FALSE))","v":{"$error":"#N/A"}},{"$f":"IF($R$7=\"Invalid\",\"Internal Error, Contact Support\",VLOOKUP(eDESIND!J63,DI!$A$5:$B$400,2,FALSE))","v":{"$error":"#N/A"}},{"$f":"IF($R$7=\"Invalid\",\"Internal Error, Contact Support\",VLOOKUP(eDESIND!L63,DI!$A$5:$B$400,2,FALSE))","v":{"$error":"#N/A"}},{"$f":"IF($R$7=\"Invalid\",\"Internal Error, Contact Support\",VLOOKUP(eDESIND!N63,DI!$A$5:$B$400,2,FALSE))","v":{"$error":"#N/A"}},{"$f":"IF($R$7=\"Invalid\",\"Internal Error, Contact Support\",VLOOKUP(eDESIND!P63,DI!$A$5:$B$400,2,FALSE))","v":{"$error":"#N/A"}},{"$f":"IF($R$7=\"Invalid\",\"Internal Error, Contact Support\",VLOOKUP(eDESIND!R63,DI!$A$5:$B$400,2,FALSE))","v":{"$error":"#N/A"}},{"$f":"IF($R$7=\"Invalid\",\"Internal Error, Contact Support\",VLOOKUP(eDESIND!T63,DI!$A$5:$B$400,2,FALSE))","v":{"$error":"#N/A"}},{"$f":"IF($R$7=\"Invalid\",\"Internal Error, Contact Support\",VLOOKUP(eDESIND!V63,DI!$A$5:$B$400,2,FALSE))","v":{"$error":"#N/A"}},{"$f":"IF($R$7=\"Invalid\",\"Internal Error, Contact Support\",VLOOKUP(eDESIND!X63,DI!$A$5:$B$400,2,FALSE))","v":{"$error":"#N/A"}},{"$f":"IF($R$7=\"Invalid\",\"Internal Error, Contact Support\",VLOOKUP(eDESIND!Z63,DI!$A$5:$B$400,2,FALSE))","v":{"$error":"#N/A"}},{"$f":"IF($R$7=\"Invalid\",\"Internal Error, Contact Support\",VLOOKUP(eDESIND!AB63,DI!$A$5:$B$400,2,FALSE))","v":{"$error":"#N/A"}}]
[{"$f":"eSPAR!A63","v":0},{"$f":"eSPAR!B63","v":0},{"$f":"IF($R$7=\"Invalid\",\"Internal Error, Contact Support\",VLOOKUP(eDESIND!D64,DI!$A$5:$B$400,2,FALSE))","v":{"$error":"#N/A"}},{"$f":"IF($R$7=\"Invalid\",\"Internal Error, Contact Support\",VLOOKUP(eDESIND!F64,DI!$A$5:$B$400,2,FALSE))","v":{"$error":"#N/A"}},{"$f":"IF($R$7=\"Invalid\",\"Internal Error, Contact Support\",VLOOKUP(eDESIND!H64,DI!$A$5:$B$400,2,FALSE))","v":{"$error":"#N/A"}},{"$f":"IF($R$7=\"Invalid\",\"Internal Error, Contact Support\",VLOOKUP(eDESIND!J64,DI!$A$5:$B$400,2,FALSE))","v":{"$error":"#N/A"}},{"$f":"IF($R$7=\"Invalid\",\"Internal Error, Contact Support\",VLOOKUP(eDESIND!L64,DI!$A$5:$B$400,2,FALSE))","v":{"$error":"#N/A"}},{"$f":"IF($R$7=\"Invalid\",\"Internal Error, Contact Support\",VLOOKUP(eDESIND!N64,DI!$A$5:$B$400,2,FALSE))","v":{"$error":"#N/A"}},{"$f":"IF($R$7=\"Invalid\",\"Internal Error, Contact Support\",VLOOKUP(eDESIND!P64,DI!$A$5:$B$400,2,FALSE))","v":{"$error":"#N/A"}},{"$f":"IF($R$7=\"Invalid\",\"Internal Error, Contact Support\",VLOOKUP(eDESIND!R64,DI!$A$5:$B$400,2,FALSE))","v":{"$error":"#N/A"}},{"$f":"IF($R$7=\"Invalid\",\"Internal Error, Contact Support\",VLOOKUP(eDESIND!T64,DI!$A$5:$B$400,2,FALSE))","v":{"$error":"#N/A"}},{"$f":"IF($R$7=\"Invalid\",\"Internal Error, Contact Support\",VLOOKUP(eDESIND!V64,DI!$A$5:$B$400,2,FALSE))","v":{"$error":"#N/A"}},{"$f":"IF($R$7=\"Invalid\",\"Internal Error, Contact Support\",VLOOKUP(eDESIND!X64,DI!$A$5:$B$400,2,FALSE))","v":{"$error":"#N/A"}},{"$f":"IF($R$7=\"Invalid\",\"Internal Error, Contact Support\",VLOOKUP(eDESIND!Z64,DI!$A$5:$B$400,2,FALSE))","v":{"$error":"#N/A"}},{"$f":"IF($R$7=\"Invalid\",\"Internal Error, Contact Support\",VLOOKUP(eDESIND!AB64,DI!$A$5:$B$400,2,FALSE))","v":{"$error":"#N/A"}}]
[{"$f":"eSPAR!A64","v":0},{"$f":"eSPAR!B64","v":0},{"$f":"IF($R$7=\"Invalid\",\"Internal Error, Contact Support\",VLOOKUP(eDESIND!D65,DI!$A$5:$B$400,2,FALSE))","v":{"$error":"#N/A"}},{"$f":"IF($R$7=\"Invalid\",\"Internal Error, Contact Support\",VLOOKUP(eDESIND!F65,DI!$A$5:$B$400,2,FALSE))","v":{"$error":"#N/A"}},{"$f":"IF($R$7=\"Invalid\",\"Internal Error, Contact Support\",VLOOKUP(eDESIND!H65,DI!$A$5:$B$400,2,FALSE))","v":{"$error":"#N/A"}},{"$f":"IF($R$7=\"Invalid\",\"Internal Error, Contact Support\",VLOOKUP(eDESIND!J65,DI!$A$5:$B$400,2,FALSE))","v":{"$error":"#N/A"}},{"$f":"IF($R$7=\"Invalid\",\"Internal Error, Contact Support\",VLOOKUP(eDESIND!L65,DI!$A$5:$B$400,2,FALSE))","v":{"$error":"#N/A"}},{"$f":"IF($R$7=\"Invalid\",\"Internal Error, Contact Support\",VLOOKUP(eDESIND!N65,DI!$A$5:$B$400,2,FALSE))","v":{"$error":"#N/A"}},{"$f":"IF($R$7=\"Invalid\",\"Internal Error, Contact Support\",VLOOKUP(eDESIND!P65,DI!$A$5:$B$400,2,FALSE))","v":{"$error":"#N/A"}},{"$f":"IF($R$7=\"Invalid\",\"Internal Error, Contact Support\",VLOOKUP(eDESIND!R65,DI!$A$5:$B$400,2,FALSE))","v":{"$error":"#N/A"}},{"$f":"IF($R$7=\"Invalid\",\"Internal Error, Contact Support\",VLOOKUP(eDESIND!T65,DI!$A$5:$B$400,2,FALSE))","v":{"$error":"#N/A"}},{"$f":"IF($R$7=\"Invalid\",\"Internal Error, Contact Support\",VLOOKUP(eDESIND!V65,DI!$A$5:$B$400,2,FALSE))","v":{"$error":"#N/A"}},{"$f":"IF($R$7=\"Invalid\",\"Internal Error, Contact Support\",VLOOKUP(eDESIND!X65,DI!$A$5:$B$400,2,FALSE))","v":{"$error":"#N/A"}},{"$f":"IF($R$7=\"Invalid\",\"Internal Error, Contact Support\",VLOOKUP(eDESIND!Z65,DI!$A$5:$B$400,2,FALSE))","v":{"$error":"#N/A"}},{"$f":"IF($R$7=\"Invalid\",\"Internal Error, Contact Support\",VLOOKUP(eDESIND!AB65,DI!$A$5:$B$400,2,FALSE))","v":{"$error":"#N/A"}}]
[{"$f":"eSPAR!A65","v":0},{"$f":"eSPAR!B65","v":0},{"$f":"IF($R$7=\"Invalid\",\"Internal Error, Contact Support\",VLOOKUP(eDESIND!D66,DI!$A$5:$B$400,2,FALSE))","v":{"$error":"#N/A"}},{"$f":"IF($R$7=\"Invalid\",\"Internal Error, Contact Support\",VLOOKUP(eDESIND!F66,DI!$A$5:$B$400,2,FALSE))","v":{"$error":"#N/A"}},{"$f":"IF($R$7=\"Invalid\",\"Internal Error, Contact Support\",VLOOKUP(eDESIND!H66,DI!$A$5:$B$400,2,FALSE))","v":{"$error":"#N/A"}},{"$f":"IF($R$7=\"Invalid\",\"Internal Error, Contact Support\",VLOOKUP(eDESIND!J66,DI!$A$5:$B$400,2,FALSE))","v":{"$error":"#N/A"}},{"$f":"IF($R$7=\"Invalid\",\"Internal Error, Contact Support\",VLOOKUP(eDESIND!L66,DI!$A$5:$B$400,2,FALSE))","v":{"$error":"#N/A"}},{"$f":"IF($R$7=\"Invalid\",\"Internal Error, Contact Support\",VLOOKUP(eDESIND!N66,DI!$A$5:$B$400,2,FALSE))","v":{"$error":"#N/A"}},{"$f":"IF($R$7=\"Invalid\",\"Internal Error, Contact Support\",VLOOKUP(eDESIND!P66,DI!$A$5:$B$400,2,FALSE))","v":{"$error":"#N/A"}},{"$f":"IF($R$7=\"Invalid\",\"Internal Error, Contact Support\",VLOOKUP(eDESIND!R66,DI!$A$5:$B$400,2,FALSE))","v":{"$error":"#N/A"}},{"$f":"IF($R$7=\"Invalid\",\"Internal Error, Contact Support\",VLOOKUP(eDESIND!T66,DI!$A$5:$B$400,2,FALSE))","v":{"$error":"#N/A"}},{"$f":"IF($R$7=\"Invalid\",\"Internal Error, Contact Support\",VLOOKUP(eDESIND!V66,DI!$A$5:$B$400,2,FALSE))","v":{"$error":"#N/A"}},{"$f":"IF($R$7=\"Invalid\",\"Internal Error, Contact Support\",VLOOKUP(eDESIND!X66,DI!$A$5:$B$400,2,FALSE))","v":{"$error":"#N/A"}},{"$f":"IF($R$7=\"Invalid\",\"Internal Error, Contact Support\",VLOOKUP(eDESIND!Z66,DI!$A$5:$B$400,2,FALSE))","v":{"$error":"#N/A"}},{"$f":"IF($R$7=\"Invalid\",\"Internal Error, Contact Support\",VLOOKUP(eDESIND!AB66,DI!$A$5:$B$400,2,FALSE))","v":{"$error":"#N/A"}}]
[{"$f":"eSPAR!A66","v":0},{"$f":"eSPAR!B66","v":0},{"$f":"IF($R$7=\"Invalid\",\"Internal Error, Contact Support\",VLOOKUP(eDESIND!D67,DI!$A$5:$B$400,2,FALSE))","v":{"$error":"#N/A"}},{"$f":"IF($R$7=\"Invalid\",\"Internal Error, Contact Support\",VLOOKUP(eDESIND!F67,DI!$A$5:$B$400,2,FALSE))","v":{"$error":"#N/A"}},{"$f":"IF($R$7=\"Invalid\",\"Internal Error, Contact Support\",VLOOKUP(eDESIND!H67,DI!$A$5:$B$400,2,FALSE))","v":{"$error":"#N/A"}},{"$f":"IF($R$7=\"Invalid\",\"Internal Error, Contact Support\",VLOOKUP(eDESIND!J67,DI!$A$5:$B$400,2,FALSE))","v":{"$error":"#N/A"}},{"$f":"IF($R$7=\"Invalid\",\"Internal Error, Contact Support\",VLOOKUP(eDESIND!L67,DI!$A$5:$B$400,2,FALSE))","v":{"$error":"#N/A"}},{"$f":"IF($R$7=\"Invalid\",\"Internal Error, Contact Support\",VLOOKUP(eDESIND!N67,DI!$A$5:$B$400,2,FALSE))","v":{"$error":"#N/A"}},{"$f":"IF($R$7=\"Invalid\",\"Internal Error, Contact Support\",VLOOKUP(eDESIND!P67,DI!$A$5:$B$400,2,FALSE))","v":{"$error":"#N/A"}},{"$f":"IF($R$7=\"Invalid\",\"Internal Error, Contact Support\",VLOOKUP(eDESIND!R67,DI!$A$5:$B$400,2,FALSE))","v":{"$error":"#N/A"}},{"$f":"IF($R$7=\"Invalid\",\"Internal Error, Contact Support\",VLOOKUP(eDESIND!T67,DI!$A$5:$B$400,2,FALSE))","v":{"$error":"#N/A"}},{"$f":"IF($R$7=\"Invalid\",\"Internal Error, Contact Support\",VLOOKUP(eDESIND!V67,DI!$A$5:$B$400,2,FALSE))","v":{"$error":"#N/A"}},{"$f":"IF($R$7=\"Invalid\",\"Internal Error, Contact Support\",VLOOKUP(eDESIND!X67,DI!$A$5:$B$400,2,FALSE))","v":{"$error":"#N/A"}},{"$f":"IF($R$7=\"Invalid\",\"Internal Error, Contact Support\",VLOOKUP(eDESIND!Z67,DI!$A$5:$B$400,2,FALSE))","v":{"$error":"#N/A"}},{"$f":"IF($R$7=\"Invalid\",\"Internal Error, Contact Support\",VLOOKUP(eDESIND!AB67,DI!$A$5:$B$400,2,FALSE))","v":{"$error":"#N/A"}}]
[{"$f":"eSPAR!A67","v":0},{"$f":"eSPAR!B67","v":0},{"$f":"IF($R$7=\"Invalid\",\"Internal Error, Contact Support\",VLOOKUP(eDESIND!D68,DI!$A$5:$B$400,2,FALSE))","v":{"$error":"#N/A"}},{"$f":"IF($R$7=\"Invalid\",\"Internal Error, Contact Support\",VLOOKUP(eDESIND!F68,DI!$A$5:$B$400,2,FALSE))","v":{"$error":"#N/A"}},{"$f":"IF($R$7=\"Invalid\",\"Internal Error, Contact Support\",VLOOKUP(eDESIND!H68,DI!$A$5:$B$400,2,FALSE))","v":{"$error":"#N/A"}},{"$f":"IF($R$7=\"Invalid\",\"Internal Error, Contact Support\",VLOOKUP(eDESIND!J68,DI!$A$5:$B$400,2,FALSE))","v":{"$error":"#N/A"}},{"$f":"IF($R$7=\"Invalid\",\"Internal Error, Contact Support\",VLOOKUP(eDESIND!L68,DI!$A$5:$B$400,2,FALSE))","v":{"$error":"#N/A"}},{"$f":"IF($R$7=\"Invalid\",\"Internal Error, Contact Support\",VLOOKUP(eDESIND!N68,DI!$A$5:$B$400,2,FALSE))","v":{"$error":"#N/A"}},{"$f":"IF($R$7=\"Invalid\",\"Internal Error, Contact Support\",VLOOKUP(eDESIND!P68,DI!$A$5:$B$400,2,FALSE))","v":{"$error":"#N/A"}},{"$f":"IF($R$7=\"Invalid\",\"Internal Error, Contact Support\",VLOOKUP(eDESIND!R68,DI!$A$5:$B$400,2,FALSE))","v":{"$error":"#N/A"}},{"$f":"IF($R$7=\"Invalid\",\"Internal Error, Contact Support\",VLOOKUP(eDESIND!T68,DI!$A$5:$B$400,2,FALSE))","v":{"$error":"#N/A"}},{"$f":"IF($R$7=\"Invalid\",\"Internal Error, Contact Support\",VLOOKUP(eDESIND!V68,DI!$A$5:$B$400,2,FALSE))","v":{"$error":"#N/A"}},{"$f":"IF($R$7=\"Invalid\",\"Internal Error, Contact Support\",VLOOKUP(eDESIND!X68,DI!$A$5:$B$400,2,FALSE))","v":{"$error":"#N/A"}},{"$f":"IF($R$7=\"Invalid\",\"Internal Error, Contact Support\",VLOOKUP(eDESIND!Z68,DI!$A$5:$B$400,2,FALSE))","v":{"$error":"#N/A"}},{"$f":"IF($R$7=\"Invalid\",\"Internal Error, Contact Support\",VLOOKUP(eDESIND!AB68,DI!$A$5:$B$400,2,FALSE))","v":{"$error":"#N/A"}}]
[{"$f":"eSPAR!A68","v":0},{"$f":"eSPAR!B68","v":0},{"$f":"IF($R$7=\"Invalid\",\"Internal Error, Contact Support\",VLOOKUP(eDESIND!D69,DI!$A$5:$B$400,2,FALSE))","v":{"$error":"#N/A"}},{"$f":"IF($R$7=\"Invalid\",\"Internal Error, Contact Support\",VLOOKUP(eDESIND!F69,DI!$A$5:$B$400,2,FALSE))","v":{"$error":"#N/A"}},{"$f":"IF($R$7=\"Invalid\",\"Internal Error, Contact Support\",VLOOKUP(eDESIND!H69,DI!$A$5:$B$400,2,FALSE))","v":{"$error":"#N/A"}},{"$f":"IF($R$7=\"Invalid\",\"Internal Error, Contact Support\",VLOOKUP(eDESIND!J69,DI!$A$5:$B$400,2,FALSE))","v":{"$error":"#N/A"}},{"$f":"IF($R$7=\"Invalid\",\"Internal Error, Contact Support\",VLOOKUP(eDESIND!L69,DI!$A$5:$B$400,2,FALSE))","v":{"$error":"#N/A"}},{"$f":"IF($R$7=\"Invalid\",\"Internal Error, Contact Support\",VLOOKUP(eDESIND!N69,DI!$A$5:$B$400,2,FALSE))","v":{"$error":"#N/A"}},{"$f":"IF($R$7=\"Invalid\",\"Internal Error, Contact Support\",VLOOKUP(eDESIND!P69,DI!$A$5:$B$400,2,FALSE))","v":{"$error":"#N/A"}},{"$f":"IF($R$7=\"Invalid\",\"Internal Error, Contact Support\",VLOOKUP(eDESIND!R69,DI!$A$5:$B$400,2,FALSE))","v":{"$error":"#N/A"}},{"$f":"IF($R$7=\"Invalid\",\"Internal Error, Contact Support\",VLOOKUP(eDESIND!T69,DI!$A$5:$B$400,2,FALSE))","v":{"$error":"#N/A"}},{"$f":"IF($R$7=\"Invalid\",\"Internal Error, Contact Support\",VLOOKUP(eDESIND!V69,DI!$A$5:$B$400,2,FALSE))","v":{"$error":"#N/A"}},{"$f":"IF($R$7=\"Invalid\",\"Internal Error, Contact Support\",VLOOKUP(eDESIND!X69,DI!$A$5:$B$400,2,FALSE))","v":{"$error":"#N/A"}},{"$f":"IF($R$7=\"Invalid\",\"Internal Error, Contact Support\",VLOOKUP(eDESIND!Z69,DI!$A$5:$B$400,2,FALSE))","v":{"$error":"#N/A"}},{"$f":"IF($R$7=\"Invalid\",\"Internal Error, Contact Support\",VLOOKUP(eDESIND!AB69,DI!$A$5:$B$400,2,FALSE))","v":{"$error":"#N/A"}}]
[{"$f":"eSPAR!A69","v":0},{"$f":"eSPAR!B69","v":0},{"$f":"IF($R$7=\"Invalid\",\"Internal Error, Contact Support\",VLOOKUP(eDESIND!D70,DI!$A$5:$B$400,2,FALSE))","v":{"$error":"#N/A"}},{"$f":"IF($R$7=\"Invalid\",\"Internal Error, Contact Support\",VLOOKUP(eDESIND!F70,DI!$A$5:$B$400,2,FALSE))","v":{"$error":"#N/A"}},{"$f":"IF($R$7=\"Invalid\",\"Internal Error, Contact Support\",VLOOKUP(eDESIND!H70,DI!$A$5:$B$400,2,FALSE))","v":{"$error":"#N/A"}},{"$f":"IF($R$7=\"Invalid\",\"Internal Error, Contact Support\",VLOOKUP(eDESIND!J70,DI!$A$5:$B$400,2,FALSE))","v":{"$error":"#N/A"}},{"$f":"IF($R$7=\"Invalid\",\"Internal Error, Contact Support\",VLOOKUP(eDESIND!L70,DI!$A$5:$B$400,2,FALSE))","v":{"$error":"#N/A"}},{"$f":"IF($R$7=\"Invalid\",\"Internal Error, Contact Support\",VLOOKUP(eDESIND!N70,DI!$A$5:$B$400,2,FALSE))","v":{"$error":"#N/A"}},{"$f":"IF($R$7=\"Invalid\",\"Internal Error, Contact Support\",VLOOKUP(eDESIND!P70,DI!$A$5:$B$400,2,FALSE))","v":{"$error":"#N/A"}},{"$f":"IF($R$7=\"Invalid\",\"Internal Error, Contact Support\",VLOOKUP(eDESIND!R70,DI!$A$5:$B$400,2,FALSE))","v":{"$error":"#N/A"}},{"$f":"IF($R$7=\"Invalid\",\"Internal Error, Contact Support\",VLOOKUP(eDESIND!T70,DI!$A$5:$B$400,2,FALSE))","v":{"$error":"#N/A"}},{"$f":"IF($R$7=\"Invalid\",\"Internal Error, Contact Support\",VLOOKUP(eDESIND!V70,DI!$A$5:$B$400,2,FALSE))","v":{"$error":"#N/A"}},{"$f":"IF($R$7=\"Invalid\",\"Internal Error, Contact Support\",VLOOKUP(eDESIND!X70,DI!$A$5:$B$400,2,FALSE))","v":{"$error":"#N/A"}},{"$f":"IF($R$7=\"Invalid\",\"Internal Error, Contact Support\",VLOOKUP(eDESIND!Z70,DI!$A$5:$B$400,2,FALSE))","v":{"$error":"#N/A"}},{"$f":"IF($R$7=\"Invalid\",\"Internal Error, Contact Support\",VLOOKUP(eDESIND!AB70,DI!$A$5:$B$400,2,FALSE))","v":{"$error":"#N/A"}}]
[{"$f":"eSPAR!A70","v":0},{"$f":"eSPAR!B70","v":0},{"$f":"IF($R$7=\"Invalid\",\"Internal Error, Contact Support\",VLOOKUP(eDESIND!D71,DI!$A$5:$B$400,2,FALSE))","v":{"$error":"#N/A"}},{"$f":"IF($R$7=\"Invalid\",\"Internal Error, Contact Support\",VLOOKUP(eDESIND!F71,DI!$A$5:$B$400,2,FALSE))","v":{"$error":"#N/A"}},{"$f":"IF($R$7=\"Invalid\",\"Internal Error, Contact Support\",VLOOKUP(eDESIND!H71,DI!$A$5:$B$400,2,FALSE))","v":{"$error":"#N/A"}},{"$f":"IF($R$7=\"Invalid\",\"Internal Error, Contact Support\",VLOOKUP(eDESIND!J71,DI!$A$5:$B$400,2,FALSE))","v":{"$error":"#N/A"}},{"$f":"IF($R$7=\"Invalid\",\"Internal Error, Contact Support\",VLOOKUP(eDESIND!L71,DI!$A$5:$B$400,2,FALSE))","v":{"$error":"#N/A"}},{"$f":"IF($R$7=\"Invalid\",\"Internal Error, Contact Support\",VLOOKUP(eDESIND!N71,DI!$A$5:$B$400,2,FALSE))","v":{"$error":"#N/A"}},{"$f":"IF($R$7=\"Invalid\",\"Internal Error, Contact Support\",VLOOKUP(eDESIND!P71,DI!$A$5:$B$400,2,FALSE))","v":{"$error":"#N/A"}},{"$f":"IF($R$7=\"Invalid\",\"Internal Error, Contact Support\",VLOOKUP(eDESIND!R71,DI!$A$5:$B$400,2,FALSE))","v":{"$error":"#N/A"}},{"$f":"IF($R$7=\"Invalid\",\"Internal Error, Contact Support\",VLOOKUP(eDESIND!T71,DI!$A$5:$B$400,2,FALSE))","v":{"$error":"#N/A"}},{"$f":"IF($R$7=\"Invalid\",\"Internal Error, Contact Support\",VLOOKUP(eDESIND!V71,DI!$A$5:$B$400,2,FALSE))","v":{"$error":"#N/A"}},{"$f":"IF($R$7=\"Invalid\",\"Internal Error, Contact Support\",VLOOKUP(eDESIND!X71,DI!$A$5:$B$400,2,FALSE))","v":{"$error":"#N/A"}},{"$f":"IF($R$7=\"Invalid\",\"Internal Error, Contact Support\",VLOOKUP(eDESIND!Z71,DI!$A$5:$B$400,2,FALSE))","v":{"$error":"#N/A"}},{"$f":"IF($R$7=\"Invalid\",\"Internal Error, Contact Support\",VLOOKUP(eDESIND!AB71,DI!$A$5:$B$400,2,FALSE))","v":{"$error":"#N/A"}}]
[{"$f":"eSPAR!A71","v":0},{"$f":"eSPAR!B71","v":0},{"$f":"IF($R$7=\"Invalid\",\"Internal Error, Contact Support\",VLOOKUP(eDESIND!D72,DI!$A$5:$B$400,2,FALSE))","v":{"$error":"#N/A"}},{"$f":"IF($R$7=\"Invalid\",\"Internal Error, Contact Support\",VLOOKUP(eDESIND!F72,DI!$A$5:$B$400,2,FALSE))","v":{"$error":"#N/A"}},{"$f":"IF($R$7=\"Invalid\",\"Internal Error, Contact Support\",VLOOKUP(eDESIND!H72,DI!$A$5:$B$400,2,FALSE))","v":{"$error":"#N/A"}},{"$f":"IF($R$7=\"Invalid\",\"Internal Error, Contact Support\",VLOOKUP(eDESIND!J72,DI!$A$5:$B$400,2,FALSE))","v":{"$error":"#N/A"}},{"$f":"IF($R$7=\"Invalid\",\"Internal Error, Contact Support\",VLOOKUP(eDESIND!L72,DI!$A$5:$B$400,2,FALSE))","v":{"$error":"#N/A"}},{"$f":"IF($R$7=\"Invalid\",\"Internal Error, Contact Support\",VLOOKUP(eDESIND!N72,DI!$A$5:$B$400,2,FALSE))","v":{"$error":"#N/A"}},{"$f":"IF($R$7=\"Invalid\",\"Internal Error, Contact Support\",VLOOKUP(eDESIND!P72,DI!$A$5:$B$400,2,FALSE))","v":{"$error":"#N/A"}},{"$f":"IF($R$7=\"Invalid\",\"Internal Error, Contact Support\",VLOOKUP(eDESIND!R72,DI!$A$5:$B$400,2,FALSE))","v":{"$error":"#N/A"}},{"$f":"IF($R$7=\"Invalid\",\"Internal Error, Contact Support\",VLOOKUP(eDESIND!T72,DI!$A$5:$B$400,2,FALSE))","v":{"$error":"#N/A"}},{"$f":"IF($R$7=\"Invalid\",\"Internal Error, Contact Support\",VLOOKUP(eDESIND!V72,DI!$A$5:$B$400,2,FALSE))","v":{"$error":"#N/A"}},{"$f":"IF($R$7=\"Invalid\",\"Internal Error, Contact Support\",VLOOKUP(eDESIND!X72,DI!$A$5:$B$400,2,FALSE))","v":{"$error":"#N/A"}},{"$f":"IF($R$7=\"Invalid\",\"Internal Error, Contact Support\",VLOOKUP(eDESIND!Z72,DI!$A$5:$B$400,2,FALSE))","v":{"$error":"#N/A"}},{"$f":"IF($R$7=\"Invalid\",\"Internal Error, Contact Support\",VLOOKUP(eDESIND!AB72,DI!$A$5:$B$400,2,FALSE))","v":{"$error":"#N/A"}}]
[{"$f":"eSPAR!A72","v":0},{"$f":"eSPAR!B72","v":0},{"$f":"IF($R$7=\"Invalid\",\"Internal Error, Contact Support\",VLOOKUP(eDESIND!D73,DI!$A$5:$B$400,2,FALSE))","v":{"$error":"#N/A"}},{"$f":"IF($R$7=\"Invalid\",\"Internal Error, Contact Support\",VLOOKUP(eDESIND!F73,DI!$A$5:$B$400,2,FALSE))","v":{"$error":"#N/A"}},{"$f":"IF($R$7=\"Invalid\",\"Internal Error, Contact Support\",VLOOKUP(eDESIND!H73,DI!$A$5:$B$400,2,FALSE))","v":{"$error":"#N/A"}},{"$f":"IF($R$7=\"Invalid\",\"Internal Error, Contact Support\",VLOOKUP(eDESIND!J73,DI!$A$5:$B$400,2,FALSE))","v":{"$error":"#N/A"}},{"$f":"IF($R$7=\"Invalid\",\"Internal Error, Contact Support\",VLOOKUP(eDESIND!L73,DI!$A$5:$B$400,2,FALSE))","v":{"$error":"#N/A"}},{"$f":"IF($R$7=\"Invalid\",\"Internal Error, Contact Support\",VLOOKUP(eDESIND!N73,DI!$A$5:$B$400,2,FALSE))","v":{"$error":"#N/A"}},{"$f":"IF($R$7=\"Invalid\",\"Internal Error, Contact Support\",VLOOKUP(eDESIND!P73,DI!$A$5:$B$400,2,FALSE))","v":{"$error":"#N/A"}},{"$f":"IF($R$7=\"Invalid\",\"Internal Error, Contact Support\",VLOOKUP(eDESIND!R73,DI!$A$5:$B$400,2,FALSE))","v":{"$error":"#N/A"}},{"$f":"IF($R$7=\"Invalid\",\"Internal Error, Contact Support\",VLOOKUP(eDESIND!T73,DI!$A$5:$B$400,2,FALSE))","v":{"$error":"#N/A"}},{"$f":"IF($R$7=\"Invalid\",\"Internal Error, Contact Support\",VLOOKUP(eDESIND!V73,DI!$A$5:$B$400,2,FALSE))","v":{"$error":"#N/A"}},{"$f":"IF($R$7=\"Invalid\",\"Internal Error, Contact Support\",VLOOKUP(eDESIND!X73,DI!$A$5:$B$400,2,FALSE))","v":{"$error":"#N/A"}},{"$f":"IF($R$7=\"Invalid\",\"Internal Error, Contact Support\",VLOOKUP(eDESIND!Z73,DI!$A$5:$B$400,2,FALSE))","v":{"$error":"#N/A"}},{"$f":"IF($R$7=\"Invalid\",\"Internal Error, Contact Support\",VLOOKUP(eDESIND!AB73,DI!$A$5:$B$400,2,FALSE))","v":{"$error":"#N/A"}}]
[{"$f":"eSPAR!A73","v":0},{"$f":"eSPAR!B73","v":0},{"$f":"IF($R$7=\"Invalid\",\"Internal Error, Contact Support\",VLOOKUP(eDESIND!D74,DI!$A$5:$B$400,2,FALSE))","v":{"$error":"#N/A"}},{"$f":"IF($R$7=\"Invalid\",\"Internal Error, Contact Support\",VLOOKUP(eDESIND!F74,DI!$A$5:$B$400,2,FALSE))","v":{"$error":"#N/A"}},{"$f":"IF($R$7=\"Invalid\",\"Internal Error, Contact Support\",VLOOKUP(eDESIND!H74,DI!$A$5:$B$400,2,FALSE))","v":{"$error":"#N/A"}},{"$f":"IF($R$7=\"Invalid\",\"Internal Error, Contact Support\",VLOOKUP(eDESIND!J74,DI!$A$5:$B$400,2,FALSE))","v":{"$error":"#N/A"}},{"$f":"IF($R$7=\"Invalid\",\"Internal Error, Contact Support\",VLOOKUP(eDESIND!L74,DI!$A$5:$B$400,2,FALSE))","v":{"$error":"#N/A"}},{"$f":"IF($R$7=\"Invalid\",\"Internal Error, Contact Support\",VLOOKUP(eDESIND!N74,DI!$A$5:$B$400,2,FALSE))","v":{"$error":"#N/A"}},{"$f":"IF($R$7=\"Invalid\",\"Internal Error, Contact Support\",VLOOKUP(eDESIND!P74,DI!$A$5:$B$400,2,FALSE))","v":{"$error":"#N/A"}},{"$f":"IF($R$7=\"Invalid\",\"Internal Error, Contact Support\",VLOOKUP(eDESIND!R74,DI!$A$5:$B$400,2,FALSE))","v":{"$error":"#N/A"}},{"$f":"IF($R$7=\"Invalid\",\"Internal Error, Contact Support\",VLOOKUP(eDESIND!T74,DI!$A$5:$B$400,2,FALSE))","v":{"$error":"#N/A"}},{"$f":"IF($R$7=\"Invalid\",\"Internal Error, Contact Support\",VLOOKUP(eDESIND!V74,DI!$A$5:$B$400,2,FALSE))","v":{"$error":"#N/A"}},{"$f":"IF($R$7=\"Invalid\",\"Internal Error, Contact Support\",VLOOKUP(eDESIND!X74,DI!$A$5:$B$400,2,FALSE))","v":{"$error":"#N/A"}},{"$f":"IF($R$7=\"Invalid\",\"Internal Error, Contact Support\",VLOOKUP(eDESIND!Z74,DI!$A$5:$B$400,2,FALSE))","v":{"$error":"#N/A"}},{"$f":"IF($R$7=\"Invalid\",\"Internal Error, Contact Support\",VLOOKUP(eDESIND!AB74,DI!$A$5:$B$400,2,FALSE))","v":{"$error":"#N/A"}}]
[{"$f":"eSPAR!A74","v":0},{"$f":"eSPAR!B74","v":0},{"$f":"IF($R$7=\"Invalid\",\"Internal Error, Contact Support\",VLOOKUP(eDESIND!D75,DI!$A$5:$B$400,2,FALSE))","v":{"$error":"#N/A"}},{"$f":"IF($R$7=\"Invalid\",\"Internal Error, Contact Support\",VLOOKUP(eDESIND!F75,DI!$A$5:$B$400,2,FALSE))","v":{"$error":"#N/A"}},{"$f":"IF($R$7=\"Invalid\",\"Internal Error, Contact Support\",VLOOKUP(eDESIND!H75,DI!$A$5:$B$400,2,FALSE))","v":{"$error":"#N/A"}},{"$f":"IF($R$7=\"Invalid\",\"Internal Error, Contact Support\",VLOOKUP(eDESIND!J75,DI!$A$5:$B$400,2,FALSE))","v":{"$error":"#N/A"}},{"$f":"IF($R$7=\"Invalid\",\"Internal Error, Contact Support\",VLOOKUP(eDESIND!L75,DI!$A$5:$B$400,2,FALSE))","v":{"$error":"#N/A"}},{"$f":"IF($R$7=\"Invalid\",\"Internal Error, Contact Support\",VLOOKUP(eDESIND!N75,DI!$A$5:$B$400,2,FALSE))","v":{"$error":"#N/A"}},{"$f":"IF($R$7=\"Invalid\",\"Internal Error, Contact Support\",VLOOKUP(eDESIND!P75,DI!$A$5:$B$400,2,FALSE))","v":{"$error":"#N/A"}},{"$f":"IF($R$7=\"Invalid\",\"Internal Error, Contact Support\",VLOOKUP(eDESIND!R75,DI!$A$5:$B$400,2,FALSE))","v":{"$error":"#N/A"}},{"$f":"IF($R$7=\"Invalid\",\"Internal Error, Contact Support\",VLOOKUP(eDESIND!T75,DI!$A$5:$B$400,2,FALSE))","v":{"$error":"#N/A"}},{"$f":"IF($R$7=\"Invalid\",\"Internal Error, Contact Support\",VLOOKUP(eDESIND!V75,DI!$A$5:$B$400,2,FALSE))","v":{"$error":"#N/A"}},{"$f":"IF($R$7=\"Invalid\",\"Internal Error, Contact Support\",VLOOKUP(eDESIND!X75,DI!$A$5:$B$400,2,FALSE))","v":{"$error":"#N/A"}},{"$f":"IF($R$7=\"Invalid\",\"Internal Error, Contact Support\",VLOOKUP(eDESIND!Z75,DI!$A$5:$B$400,2,FALSE))","v":{"$error":"#N/A"}},{"$f":"IF($R$7=\"Invalid\",\"Internal Error, Contact Support\",VLOOKUP(eDESIND!AB75,DI!$A$5:$B$400,2,FALSE))","v":{"$error":"#N/A"}}]
[{"$f":"eSPAR!A75","v":0},{"$f":"eSPAR!B75","v":0},{"$f":"IF($R$7=\"Invalid\",\"Internal Error, Contact Support\",VLOOKUP(eDESIND!D76,DI!$A$5:$B$400,2,FALSE))","v":{"$error":"#N/A"}},{"$f":"IF($R$7=\"Invalid\",\"Internal Error, Contact Support\",VLOOKUP(eDESIND!F76,DI!$A$5:$B$400,2,FALSE))","v":{"$error":"#N/A"}},{"$f":"IF($R$7=\"Invalid\",\"Internal Error, Contact Support\",VLOOKUP(eDESIND!H76,DI!$A$5:$B$400,2,FALSE))","v":{"$error":"#N/A"}},{"$f":"IF($R$7=\"Invalid\",\"Internal Error, Contact Support\",VLOOKUP(eDESIND!J76,DI!$A$5:$B$400,2,FALSE))","v":{"$error":"#N/A"}},{"$f":"IF($R$7=\"Invalid\",\"Internal Error, Contact Support\",VLOOKUP(eDESIND!L76,DI!$A$5:$B$400,2,FALSE))","v":{"$error":"#N/A"}},{"$f":"IF($R$7=\"Invalid\",\"Internal Error, Contact Support\",VLOOKUP(eDESIND!N76,DI!$A$5:$B$400,2,FALSE))","v":{"$error":"#N/A"}},{"$f":"IF($R$7=\"Invalid\",\"Internal Error, Contact Support\",VLOOKUP(eDESIND!P76,DI!$A$5:$B$400,2,FALSE))","v":{"$error":"#N/A"}},{"$f":"IF($R$7=\"Invalid\",\"Internal Error, Contact Support\",VLOOKUP(eDESIND!R76,DI!$A$5:$B$400,2,FALSE))","v":{"$error":"#N/A"}},{"$f":"IF($R$7=\"Invalid\",\"Internal Error, Contact Support\",VLOOKUP(eDESIND!T76,DI!$A$5:$B$400,2,FALSE))","v":{"$error":"#N/A"}},{"$f":"IF($R$7=\"Invalid\",\"Internal Error, Contact Support\",VLOOKUP(eDESIND!V76,DI!$A$5:$B$400,2,FALSE))","v":{"$error":"#N/A"}},{"$f":"IF($R$7=\"Invalid\",\"Internal Error, Contact Support\",VLOOKUP(eDESIND!X76,DI!$A$5:$B$400,2,FALSE))","v":{"$error":"#N/A"}},{"$f":"IF($R$7=\"Invalid\",\"Internal Error, Contact Support\",VLOOKUP(eDESIND!Z76,DI!$A$5:$B$400,2,FALSE))","v":{"$error":"#N/A"}},{"$f":"IF($R$7=\"Invalid\",\"Internal Error, Contact Support\",VLOOKUP(eDESIND!AB76,DI!$A$5:$B$400,2,FALSE))","v":{"$error":"#N/A"}}]
[{"$f":"eSPAR!A76","v":0},{"$f":"eSPAR!B76","v":0},{"$f":"IF($R$7=\"Invalid\",\"Internal Error, Contact Support\",VLOOKUP(eDESIND!D77,DI!$A$5:$B$400,2,FALSE))","v":{"$error":"#N/A"}},{"$f":"IF($R$7=\"Invalid\",\"Internal Error, Contact Support\",VLOOKUP(eDESIND!F77,DI!$A$5:$B$400,2,FALSE))","v":{"$error":"#N/A"}},{"$f":"IF($R$7=\"Invalid\",\"Internal Error, Contact Support\",VLOOKUP(eDESIND!H77,DI!$A$5:$B$400,2,FALSE))","v":{"$error":"#N/A"}},{"$f":"IF($R$7=\"Invalid\",\"Internal Error, Contact Support\",VLOOKUP(eDESIND!J77,DI!$A$5:$B$400,2,FALSE))","v":{"$error":"#N/A"}},{"$f":"IF($R$7=\"Invalid\",\"Internal Error, Contact Support\",VLOOKUP(eDESIND!L77,DI!$A$5:$B$400,2,FALSE))","v":{"$error":"#N/A"}},{"$f":"IF($R$7=\"Invalid\",\"Internal Error, Contact Support\",VLOOKUP(eDESIND!N77,DI!$A$5:$B$400,2,FALSE))","v":{"$error":"#N/A"}},{"$f":"IF($R$7=\"Invalid\",\"Internal Error, Contact Support\",VLOOKUP(eDESIND!P77,DI!$A$5:$B$400,2,FALSE))","v":{"$error":"#N/A"}},{"$f":"IF($R$7=\"Invalid\",\"Internal Error, Contact Support\",VLOOKUP(eDESIND!R77,DI!$A$5:$B$400,2,FALSE))","v":{"$error":"#N/A"}},{"$f":"IF($R$7=\"Invalid\",\"Internal Error, Contact Support\",VLOOKUP(eDESIND!T77,DI!$A$5:$B$400,2,FALSE))","v":{"$error":"#N/A"}},{"$f":"IF($R$7=\"Invalid\",\"Internal Error, Contact Support\",VLOOKUP(eDESIND!V77,DI!$A$5:$B$400,2,FALSE))","v":{"$error":"#N/A"}},{"$f":"IF($R$7=\"Invalid\",\"Internal Error, Contact Support\",VLOOKUP(eDESIND!X77,DI!$A$5:$B$400,2,FALSE))","v":{"$error":"#N/A"}},{"$f":"IF($R$7=\"Invalid\",\"Internal Error, Contact Support\",VLOOKUP(eDESIND!Z77,DI!$A$5:$B$400,2,FALSE))","v":{"$error":"#N/A"}},{"$f":"IF($R$7=\"Invalid\",\"Internal Error, Contact Support\",VLOOKUP(eDESIND!AB77,DI!$A$5:$B$400,2,FALSE))","v":{"$error":"#N/A"}}]
[{"$f":"eSPAR!A77","v":0},{"$f":"eSPAR!B77","v":0},{"$f":"IF($R$7=\"Invalid\",\"Internal Error, Contact Support\",VLOOKUP(eDESIND!D78,DI!$A$5:$B$400,2,FALSE))","v":{"$error":"#N/A"}},{"$f":"IF($R$7=\"Invalid\",\"Internal Error, Contact Support\",VLOOKUP(eDESIND!F78,DI!$A$5:$B$400,2,FALSE))","v":{"$error":"#N/A"}},{"$f":"IF($R$7=\"Invalid\",\"Internal Error, Contact Support\",VLOOKUP(eDESIND!H78,DI!$A$5:$B$400,2,FALSE))","v":{"$error":"#N/A"}},{"$f":"IF($R$7=\"Invalid\",\"Internal Error, Contact Support\",VLOOKUP(eDESIND!J78,DI!$A$5:$B$400,2,FALSE))","v":{"$error":"#N/A"}},{"$f":"IF($R$7=\"Invalid\",\"Internal Error, Contact Support\",VLOOKUP(eDESIND!L78,DI!$A$5:$B$400,2,FALSE))","v":{"$error":"#N/A"}},{"$f":"IF($R$7=\"Invalid\",\"Internal Error, Contact Support\",VLOOKUP(eDESIND!N78,DI!$A$5:$B$400,2,FALSE))","v":{"$error":"#N/A"}},{"$f":"IF($R$7=\"Invalid\",\"Internal Error, Contact Support\",VLOOKUP(eDESIND!P78,DI!$A$5:$B$400,2,FALSE))","v":{"$error":"#N/A"}},{"$f":"IF($R$7=\"Invalid\",\"Internal Error, Contact Support\",VLOOKUP(eDESIND!R78,DI!$A$5:$B$400,2,FALSE))","v":{"$error":"#N/A"}},{"$f":"IF($R$7=\"Invalid\",\"Internal Error, Contact Support\",VLOOKUP(eDESIND!T78,DI!$A$5:$B$400,2,FALSE))","v":{"$error":"#N/A"}},{"$f":"IF($R$7=\"Invalid\",\"Internal Error, Contact Support\",VLOOKUP(eDESIND!V78,DI!$A$5:$B$400,2,FALSE))","v":{"$error":"#N/A"}},{"$f":"IF($R$7=\"Invalid\",\"Internal Error, Contact Support\",VLOOKUP(eDESIND!X78,DI!$A$5:$B$400,2,FALSE))","v":{"$error":"#N/A"}},{"$f":"IF($R$7=\"Invalid\",\"Internal Error, Contact Support\",VLOOKUP(eDESIND!Z78,DI!$A$5:$B$400,2,FALSE))","v":{"$error":"#N/A"}},{"$f":"IF($R$7=\"Invalid\",\"Internal Error, Contact Support\",VLOOKUP(eDESIND!AB78,DI!$A$5:$B$400,2,FALSE))","v":{"$error":"#N/A"}}]
[{"$f":"eSPAR!A78","v":0},{"$f":"eSPAR!B78","v":0},{"$f":"IF($R$7=\"Invalid\",\"Internal Error, Contact Support\",VLOOKUP(eDESIND!D79,DI!$A$5:$B$400,2,FALSE))","v":{"$error":"#N/A"}},{"$f":"IF($R$7=\"Invalid\",\"Internal Error, Contact Support\",VLOOKUP(eDESIND!F79,DI!$A$5:$B$400,2,FALSE))","v":{"$error":"#N/A"}},{"$f":"IF($R$7=\"Invalid\",\"Internal Error, Contact Support\",VLOOKUP(eDESIND!H79,DI!$A$5:$B$400,2,FALSE))","v":{"$error":"#N/A"}},{"$f":"IF($R$7=\"Invalid\",\"Internal Error, Contact Support\",VLOOKUP(eDESIND!J79,DI!$A$5:$B$400,2,FALSE))","v":{"$error":"#N/A"}},{"$f":"IF($R$7=\"Invalid\",\"Internal Error, Contact Support\",VLOOKUP(eDESIND!L79,DI!$A$5:$B$400,2,FALSE))","v":{"$error":"#N/A"}},{"$f":"IF($R$7=\"Invalid\",\"Internal Error, Contact Support\",VLOOKUP(eDESIND!N79,DI!$A$5:$B$400,2,FALSE))","v":{"$error":"#N/A"}},{"$f":"IF($R$7=\"Invalid\",\"Internal Error, Contact Support\",VLOOKUP(eDESIND!P79,DI!$A$5:$B$400,2,FALSE))","v":{"$error":"#N/A"}},{"$f":"IF($R$7=\"Invalid\",\"Internal Error, Contact Support\",VLOOKUP(eDESIND!R79,DI!$A$5:$B$400,2,FALSE))","v":{"$error":"#N/A"}},{"$f":"IF($R$7=\"Invalid\",\"Internal Error, Contact Support\",VLOOKUP(eDESIND!T79,DI!$A$5:$B$400,2,FALSE))","v":{"$error":"#N/A"}},{"$f":"IF($R$7=\"Invalid\",\"Internal Error, Contact Support\",VLOOKUP(eDESIND!V79,DI!$A$5:$B$400,2,FALSE))","v":{"$error":"#N/A"}},{"$f":"IF($R$7=\"Invalid\",\"Internal Error, Contact Support\",VLOOKUP(eDESIND!X79,DI!$A$5:$B$400,2,FALSE))","v":{"$error":"#N/A"}},{"$f":"IF($R$7=\"Invalid\",\"Internal Error, Contact Support\",VLOOKUP(eDESIND!Z79,DI!$A$5:$B$400,2,FALSE))","v":{"$error":"#N/A"}},{"$f":"IF($R$7=\"Invalid\",\"Internal Error, Contact Support\",VLOOKUP(eDESIND!AB79,DI!$A$5:$B$400,2,FALSE))","v":{"$error":"#N/A"}}]
[{"$f":"eSPAR!A79","v":0},{"$f":"eSPAR!B79","v":0},{"$f":"IF($R$7=\"Invalid\",\"Internal Error, Contact Support\",VLOOKUP(eDESIND!D80,DI!$A$5:$B$400,2,FALSE))","v":{"$error":"#N/A"}},{"$f":"IF($R$7=\"Invalid\",\"Internal Error, Contact Support\",VLOOKUP(eDESIND!F80,DI!$A$5:$B$400,2,FALSE))","v":{"$error":"#N/A"}},{"$f":"IF($R$7=\"Invalid\",\"Internal Error, Contact Support\",VLOOKUP(eDESIND!H80,DI!$A$5:$B$400,2,FALSE))","v":{"$error":"#N/A"}},{"$f":"IF($R$7=\"Invalid\",\"Internal Error, Contact Support\",VLOOKUP(eDESIND!J80,DI!$A$5:$B$400,2,FALSE))","v":{"$error":"#N/A"}},{"$f":"IF($R$7=\"Invalid\",\"Internal Error, Contact Support\",VLOOKUP(eDESIND!L80,DI!$A$5:$B$400,2,FALSE))","v":{"$error":"#N/A"}},{"$f":"IF($R$7=\"Invalid\",\"Internal Error, Contact Support\",VLOOKUP(eDESIND!N80,DI!$A$5:$B$400,2,FALSE))","v":{"$error":"#N/A"}},{"$f":"IF($R$7=\"Invalid\",\"Internal Error, Contact Support\",VLOOKUP(eDESIND!P80,DI!$A$5:$B$400,2,FALSE))","v":{"$error":"#N/A"}},{"$f":"IF($R$7=\"Invalid\",\"Internal Error, Contact Support\",VLOOKUP(eDESIND!R80,DI!$A$5:$B$400,2,FALSE))","v":{"$error":"#N/A"}},{"$f":"IF($R$7=\"Invalid\",\"Internal Error, Contact Support\",VLOOKUP(eDESIND!T80,DI!$A$5:$B$400,2,FALSE))","v":{"$error":"#N/A"}},{"$f":"IF($R$7=\"Invalid\",\"Internal Error, Contact Support\",VLOOKUP(eDESIND!V80,DI!$A$5:$B$400,2,FALSE))","v":{"$error":"#N/A"}},{"$f":"IF($R$7=\"Invalid\",\"Internal Error, Contact Support\",VLOOKUP(eDESIND!X80,DI!$A$5:$B$400,2,FALSE))","v":{"$error":"#N/A"}},{"$f":"IF($R$7=\"Invalid\",\"Internal Error, Contact Support\",VLOOKUP(eDESIND!Z80,DI!$A$5:$B$400,2,FALSE))","v":{"$error":"#N/A"}},{"$f":"IF($R$7=\"Invalid\",\"Internal Error, Contact Support\",VLOOKUP(eDESIND!AB80,DI!$A$5:$B$400,2,FALSE))","v":{"$error":"#N/A"}}]
[{"$f":"eSPAR!A80","v":0},{"$f":"eSPAR!B80","v":0},{"$f":"IF($R$7=\"Invalid\",\"Internal Error, Contact Support\",VLOOKUP(eDESIND!D81,DI!$A$5:$B$400,2,FALSE))","v":{"$error":"#N/A"}},{"$f":"IF($R$7=\"Invalid\",\"Internal Error, Contact Support\",VLOOKUP(eDESIND!F81,DI!$A$5:$B$400,2,FALSE))","v":{"$error":"#N/A"}},{"$f":"IF($R$7=\"Invalid\",\"Internal Error, Contact Support\",VLOOKUP(eDESIND!H81,DI!$A$5:$B$400,2,FALSE))","v":{"$error":"#N/A"}},{"$f":"IF($R$7=\"Invalid\",\"Internal Error, Contact Support\",VLOOKUP(eDESIND!J81,DI!$A$5:$B$400,2,FALSE))","v":{"$error":"#N/A"}},{"$f":"IF($R$7=\"Invalid\",\"Internal Error, Contact Support\",VLOOKUP(eDESIND!L81,DI!$A$5:$B$400,2,FALSE))","v":{"$error":"#N/A"}},{"$f":"IF($R$7=\"Invalid\",\"Internal Error, Contact Support\",VLOOKUP(eDESIND!N81,DI!$A$5:$B$400,2,FALSE))","v":{"$error":"#N/A"}},{"$f":"IF($R$7=\"Invalid\",\"Internal Error, Contact Support\",VLOOKUP(eDESIND!P81,DI!$A$5:$B$400,2,FALSE))","v":{"$error":"#N/A"}},{"$f":"IF($R$7=\"Invalid\",\"Internal Error, Contact Support\",VLOOKUP(eDESIND!R81,DI!$A$5:$B$400,2,FALSE))","v":{"$error":"#N/A"}},{"$f":"IF($R$7=\"Invalid\",\"Internal Error, Contact Support\",VLOOKUP(eDESIND!T81,DI!$A$5:$B$400,2,FALSE))","v":{"$error":"#N/A"}},{"$f":"IF($R$7=\"Invalid\",\"Internal Error, Contact Support\",VLOOKUP(eDESIND!V81,DI!$A$5:$B$400,2,FALSE))","v":{"$error":"#N/A"}},{"$f":"IF($R$7=\"Invalid\",\"Internal Error, Contact Support\",VLOOKUP(eDESIND!X81,DI!$A$5:$B$400,2,FALSE))","v":{"$error":"#N/A"}},{"$f":"IF($R$7=\"Invalid\",\"Internal Error, Contact Support\",VLOOKUP(eDESIND!Z81,DI!$A$5:$B$400,2,FALSE))","v":{"$error":"#N/A"}},{"$f":"IF($R$7=\"Invalid\",\"Internal Error, Contact Support\",VLOOKUP(eDESIND!AB81,DI!$A$5:$B$400,2,FALSE))","v":{"$error":"#N/A"}}]
[{"$f":"eSPAR!A81","v":0},{"$f":"eSPAR!B81","v":0},{"$f":"IF($R$7=\"Invalid\",\"Internal Error, Contact Support\",VLOOKUP(eDESIND!D82,DI!$A$5:$B$400,2,FALSE))","v":{"$error":"#N/A"}},{"$f":"IF($R$7=\"Invalid\",\"Internal Error, Contact Support\",VLOOKUP(eDESIND!F82,DI!$A$5:$B$400,2,FALSE))","v":{"$error":"#N/A"}},{"$f":"IF($R$7=\"Invalid\",\"Internal Error, Contact Support\",VLOOKUP(eDESIND!H82,DI!$A$5:$B$400,2,FALSE))","v":{"$error":"#N/A"}},{"$f":"IF($R$7=\"Invalid\",\"Internal Error, Contact Support\",VLOOKUP(eDESIND!J82,DI!$A$5:$B$400,2,FALSE))","v":{"$error":"#N/A"}},{"$f":"IF($R$7=\"Invalid\",\"Internal Error, Contact Support\",VLOOKUP(eDESIND!L82,DI!$A$5:$B$400,2,FALSE))","v":{"$error":"#N/A"}},{"$f":"IF($R$7=\"Invalid\",\"Internal Error, Contact Support\",VLOOKUP(eDESIND!N82,DI!$A$5:$B$400,2,FALSE))","v":{"$error":"#N/A"}},{"$f":"IF($R$7=\"Invalid\",\"Internal Error, Contact Support\",VLOOKUP(eDESIND!P82,DI!$A$5:$B$400,2,FALSE))","v":{"$error":"#N/A"}},{"$f":"IF($R$7=\"Invalid\",\"Internal Error, Contact Support\",VLOOKUP(eDESIND!R82,DI!$A$5:$B$400,2,FALSE))","v":{"$error":"#N/A"}},{"$f":"IF($R$7=\"Invalid\",\"Internal Error, Contact Support\",VLOOKUP(eDESIND!T82,DI!$A$5:$B$400,2,FALSE))","v":{"$error":"#N/A"}},{"$f":"IF($R$7=\"Invalid\",\"Internal Error, Contact Support\",VLOOKUP(eDESIND!V82,DI!$A$5:$B$400,2,FALSE))","v":{"$error":"#N/A"}},{"$f":"IF($R$7=\"Invalid\",\"Internal Error, Contact Support\",VLOOKUP(eDESIND!X82,DI!$A$5:$B$400,2,FALSE))","v":{"$error":"#N/A"}},{"$f":"IF($R$7=\"Invalid\",\"Internal Error, Contact Support\",VLOOKUP(eDESIND!Z82,DI!$A$5:$B$400,2,FALSE))","v":{"$error":"#N/A"}},{"$f":"IF($R$7=\"Invalid\",\"Internal Error, Contact Support\",VLOOKUP(eDESIND!AB82,DI!$A$5:$B$400,2,FALSE))","v":{"$error":"#N/A"}}]
[{"$f":"eSPAR!A82","v":0},{"$f":"eSPAR!B82","v":0},{"$f":"IF($R$7=\"Invalid\",\"Internal Error, Contact Support\",VLOOKUP(eDESIND!D83,DI!$A$5:$B$400,2,FALSE))","v":{"$error":"#N/A"}},{"$f":"IF($R$7=\"Invalid\",\"Internal Error, Contact Support\",VLOOKUP(eDESIND!F83,DI!$A$5:$B$400,2,FALSE))","v":{"$error":"#N/A"}},{"$f":"IF($R$7=\"Invalid\",\"Internal Error, Contact Support\",VLOOKUP(eDESIND!H83,DI!$A$5:$B$400,2,FALSE))","v":{"$error":"#N/A"}},{"$f":"IF($R$7=\"Invalid\",\"Internal Error, Contact Support\",VLOOKUP(eDESIND!J83,DI!$A$5:$B$400,2,FALSE))","v":{"$error":"#N/A"}},{"$f":"IF($R$7=\"Invalid\",\"Internal Error, Contact Support\",VLOOKUP(eDESIND!L83,DI!$A$5:$B$400,2,FALSE))","v":{"$error":"#N/A"}},{"$f":"IF($R$7=\"Invalid\",\"Internal Error, Contact Support\",VLOOKUP(eDESIND!N83,DI!$A$5:$B$400,2,FALSE))","v":{"$error":"#N/A"}},{"$f":"IF($R$7=\"Invalid\",\"Internal Error, Contact Support\",VLOOKUP(eDESIND!P83,DI!$A$5:$B$400,2,FALSE))","v":{"$error":"#N/A"}},{"$f":"IF($R$7=\"Invalid\",\"Internal Error, Contact Support\",VLOOKUP(eDESIND!R83,DI!$A$5:$B$400,2,FALSE))","v":{"$error":"#N/A"}},{"$f":"IF($R$7=\"Invalid\",\"Internal Error, Contact Support\",VLOOKUP(eDESIND!T83,DI!$A$5:$B$400,2,FALSE))","v":{"$error":"#N/A"}},{"$f":"IF($R$7=\"Invalid\",\"Internal Error, Contact Support\",VLOOKUP(eDESIND!V83,DI!$A$5:$B$400,2,FALSE))","v":{"$error":"#N/A"}},{"$f":"IF($R$7=\"Invalid\",\"Internal Error, Contact Support\",VLOOKUP(eDESIND!X83,DI!$A$5:$B$400,2,FALSE))","v":{"$error":"#N/A"}},{"$f":"IF($R$7=\"Invalid\",\"Internal Error, Contact Support\",VLOOKUP(eDESIND!Z83,DI!$A$5:$B$400,2,FALSE))","v":{"$error":"#N/A"}},{"$f":"IF($R$7=\"Invalid\",\"Internal Error, Contact Support\",VLOOKUP(eDESIND!AB83,DI!$A$5:$B$400,2,FALSE))","v":{"$error":"#N/A"}}]
[{"$f":"eSPAR!A83","v":0},{"$f":"eSPAR!B83","v":0},{"$f":"IF($R$7=\"Invalid\",\"Internal Error, Contact Support\",VLOOKUP(eDESIND!D84,DI!$A$5:$B$400,2,FALSE))","v":{"$error":"#N/A"}},{"$f":"IF($R$7=\"Invalid\",\"Internal Error, Contact Support\",VLOOKUP(eDESIND!F84,DI!$A$5:$B$400,2,FALSE))","v":{"$error":"#N/A"}},{"$f":"IF($R$7=\"Invalid\",\"Internal Error, Contact Support\",VLOOKUP(eDESIND!H84,DI!$A$5:$B$400,2,FALSE))","v":{"$error":"#N/A"}},{"$f":"IF($R$7=\"Invalid\",\"Internal Error, Contact Support\",VLOOKUP(eDESIND!J84,DI!$A$5:$B$400,2,FALSE))","v":{"$error":"#N/A"}},{"$f":"IF($R$7=\"Invalid\",\"Internal Error, Contact Support\",VLOOKUP(eDESIND!L84,DI!$A$5:$B$400,2,FALSE))","v":{"$error":"#N/A"}},{"$f":"IF($R$7=\"Invalid\",\"Internal Error, Contact Support\",VLOOKUP(eDESIND!N84,DI!$A$5:$B$400,2,FALSE))","v":{"$error":"#N/A"}},{"$f":"IF($R$7=\"Invalid\",\"Internal Error, Contact Support\",VLOOKUP(eDESIND!P84,DI!$A$5:$B$400,2,FALSE))","v":{"$error":"#N/A"}},{"$f":"IF($R$7=\"Invalid\",\"Internal Error, Contact Support\",VLOOKUP(eDESIND!R84,DI!$A$5:$B$400,2,FALSE))","v":{"$error":"#N/A"}},{"$f":"IF($R$7=\"Invalid\",\"Internal Error, Contact Support\",VLOOKUP(eDESIND!T84,DI!$A$5:$B$400,2,FALSE))","v":{"$error":"#N/A"}},{"$f":"IF($R$7=\"Invalid\",\"Internal Error, Contact Support\",VLOOKUP(eDESIND!V84,DI!$A$5:$B$400,2,FALSE))","v":{"$error":"#N/A"}},{"$f":"IF($R$7=\"Invalid\",\"Internal Error, Contact Support\",VLOOKUP(eDESIND!X84,DI!$A$5:$B$400,2,FALSE))","v":{"$error":"#N/A"}},{"$f":"IF($R$7=\"Invalid\",\"Internal Error, Contact Support\",VLOOKUP(eDESIND!Z84,DI!$A$5:$B$400,2,FALSE))","v":{"$error":"#N/A"}},{"$f":"IF($R$7=\"Invalid\",\"Internal Error, Contact Support\",VLOOKUP(eDESIND!AB84,DI!$A$5:$B$400,2,FALSE))","v":{"$error":"#N/A"}}]
[{"$f":"eSPAR!A84","v":0},{"$f":"eSPAR!B84","v":0},{"$f":"IF($R$7=\"Invalid\",\"Internal Error, Contact Support\",VLOOKUP(eDESIND!D85,DI!$A$5:$B$400,2,FALSE))","v":{"$error":"#N/A"}},{"$f":"IF($R$7=\"Invalid\",\"Internal Error, Contact Support\",VLOOKUP(eDESIND!F85,DI!$A$5:$B$400,2,FALSE))","v":{"$error":"#N/A"}},{"$f":"IF($R$7=\"Invalid\",\"Internal Error, Contact Support\",VLOOKUP(eDESIND!H85,DI!$A$5:$B$400,2,FALSE))","v":{"$error":"#N/A"}},{"$f":"IF($R$7=\"Invalid\",\"Internal Error, Contact Support\",VLOOKUP(eDESIND!J85,DI!$A$5:$B$400,2,FALSE))","v":{"$error":"#N/A"}},{"$f":"IF($R$7=\"Invalid\",\"Internal Error, Contact Support\",VLOOKUP(eDESIND!L85,DI!$A$5:$B$400,2,FALSE))","v":{"$error":"#N/A"}},{"$f":"IF($R$7=\"Invalid\",\"Internal Error, Contact Support\",VLOOKUP(eDESIND!N85,DI!$A$5:$B$400,2,FALSE))","v":{"$error":"#N/A"}},{"$f":"IF($R$7=\"Invalid\",\"Internal Error, Contact Support\",VLOOKUP(eDESIND!P85,DI!$A$5:$B$400,2,FALSE))","v":{"$error":"#N/A"}},{"$f":"IF($R$7=\"Invalid\",\"Internal Error, Contact Support\",VLOOKUP(eDESIND!R85,DI!$A$5:$B$400,2,FALSE))","v":{"$error":"#N/A"}},{"$f":"IF($R$7=\"Invalid\",\"Internal Error, Contact Support\",VLOOKUP(eDESIND!T85,DI!$A$5:$B$400,2,FALSE))","v":{"$error":"#N/A"}},{"$f":"IF($R$7=\"Invalid\",\"Internal Error, Contact Support\",VLOOKUP(eDESIND!V85,DI!$A$5:$B$400,2,FALSE))","v":{"$error":"#N/A"}},{"$f":"IF($R$7=\"Invalid\",\"Internal Error, Contact Support\",VLOOKUP(eDESIND!X85,DI!$A$5:$B$400,2,FALSE))","v":{"$error":"#N/A"}},{"$f":"IF($R$7=\"Invalid\",\"Internal Error, Contact Support\",VLOOKUP(eDESIND!Z85,DI!$A$5:$B$400,2,FALSE))","v":{"$error":"#N/A"}},{"$f":"IF($R$7=\"Invalid\",\"Internal Error, Contact Support\",VLOOKUP(eDESIND!AB85,DI!$A$5:$B$400,2,FALSE))","v":{"$error":"#N/A"}}]
[{"$f":"eSPAR!A85","v":0},{"$f":"eSPAR!B85","v":0},{"$f":"IF($R$7=\"Invalid\",\"Internal Error, Contact Support\",VLOOKUP(eDESIND!D86,DI!$A$5:$B$400,2,FALSE))","v":{"$error":"#N/A"}},{"$f":"IF($R$7=\"Invalid\",\"Internal Error, Contact Support\",VLOOKUP(eDESIND!F86,DI!$A$5:$B$400,2,FALSE))","v":{"$error":"#N/A"}},{"$f":"IF($R$7=\"Invalid\",\"Internal Error, Contact Support\",VLOOKUP(eDESIND!H86,DI!$A$5:$B$400,2,FALSE))","v":{"$error":"#N/A"}},{"$f":"IF($R$7=\"Invalid\",\"Internal Error, Contact Support\",VLOOKUP(eDESIND!J86,DI!$A$5:$B$400,2,FALSE))","v":{"$error":"#N/A"}},{"$f":"IF($R$7=\"Invalid\",\"Internal Error, Contact Support\",VLOOKUP(eDESIND!L86,DI!$A$5:$B$400,2,FALSE))","v":{"$error":"#N/A"}},{"$f":"IF($R$7=\"Invalid\",\"Internal Error, Contact Support\",VLOOKUP(eDESIND!N86,DI!$A$5:$B$400,2,FALSE))","v":{"$error":"#N/A"}},{"$f":"IF($R$7=\"Invalid\",\"Internal Error, Contact Support\",VLOOKUP(eDESIND!P86,DI!$A$5:$B$400,2,FALSE))","v":{"$error":"#N/A"}},{"$f":"IF($R$7=\"Invalid\",\"Internal Error, Contact Support\",VLOOKUP(eDESIND!R86,DI!$A$5:$B$400,2,FALSE))","v":{"$error":"#N/A"}},{"$f":"IF($R$7=\"Invalid\",\"Internal Error, Contact Support\",VLOOKUP(eDESIND!T86,DI!$A$5:$B$400,2,FALSE))","v":{"$error":"#N/A"}},{"$f":"IF($R$7=\"Invalid\",\"Internal Error, Contact Support\",VLOOKUP(eDESIND!V86,DI!$A$5:$B$400,2,FALSE))","v":{"$error":"#N/A"}},{"$f":"IF($R$7=\"Invalid\",\"Internal Error, Contact Support\",VLOOKUP(eDESIND!X86,DI!$A$5:$B$400,2,FALSE))","v":{"$error":"#N/A"}},{"$f":"IF($R$7=\"Invalid\",\"Internal Error, Contact Support\",VLOOKUP(eDESIND!Z86,DI!$A$5:$B$400,2,FALSE))","v":{"$error":"#N/A"}},{"$f":"IF($R$7=\"Invalid\",\"Internal Error, Contact Support\",VLOOKUP(eDESIND!AB86,DI!$A$5:$B$400,2,FALSE))","v":{"$error":"#N/A"}}]